Department Family,Entity,Date of Payment,Expense Type,Expense Area,Supplier,Voluntary & Community Sector,SME Class,Sole Trader,D-U-N-S Number,Transaction number,PSPES Level 2,Narrative,Postal Code,Amount in Sterling,Grant?
"Housing, Communities & Local Government",MHCLG,04/01/2021,Agency Staff,Building Safety Grenfell & Net Zero,ALEXANDER MANN SOLUTIONS LTD,,Large,,,5106267047,Contingent Labour,Short term backfill contractor,EC2N 3AQ,926.18,
"Housing, Communities & Local Government",MHCLG,04/01/2021,Agency Staff,Building Safety Grenfell & Net Zero,ALEXANDER MANN SOLUTIONS LTD,,Large,,,5106267048,Contingent Labour,Short term backfill contractor,EC2N 3AQ,"2,268.19",
"Housing, Communities & Local Government",MHCLG,04/01/2021,Agency Staff,Building Safety Grenfell & Net Zero,ALEXANDER MANN SOLUTIONS LTD,,Large,,,5106267056,Contingent Labour,Short term backfill contractor,EC2N 3AQ,"3,202.85",
"Housing, Communities & Local Government",MHCLG,04/01/2021,Agency Staff,CFO and Corporate,ALEXANDER MANN SOLUTIONS LTD,,Large,,,5106267052,Contingent Labour,Contingent labour,EC2N 3AQ,"3,165.24",
"Housing, Communities & Local Government",MHCLG,04/01/2021,Agency Staff,CFO and Corporate,ALEXANDER MANN SOLUTIONS LTD,,Large,,,5106267053,Contingent Labour,Contingent labour,EC2N 3AQ,"3,067.86",
"Housing, Communities & Local Government",MHCLG,04/01/2021,Agency Staff,CFO and Corporate,ALEXANDER MANN SOLUTIONS LTD,,Large,,,5106267054,Contingent Labour,Contingent labour,EC2N 3AQ,"2,677.74",
"Housing, Communities & Local Government",MHCLG,04/01/2021,Agency Staff,CFO and Corporate,ALEXANDER MANN SOLUTIONS LTD,,Large,,,5106267055,Contingent Labour,Contingent labour,EC2N 3AQ,"3,323.52",
"Housing, Communities & Local Government",MHCLG,04/01/2021,Agency Staff,CFO and Corporate,ALEXANDER MANN SOLUTIONS LTD,,Large,,,5106267057,Contingent Labour,Contingent labour,EC2N 3AQ,"10,824.95",
"Housing, Communities & Local Government",MHCLG,04/01/2021,Agency Staff,CFO and Corporate,ALEXANDER MANN SOLUTIONS LTD,,Large,,,5106267059,Contingent Labour,Interim Staff,EC2N 3AQ,343.80,
"Housing, Communities & Local Government",MHCLG,04/01/2021,Agency Staff,Local Government Strategy and Analysis,ALEXANDER MANN SOLUTIONS LTD,,Large,,,5106267051,Contingent Labour,Contingent labour,EC2N 3AQ,"9,258.34",
"Housing, Communities & Local Government",MHCLG,04/01/2021,Agency Staff,Stronger Places,ALEXANDER MANN SOLUTIONS LTD,,Large,,,5106267049,Contingent Labour,Contingent labour,EC2N 3AQ,"1,025.53",
"Housing, Communities & Local Government",MHCLG,04/01/2021,Agency Staff,Stronger Places,ALEXANDER MANN SOLUTIONS LTD,,Large,,,5106267058,Contingent Labour,Contingent labour,EC2N 3AQ,"2,189.52",
"Housing, Communities & Local Government",MHCLG,04/01/2021,Cap Grants to Local Authorities (DEL),Stronger Places,GREATER MANCHESTER COMB AUT,,Public Bodies,,424873172,2100308266,,Grant payment,M27 8US,"16,285,851.00",Yes
"Housing, Communities & Local Government",MHCLG,04/01/2021,Cap Grants to Local Authorities (DEL),Stronger Places,LIVERPOOL CITY REGION COMB AUTH,,Large,,,2100308268,,Grant payment,L69 3HN,"9,000,000.00",Yes
"Housing, Communities & Local Government",MHCLG,04/01/2021,Cap Grants to Local Authorities (DEL),Stronger Places,NEWCASTLE UPON TYNE,,Small,,,2100308270,,Grant payment,NE1 8QH,"4,853,618.00",Yes
"Housing, Communities & Local Government",MHCLG,04/01/2021,Cap Grants to Local Authorities (DEL),Stronger Places,SHEFFIELD COMBINED AUTHORITY,,,,,2100308269,,Grant payment,S1 2BQ,"6,000,000.00",Yes
"Housing, Communities & Local Government",MHCLG,04/01/2021,Cap Grants to Local Authorities (DEL),Stronger Places,TEES VALLEY COMBINED AUTHORITY,,,,,2100308271,,Grant payment,TS17 6QY,"4,700,000.00",Yes
"Housing, Communities & Local Government",MHCLG,04/01/2021,Cap Grants to Local Authorities (DEL),Stronger Places,W YORKS PTE,,,,,2100308267,,Grant payment,LS1 2DE,"600,000.00",Yes
"Housing, Communities & Local Government",MHCLG,04/01/2021,Cap Grants to Local Authorities (DEL),Stronger Places,WEST MIDLANDS COMBINED AUTHORITY,,Large,,,2100308265,,Grant payment,B19 3SD,"33,445,755.00",Yes
"Housing, Communities & Local Government",MHCLG,04/01/2021,Current (non AEF) Grants to Local Authorities,CFO and Corporate,LONDON BOROUGH SOUTHWARK,,,,231379426,2100307843,,Local Digital Innovation,SE1 3DY,"123,000.00",Yes
"Housing, Communities & Local Government",MHCLG,04/01/2021,Current (non AEF) Grants to Local Authorities,Local Government Strategy and Analysis,ALLERDALE BOROUGH COUNCIL,,,,218146780,3700082086,,Grant payable by the Exchequer,CA14 3YJ,"162,778.00",Yes
"Housing, Communities & Local Government",MHCLG,04/01/2021,Current (non AEF) Grants to Local Authorities,Local Government Strategy and Analysis,ASHFORD BC,,,,229467071,3700082032,,Grant payable by the Exchequer,TN23 1PL,"41,542.00",Yes
"Housing, Communities & Local Government",MHCLG,04/01/2021,Current (non AEF) Grants to Local Authorities,Local Government Strategy and Analysis,BABERGH DC,,,,232618405,3700082030,,Grant payable by the Exchequer,IP7 6SJ,"113,381.00",Yes
"Housing, Communities & Local Government",MHCLG,04/01/2021,Current (non AEF) Grants to Local Authorities,Local Government Strategy and Analysis,BASSETLAW DC (HSG),,,,,3700082015,,Grant payable by the Exchequer,S80 2AH,"26,863.00",Yes
"Housing, Communities & Local Government",MHCLG,04/01/2021,Current (non AEF) Grants to Local Authorities,Local Government Strategy and Analysis,BOSTON BC,,,,236417713,3700082008,,Grant payable by the Exchequer,PE21 8QR,"42,623.00",Yes
"Housing, Communities & Local Government",MHCLG,04/01/2021,Current (non AEF) Grants to Local Authorities,Local Government Strategy and Analysis,BRAINTREE DC,,,,226941730,3700082074,,Grant payable by the Exchequer,CM7 6HB,"11,062.00",Yes
"Housing, Communities & Local Government",MHCLG,04/01/2021,Current (non AEF) Grants to Local Authorities,Local Government Strategy and Analysis,BRECKLAND DC,,,,232611384,3700082047,,Grant payable by the Exchequer,NR19 1EE,"236,219.00",Yes
"Housing, Communities & Local Government",MHCLG,04/01/2021,Current (non AEF) Grants to Local Authorities,Local Government Strategy and Analysis,CARLISLE CITY CNCL,,,,227471059,3700082091,,Grant payable by the Exchequer,CA3 8QG,"91,864.00",Yes
"Housing, Communities & Local Government",MHCLG,04/01/2021,Current (non AEF) Grants to Local Authorities,Local Government Strategy and Analysis,CHICHESTER DC,,,,739800998,3700082031,,Grant payable by the Exchequer,PO19 1TY,"94,534.00",Yes
"Housing, Communities & Local Government",MHCLG,04/01/2021,Current (non AEF) Grants to Local Authorities,Local Government Strategy and Analysis,COPELAND BC,,,,236414827,3700082068,,Grant payable by the Exchequer,CA28 7NY,"24,192.00",Yes
"Housing, Communities & Local Government",MHCLG,04/01/2021,Current (non AEF) Grants to Local Authorities,Local Government Strategy and Analysis,COTSWOLD DC,,,,232462085,3700082077,,Grant payable by the Exchequer,GL7 1PX,"301,217.00",Yes
"Housing, Communities & Local Government",MHCLG,04/01/2021,Current (non AEF) Grants to Local Authorities,Local Government Strategy and Analysis,CRAVEN DC (HSG),,,,,3700082018,,Grant payable by the Exchequer,BD23 1FJ,"139,957.00",Yes
"Housing, Communities & Local Government",MHCLG,04/01/2021,Current (non AEF) Grants to Local Authorities,Local Government Strategy and Analysis,CUMBRIA COUNTY CNCL,,,,211316542,3700082055,,Grant payable by the Exchequer,CA3 8NA,"2,903,136.00",Yes
"Housing, Communities & Local Government",MHCLG,04/01/2021,Current (non AEF) Grants to Local Authorities,Local Government Strategy and Analysis,DAVENTRY DC,,,,239859333,3700082049,,Grant payable by the Exchequer,NN11 5AF,"92,837.00",Yes
"Housing, Communities & Local Government",MHCLG,04/01/2021,Current (non AEF) Grants to Local Authorities,Local Government Strategy and Analysis,DERBYSHIRE DALES DC,,,,,3700082009,,Grant payable by the Exchequer,DE4 3NN,"200,589.00",Yes
"Housing, Communities & Local Government",MHCLG,04/01/2021,Current (non AEF) Grants to Local Authorities,Local Government Strategy and Analysis,DEVON & SOMERSET FIRE & RESCUE SERV,,Large,,424872976,3700082087,,Grant payable by the Exchequer,EX3 0NW,"211,861.00",Yes
"Housing, Communities & Local Government",MHCLG,04/01/2021,Current (non AEF) Grants to Local Authorities,Local Government Strategy and Analysis,DEVON COUNTY CNCL,,,,213754018,3700082028,,Grant payable by the Exchequer,EX2 4QJ,"3,727,656.00",Yes
"Housing, Communities & Local Government",MHCLG,04/01/2021,Current (non AEF) Grants to Local Authorities,Local Government Strategy and Analysis,DORSET COUNCIL,,,,,3700082051,,Grant payable by the Exchequer,DT1 1XJ,"1,179,070.00",Yes
"Housing, Communities & Local Government",MHCLG,04/01/2021,Current (non AEF) Grants to Local Authorities,Local Government Strategy and Analysis,DORSET&WILTSHIRE FIRE & RESCUE AUTH,,Large,,,3700082042,,Grant payable by the Exchequer,SP1 3NR,"24,566.00",Yes
"Housing, Communities & Local Government",MHCLG,04/01/2021,Current (non AEF) Grants to Local Authorities,Local Government Strategy and Analysis,EAST CAMBRIDGESHIRE DC,,,,236472023,3700082094,,Grant payable by the Exchequer,CB7 4PL,"80,803.00",Yes
"Housing, Communities & Local Government",MHCLG,04/01/2021,Current (non AEF) Grants to Local Authorities,Local Government Strategy and Analysis,EAST DEVON DC,,,,,3700082062,,Grant payable by the Exchequer,EX10 8HL,"112,796.00",Yes
"Housing, Communities & Local Government",MHCLG,04/01/2021,Current (non AEF) Grants to Local Authorities,Local Government Strategy and Analysis,EAST LINDSEY DC,,,,,3700082080,,Grant payable by the Exchequer,LN11 8UP,"332,174.00",Yes
"Housing, Communities & Local Government",MHCLG,04/01/2021,Current (non AEF) Grants to Local Authorities,Local Government Strategy and Analysis,EAST NORTHAMPTONSHIRE COUNCIL,,,,227475290,3700082061,,Grant payable by the Exchequer,NN14 4LZ,"16,849.00",Yes
"Housing, Communities & Local Government",MHCLG,04/01/2021,Current (non AEF) Grants to Local Authorities,Local Government Strategy and Analysis,EAST RIDING OF YORKS (HSG),,,,423159987,3700082045,,Grant payable by the Exchequer,HU17 9BA,"932,767.00",Yes
"Housing, Communities & Local Government",MHCLG,04/01/2021,Current (non AEF) Grants to Local Authorities,Local Government Strategy and Analysis,EAST SUFFOLK COUNCIL,,,,,3700082076,,Grant payable by the Exchequer,IP12 1RT,"124,048.00",Yes
"Housing, Communities & Local Government",MHCLG,04/01/2021,Current (non AEF) Grants to Local Authorities,Local Government Strategy and Analysis,EDEN DC (HSG),,,,,3700082027,,Grant payable by the Exchequer,CA11 7QF,"338,819.00",Yes
"Housing, Communities & Local Government",MHCLG,04/01/2021,Current (non AEF) Grants to Local Authorities,Local Government Strategy and Analysis,FOREST OF DEAN DC,,,,211278890,3700082088,,Grant payable by the Exchequer,GL16 8HG,"62,618.00",Yes
"Housing, Communities & Local Government",MHCLG,04/01/2021,Current (non AEF) Grants to Local Authorities,Local Government Strategy and Analysis,HAMBLETON DC (HSG),,,,503481319,3700082014,,Grant payable by the Exchequer,DL6 2UU,"314,421.00",Yes
"Housing, Communities & Local Government",MHCLG,04/01/2021,Current (non AEF) Grants to Local Authorities,Local Government Strategy and Analysis,HARBOROUGH DC (HSG),,,,212935774,3700082053,,Grant payable by the Exchequer,LE16 7AG,"67,150.00",Yes
"Housing, Communities & Local Government",MHCLG,04/01/2021,Current (non AEF) Grants to Local Authorities,Local Government Strategy and Analysis,HARROGATE BC,,,,236660031,3700082007,,Grant payable by the Exchequer,HG1 2SG,"120,217.00",Yes
"Housing, Communities & Local Government",MHCLG,04/01/2021,Current (non AEF) Grants to Local Authorities,Local Government Strategy and Analysis,HEREFORD WORCESTER FIRE AUTHORITY,,Large,,236425484,3700082058,,Grant payable by the Exchequer,WR3 8SP,"54,562.00",Yes
"Housing, Communities & Local Government",MHCLG,04/01/2021,Current (non AEF) Grants to Local Authorities,Local Government Strategy and Analysis,HEREFORDSHIRE COUNCIL,,,,,3700082066,,Grant payable by the Exchequer,HR4 0XH,"2,550,332.00",Yes
"Housing, Communities & Local Government",MHCLG,04/01/2021,Current (non AEF) Grants to Local Authorities,Local Government Strategy and Analysis,HORSHAM DC,,,,229776588,3700082052,,Grant payable by the Exchequer,RH12 1RL,"5,096.00",Yes
"Housing, Communities & Local Government",MHCLG,04/01/2021,Current (non AEF) Grants to Local Authorities,Local Government Strategy and Analysis,HUNTINGDONSHIRE DC,,,,235999216,3700082022,,Grant payable by the Exchequer,PE18 6TN,"21,298.00",Yes
"Housing, Communities & Local Government",MHCLG,04/01/2021,Current (non AEF) Grants to Local Authorities,Local Government Strategy and Analysis,KINGS LYNN & WEST NORFOLK BC,,,,236417671,3700082039,,Grant payable by the Exchequer,PE30 1EX,"231,415.00",Yes
"Housing, Communities & Local Government",MHCLG,04/01/2021,Current (non AEF) Grants to Local Authorities,Local Government Strategy and Analysis,LINCOLNSHIRE COUNTY COUNCIL,,,,,3700082093,,Grant payable by the Exchequer,LN2 1DY,"3,467,462.00",Yes
"Housing, Communities & Local Government",MHCLG,04/01/2021,Current (non AEF) Grants to Local Authorities,Local Government Strategy and Analysis,MALDON DC,,,,424668663,3700082073,,Grant payable by the Exchequer,CM9 7DL,"15,409.00",Yes
"Housing, Communities & Local Government",MHCLG,04/01/2021,Current (non AEF) Grants to Local Authorities,Local Government Strategy and Analysis,MALVERN HILLS DC,,,,227470424,3700082017,,Grant payable by the Exchequer,WR14 3AF,"113,738.00",Yes
"Housing, Communities & Local Government",MHCLG,04/01/2021,Current (non AEF) Grants to Local Authorities,Local Government Strategy and Analysis,MELTON BC,,,,346268340,3700082026,,Grant payable by the Exchequer,LE13 0UL,"90,855.00",Yes
"Housing, Communities & Local Government",MHCLG,04/01/2021,Current (non AEF) Grants to Local Authorities,Local Government Strategy and Analysis,MENDIP DISTRICT COUNCIL,,,,,3700082035,,Grant payable by the Exchequer,BA4 5BA,"121,637.00",Yes
"Housing, Communities & Local Government",MHCLG,04/01/2021,Current (non AEF) Grants to Local Authorities,Local Government Strategy and Analysis,MID DEVON DC,,,,213241137,3700082033,,Grant payable by the Exchequer,EX16 6PP,"233,347.00",Yes
"Housing, Communities & Local Government",MHCLG,04/01/2021,Current (non AEF) Grants to Local Authorities,Local Government Strategy and Analysis,MID SUFFOLK DISTRICT COUNCIL,,,,223387239,3700082081,,Grant payable by the Exchequer,IP6 8DL,"216,492.00",Yes
"Housing, Communities & Local Government",MHCLG,04/01/2021,Current (non AEF) Grants to Local Authorities,Local Government Strategy and Analysis,NEWARK & SHERWOOD DC (HSG),,,,236186755,3700082023,,Grant payable by the Exchequer,NG23 5QX,"18,991.00",Yes
"Housing, Communities & Local Government",MHCLG,04/01/2021,Current (non AEF) Grants to Local Authorities,Local Government Strategy and Analysis,NORFOLK COUNTY COUNCIL,,,,232602789,3700082085,,Grant payable by the Exchequer,NR1 2DW,"1,990,737.00",Yes
"Housing, Communities & Local Government",MHCLG,04/01/2021,Current (non AEF) Grants to Local Authorities,Local Government Strategy and Analysis,NORTH DEVON DC,,,,,3700082050,,Grant payable by the Exchequer,EX32 2GR,"155,095.00",Yes
"Housing, Communities & Local Government",MHCLG,04/01/2021,Current (non AEF) Grants to Local Authorities,Local Government Strategy and Analysis,NORTH KESTEVEN DC,,,,,3700082067,,Grant payable by the Exchequer,NG34 7EF,"179,758.00",Yes
"Housing, Communities & Local Government",MHCLG,04/01/2021,Current (non AEF) Grants to Local Authorities,Local Government Strategy and Analysis,NORTH LINCOLNSHIRE DC (HSG),,Public Bodies,,424005502,3700082090,,Grant payable by the Exchequer,DN16 1AB,"102,758.00",Yes
"Housing, Communities & Local Government",MHCLG,04/01/2021,Current (non AEF) Grants to Local Authorities,Local Government Strategy and Analysis,NORTH NORFOLK DC,,,,239975964,3700082011,,Grant payable by the Exchequer,NR27 9EJ,"241,885.00",Yes
"Housing, Communities & Local Government",MHCLG,04/01/2021,Current (non AEF) Grants to Local Authorities,Local Government Strategy and Analysis,NORTH YORKSHIRE CC (DL7 8AL),,,,,3700082021,,Grant payable by the Exchequer,DL7 8AL,"4,142,352.00",Yes
"Housing, Communities & Local Government",MHCLG,04/01/2021,Current (non AEF) Grants to Local Authorities,Local Government Strategy and Analysis,NORTH YORKSHIRE FIRE & RESCUE AUTH,,Large,,423679778,3700082016,,Grant payable by the Exchequer,DL6 2ND,"257,329.00",Yes
"Housing, Communities & Local Government",MHCLG,04/01/2021,Current (non AEF) Grants to Local Authorities,Local Government Strategy and Analysis,NORTHUMBERLAND COUNTY COUNCIL,,,,210308905,3700082029,,Grant payable by the Exchequer,NE61 2EF,"1,170,125.00",Yes
"Housing, Communities & Local Government",MHCLG,04/01/2021,Current (non AEF) Grants to Local Authorities,Local Government Strategy and Analysis,RIBBLE VALLEY BC,,,,232617894,3700082037,,Grant payable by the Exchequer,BB7 2RA,"53,960.00",Yes
"Housing, Communities & Local Government",MHCLG,04/01/2021,Current (non AEF) Grants to Local Authorities,Local Government Strategy and Analysis,RICHMONDSHIRE DC,,,,232245142,3700082013,,Grant payable by the Exchequer,DL10 4JX,"180,942.00",Yes
"Housing, Communities & Local Government",MHCLG,04/01/2021,Current (non AEF) Grants to Local Authorities,Local Government Strategy and Analysis,ROTHER DC (HSG),,,,,3700082010,,Grant payable by the Exchequer,TN39 3JX,"30,699.00",Yes
"Housing, Communities & Local Government",MHCLG,04/01/2021,Current (non AEF) Grants to Local Authorities,Local Government Strategy and Analysis,RUTLAND CC,,,,,3700082071,,Grant payable by the Exchequer,LE15 6HP,"424,247.00",Yes
"Housing, Communities & Local Government",MHCLG,04/01/2021,Current (non AEF) Grants to Local Authorities,Local Government Strategy and Analysis,RYEDALE DC,,,,,3700082069,,Grant payable by the Exchequer,YO17 7HH,"286,105.00",Yes
"Housing, Communities & Local Government",MHCLG,04/01/2021,Current (non AEF) Grants to Local Authorities,Local Government Strategy and Analysis,SCARBOROUGH BC,,Large,,,3700082060,,Grant payable by the Exchequer,YO11 2HG,"10,364.00",Yes
"Housing, Communities & Local Government",MHCLG,04/01/2021,Current (non AEF) Grants to Local Authorities,Local Government Strategy and Analysis,SELBY DC,,,,239816721,3700082019,,Grant payable by the Exchequer,YO8 9FT,"67,543.00",Yes
"Housing, Communities & Local Government",MHCLG,04/01/2021,Current (non AEF) Grants to Local Authorities,Local Government Strategy and Analysis,SHROPSHIRE & WREKIN FIRE AUTHORITY,,,,424873610,3700082034,,Grant payable by the Exchequer,SY1 2HJ,"159,913.00",Yes
"Housing, Communities & Local Government",MHCLG,04/01/2021,Current (non AEF) Grants to Local Authorities,Local Government Strategy and Analysis,SHROPSHIRE UNITARY AUTHORITY,,,,217036490,3700082092,,Grant payable by the Exchequer,SY2 6ND,"3,307,065.00",Yes
"Housing, Communities & Local Government",MHCLG,04/01/2021,Current (non AEF) Grants to Local Authorities,Local Government Strategy and Analysis,SOMERSET COUNTY CNCL,,,,211229406,3700082065,,Grant payable by the Exchequer,TA1 4DY,"1,201,320.00",Yes
"Housing, Communities & Local Government",MHCLG,04/01/2021,Current (non AEF) Grants to Local Authorities,Local Government Strategy and Analysis,Somerset West and Taunton Council,,,,,3700082020,,Grant payable by the Exchequer,TA1 1HE,"120,753.00",Yes
"Housing, Communities & Local Government",MHCLG,04/01/2021,Current (non AEF) Grants to Local Authorities,Local Government Strategy and Analysis,SOUTH CAMBRIDGESHIRE DC,,,,236369484,3700082072,,Grant payable by the Exchequer,CB23 6EA,"65,328.00",Yes
"Housing, Communities & Local Government",MHCLG,04/01/2021,Current (non AEF) Grants to Local Authorities,Local Government Strategy and Analysis,SOUTH HAMS DC,,,,236445342,3700082040,,Grant payable by the Exchequer,TQ9 5NE,"204,027.00",Yes
"Housing, Communities & Local Government",MHCLG,04/01/2021,Current (non AEF) Grants to Local Authorities,Local Government Strategy and Analysis,SOUTH HOLLAND,,,,236445383,3700082043,,Grant payable by the Exchequer,PE11 2XE,"79,594.00",Yes
"Housing, Communities & Local Government",MHCLG,04/01/2021,Current (non AEF) Grants to Local Authorities,Local Government Strategy and Analysis,SOUTH KESTEVEN DC (HSG),,,,227470747,3700082044,,Grant payable by the Exchequer,NG31 6PZ,"147,306.00",Yes
"Housing, Communities & Local Government",MHCLG,04/01/2021,Current (non AEF) Grants to Local Authorities,Local Government Strategy and Analysis,SOUTH LAKELAND DC,,Large,,236445466,3700082025,,Grant payable by the Exchequer,LA9 4DQ,"216,772.00",Yes
"Housing, Communities & Local Government",MHCLG,04/01/2021,Current (non AEF) Grants to Local Authorities,Local Government Strategy and Analysis,SOUTH NORFOLK DC,,,,232605717,3700082079,,Grant payable by the Exchequer,NR15 2XE,"142,601.00",Yes
"Housing, Communities & Local Government",MHCLG,04/01/2021,Current (non AEF) Grants to Local Authorities,Local Government Strategy and Analysis,SOUTH NORTHAMPTONSHIRE DC,,,,,3700082064,,Grant payable by the Exchequer,NN12 7AE,"94,307.00",Yes
"Housing, Communities & Local Government",MHCLG,04/01/2021,Current (non AEF) Grants to Local Authorities,Local Government Strategy and Analysis,SOUTH OXFORDSHIRE DC,,,,212296766,3700082082,,Grant payable by the Exchequer,OX10 8HQ,"21,114.00",Yes
"Housing, Communities & Local Government",MHCLG,04/01/2021,Current (non AEF) Grants to Local Authorities,Local Government Strategy and Analysis,SOUTH SOMERSET DC,,,,239850811,3700082012,,Grant payable by the Exchequer,BA20 2DS,"83,142.00",Yes
"Housing, Communities & Local Government",MHCLG,04/01/2021,Current (non AEF) Grants to Local Authorities,Local Government Strategy and Analysis,STAFFORD BC,,,,227476934,3700082041,,Grant payable by the Exchequer,ST16 3AQ,"12,571.00",Yes
"Housing, Communities & Local Government",MHCLG,04/01/2021,Current (non AEF) Grants to Local Authorities,Local Government Strategy and Analysis,STAFFORDSHIRE MOORLANDS DC,,,,232749775,3700082084,,Grant payable by the Exchequer,ST13 6HQ,"30,226.00",Yes
"Housing, Communities & Local Government",MHCLG,04/01/2021,Current (non AEF) Grants to Local Authorities,Local Government Strategy and Analysis,STRATFORD ON AVON DC,,,,227473881,3700082059,,Grant payable by the Exchequer,CV37 6HX,"149,557.00",Yes
"Housing, Communities & Local Government",MHCLG,04/01/2021,Current (non AEF) Grants to Local Authorities,Local Government Strategy and Analysis,SUFFOLK CC (SOCIAL CARE SERV) (H,,,,385614821,3700082083,,Grant payable by the Exchequer,IP4 1LH,"1,086,215.00",Yes
"Housing, Communities & Local Government",MHCLG,04/01/2021,Current (non AEF) Grants to Local Authorities,Local Government Strategy and Analysis,TEIGNBRIDGE DC,,,,236440475,3700082089,,Grant payable by the Exchequer,TQ12 4XX,"24,100.00",Yes
"Housing, Communities & Local Government",MHCLG,04/01/2021,Current (non AEF) Grants to Local Authorities,Local Government Strategy and Analysis,TEWKESBURY BC,,,,232740399,3700082063,,Grant payable by the Exchequer,GL20 5TT,"6,889.00",Yes
"Housing, Communities & Local Government",MHCLG,04/01/2021,Current (non AEF) Grants to Local Authorities,Local Government Strategy and Analysis,TORRIDGE DC,,,,,3700082075,,Grant payable by the Exchequer,EX39 2QG,"236,949.00",Yes
"Housing, Communities & Local Government",MHCLG,04/01/2021,Current (non AEF) Grants to Local Authorities,Local Government Strategy and Analysis,UTTLESFORD DC,,,,424423242,3700082024,,Grant payable by the Exchequer,CB11 4ER,"139,734.00",Yes
"Housing, Communities & Local Government",MHCLG,04/01/2021,Current (non AEF) Grants to Local Authorities,Local Government Strategy and Analysis,VALE OF WHITE HORSE DC,,,,,3700082038,,Grant payable by the Exchequer,OX14 4SB,"4,551.00",Yes
"Housing, Communities & Local Government",MHCLG,04/01/2021,Current (non AEF) Grants to Local Authorities,Local Government Strategy and Analysis,WEALDEN DC,,,,232688697,3700082048,,Grant payable by the Exchequer,BN22 9LN,"103,283.00",Yes
"Housing, Communities & Local Government",MHCLG,04/01/2021,Current (non AEF) Grants to Local Authorities,Local Government Strategy and Analysis,WEST DEVON BC,,,,234002095,3700082036,,Grant payable by the Exchequer,PL19 0BZ,"232,182.00",Yes
"Housing, Communities & Local Government",MHCLG,04/01/2021,Current (non AEF) Grants to Local Authorities,Local Government Strategy and Analysis,WEST LINDSEY DC,,,,227471026,3700082070,,Grant payable by the Exchequer,DN21 2NA,"237,125.00",Yes
"Housing, Communities & Local Government",MHCLG,04/01/2021,Current (non AEF) Grants to Local Authorities,Local Government Strategy and Analysis,WEST OXFORDSHIRE DC,,,,210401379,3700082057,,Grant payable by the Exchequer,OX28 1NB,"63,478.00",Yes
"Housing, Communities & Local Government",MHCLG,04/01/2021,Current (non AEF) Grants to Local Authorities,Local Government Strategy and Analysis,WEST SUFFOLK DC,,,,,3700082054,,Grant payable by the Exchequer,IP33 3YU,"86,438.00",Yes
"Housing, Communities & Local Government",MHCLG,04/01/2021,Current (non AEF) Grants to Local Authorities,Local Government Strategy and Analysis,WILTSHIRE COUNCIL,,,,211341656,3700082078,,Grant payable by the Exchequer,BA14 4DS,"1,658,039.00",Yes
"Housing, Communities & Local Government",MHCLG,04/01/2021,Current (non AEF) Grants to Local Authorities,Local Government Strategy and Analysis,WINCHESTER CITY CNCL,,,,228838280,3700082056,,Grant payable by the Exchequer,SO23 9LJ,"23,154.00",Yes
"Housing, Communities & Local Government",MHCLG,04/01/2021,Current (non AEF) Grants to Local Authorities,Local Government Strategy and Analysis,WYCHAVON DISTRICT COUNCIL,,,,232257139,3700082046,,Grant payable by the Exchequer,WR10 1PT,"27,582.00",Yes
"Housing, Communities & Local Government",MHCLG,04/01/2021,Current (non AEF) Grants to Local Authorities,Stronger Places,GREATER MANCHESTER COMB AUT,,Public Bodies,,424873172,2100308260,,Grant payment,M27 8US,"1,943,218.00",Yes
"Housing, Communities & Local Government",MHCLG,04/01/2021,Current (non AEF) Grants to Local Authorities,Stronger Places,LIVERPOOL CITY REGION COMB AUTH,,Large,,,2100308261,,Grant payment,L69 3HN,"1,345,952.00",Yes
"Housing, Communities & Local Government",MHCLG,04/01/2021,Current (non AEF) Grants to Local Authorities,Stronger Places,NEWCASTLE UPON TYNE,,Small,,,2100308263,,Grant payment,NE1 8QH,"550,999.00",Yes
"Housing, Communities & Local Government",MHCLG,04/01/2021,Current (non AEF) Grants to Local Authorities,Stronger Places,SHEFFIELD COMBINED AUTHORITY,,,,,2100308262,,Grant payment,S1 2BQ,"841,220.00",Yes
"Housing, Communities & Local Government",MHCLG,04/01/2021,Current (non AEF) Grants to Local Authorities,Stronger Places,TEES VALLEY COMBINED AUTHORITY,,,,,2100308264,,Grant payment,TS17 6QY,"492,114.00",Yes
"Housing, Communities & Local Government",MHCLG,04/01/2021,Current (non AEF) Grants to Local Authorities,Stronger Places,WEST MIDLANDS COMBINED AUTHORITY,,Large,,,2100308259,,Grant payment,B19 3SD,"2,826,498.00",Yes
"Housing, Communities & Local Government",MHCLG,04/01/2021,Fees,CFO and Corporate,Buck Consultants Limited,,Large,,,5106267046,Financial,Provision of Greensbury calculations,EC2V 7AF,"5,400.00",
"Housing, Communities & Local Government",MHCLG,04/01/2021,Printing,Stronger Places,STATIONERY OFFICE LTD,,Large,,779375633,5106267063,Printing Services,Statutory Instru NON VAT(20-21),NR3 1PD,305.00,
"Housing, Communities & Local Government",MHCLG,04/01/2021,Printing,Stronger Places,STATIONERY OFFICE LTD,,Large,,779375633,5106267063,Printing Services,Statutory Instruments Print - VAT(20-21),NR3 1PD,174.00,
"Housing, Communities & Local Government",MHCLG,04/01/2021,Printing,Stronger Places,STATIONERY OFFICE LTD,,Large,,779375633,5106267064,Printing Services,Statutory Instru NON VAT(20-21),NR3 1PD,305.00,
"Housing, Communities & Local Government",MHCLG,04/01/2021,Printing,Stronger Places,STATIONERY OFFICE LTD,,Large,,779375633,5106267064,Printing Services,Statutory Instruments Print - VAT(20-21),NR3 1PD,174.00,
"Housing, Communities & Local Government",MHCLG,05/01/2021,Agency Staff,Building Safety Grenfell & Net Zero,ALEXANDER MANN SOLUTIONS LTD,,Large,,,5106267084,Contingent Labour,Contingent labour,EC2N 3AQ,"1,732.66",
"Housing, Communities & Local Government",MHCLG,05/01/2021,Agency Staff,Local Government Strategy and Analysis,ALEXANDER MANN SOLUTIONS LTD,,Large,,,5106267084,Contingent Labour,Contingent labour,EC2N 3AQ,"1,732.64",
"Housing, Communities & Local Government",MHCLG,05/01/2021,IT - Service Contracts,CFO and Corporate,LITTLE FISH(UK)T/A LITTLE FISH,,Medium,,,5106267089,IT Managed / Outsourced Services,Servicedesk / Tier2 provision,NG1 1LS,"69,234.55",
"Housing, Communities & Local Government",MHCLG,05/01/2021,IT Consultancy,Building Safety Grenfell & Net Zero,Criteria Fieldwork Ltd,,Small,,,5106266992,Consultancy,User Research Subjects,N1 1LA,"1,830.76",
"Housing, Communities & Local Government",MHCLG,05/01/2021,Licence Fees/Levies,CFO and Corporate,BYTES SOFTWARE SERVICES LTD,,Medium,,225273754,5106266574,Software,Creative Cloud,KT22 7TW,679.37,
"Housing, Communities & Local Government",MHCLG,05/01/2021,Professional services,Building Safety Grenfell & Net Zero,On-Pole Limited,,Micro,,,5106267065,Technical Services,BSP Technical Guidance Author,BS40 6LB,"1,620.00",
"Housing, Communities & Local Government",MHCLG,05/01/2021,Software Licences,CFO and Corporate,BYTES SOFTWARE SERVICES LTD,,Medium,,225273754,5106266785,Software,JAWS 2021 Professional,KT22 7TW,"1,190.42",
"Housing, Communities & Local Government",MHCLG,05/01/2021,Software Licences,CFO and Corporate,Delib Limited,,Small,,,5106266257,Software,Citizen Space 12 month subscription,BS1 4JZ,"17,994.00",
"Housing, Communities & Local Government",MHCLG,05/01/2021,Software Licences,CFO and Corporate,"Tactivos, Inc. dba MURAL",,Large,,,5106266663,Software,45 annual licenses,94108,"8,107.34",
"Housing, Communities & Local Government",MHCLG,05/01/2021,Web Services,Stronger Places,DEXTROUS WEB LTD,,Micro,,211267270,5106267072,ICT Services,February Hosting,N1 7NG,"1,746.60",
"Housing, Communities & Local Government",MHCLG,06/01/2021,Agency Staff,Local Government Strategy and Analysis,GREEN PARK INTERIM & EXECUTIVE,,Small,,348738829,5106267121,Business Process Outsourcing Services,Contingent Labour,W1K 4EG,"19,098.56",
"Housing, Communities & Local Government",MHCLG,06/01/2021,Cap Grants to Local Authorities (DEL),Stronger Places,TEES VALLEY COMBINED AUTHORITY,,,,,2100308226,,Support for economic regeneration at Teesworks,TS17 6QY,"2,121,000.00",Yes
"Housing, Communities & Local Government",MHCLG,06/01/2021,Copyright Licences,CFO and Corporate,HOME OFFICE,,,,,5106267094,Legal,Civil Service Investigation Service charge,NP20 9BB,"1,874.88",
"Housing, Communities & Local Government",MHCLG,06/01/2021,EXP � PURCHASE OF GOODS /SERVICES R & D,Building Safety Grenfell & Net Zero,BUILDING RESEARCH ESTABLISHMENT,,Large,,896495033,5106267123,Research,investigation of real fires,WD25 9XX,"2,160.00",
"Housing, Communities & Local Government",MHCLG,06/01/2021,EXP � PURCHASE OF GOODS /SERVICES R & D,Local Government Strategy and Analysis,AMION CONSULTING,,Small,,239196780,5106267099,Research,Research - Additionality of Housing Schemes,L3 9DG,"6,210.00",
"Housing, Communities & Local Government",MHCLG,06/01/2021,EXP � PURCHASE OF GOODS /SERVICES R & D,Local Government Strategy and Analysis,KANTAR UK LTD,Yes,Large,,230399040,5106267062,Research,NATIONAL EVALUATION OF ICF,W5 1UA,"34,882.94",
"Housing, Communities & Local Government",MHCLG,06/01/2021,EXP � PURCHASE OF GOODS /SERVICES R & D,Local Government Strategy and Analysis,RIGHTMOVE,,Large,,,5106267110,Research,Research - Housing Market Indicator,MK16 1AJ,"3,000.00",
"Housing, Communities & Local Government",MHCLG,06/01/2021,"IT - PC, Network & Hardware",CFO and Corporate,DCLG GOVERNMENT PROCUREMENT CARD,,,,,1000004882,ICT Hardware,Trivia for Slack software,TN37 7GA,389.01,
"Housing, Communities & Local Government",MHCLG,06/01/2021,IT - Service Contracts,CFO and Corporate,IAME LTD,,Small,,,5106267095,IT Managed / Outsourced Services,Identity Management Integration,N14 6LD,"8,800.00",
"Housing, Communities & Local Government",MHCLG,06/01/2021,IT - Service Contracts,Stronger Places,AGENTO DIGITAL LTD,,Micro,,222937959,5106267112,IT Managed / Outsourced Services,Intranet Hosting and Support for 2yrs,IG8 7RF,"3,204.00",
"Housing, Communities & Local Government",MHCLG,06/01/2021,Recruitment,CFO and Corporate,CABINET OFFICE,,Public Bodies,,232159186,5106267107,Business Process Outsourcing Services,Recruitment Costs,FY5 3TA,"63,360.00",
"Housing, Communities & Local Government",MHCLG,06/01/2021,Recruitment,CFO and Corporate,CABINET OFFICE,,Public Bodies,,232159186,5106267118,Business Process Outsourcing Services,FINANCE FAST STREAM 2020/21,FY5 3TA,300.00,
"Housing, Communities & Local Government",MHCLG,06/01/2021,Steady State Service Provision,Building Safety Grenfell & Net Zero,ATKINS LTD,,Large,,293650339,5106267106,Business Process Outsourcing Services,Accreditaion Scheme Audit Contract,KT18 5BW,"9,730.80",
"Housing, Communities & Local Government",MHCLG,06/01/2021,Steady State Service Provision,Building Safety Grenfell & Net Zero,PLOWMAN CRAVEN LIMITED,,Medium,,,5106267111,Business Process Outsourcing Services,Grenfell Tower Surveying services,AL5 5EQ,"11,419.20",
"Housing, Communities & Local Government",MHCLG,06/01/2021,Steady State Service Provision,CFO and Corporate,ALLPAY LIMITED,,Medium,,738359918,5106267105,Business Process Outsourcing Services,BACS Bureau Service 12 months,HR1 3SE,"1,134.00",
"Housing, Communities & Local Government",MHCLG,06/01/2021,Steady State Service Provision,Local Government Strategy and Analysis,GREEN PARK INTERIM & EXECUTIVE,,Small,,348738829,5106267104,Business Process Outsourcing Services,Contingent Labour,W1K 4EG,998.40,
"Housing, Communities & Local Government",MHCLG,06/01/2021,Web Services,Building Safety Grenfell & Net Zero,BIG BLUE DOOR,,Micro,,,5106267091,IT Managed / Outsourced Services,Website or Grenfell Tower Memori,SE1 2PZ,"1,800.00",
"Housing, Communities & Local Government",MHCLG,06/01/2021,Web Services,Building Safety Grenfell & Net Zero,BIG BLUE DOOR,,Micro,,,5106267092,IT Managed / Outsourced Services,Website or Grenfell Tower Memori,SE1 2PZ,600.00,
"Housing, Communities & Local Government",MHCLG,07/01/2021,Agency Staff,Stronger Places,ALEXANDER MANN SOLUTIONS LTD,,Large,,,5106267151,Contingent Labour,interim manager,EC2N 3AQ,"1,016.28",
"Housing, Communities & Local Government",MHCLG,07/01/2021,Agency Staff,Stronger Places,ALEXANDER MANN SOLUTIONS LTD,,Large,,,5106267152,Contingent Labour,interim manager,EC2N 3AQ,"1,016.28",
"Housing, Communities & Local Government",MHCLG,07/01/2021,Agency Staff,Stronger Places,ALEXANDER MANN SOLUTIONS LTD,,Large,,,5106267153,Contingent Labour,interim manager,EC2N 3AQ,"1,016.28",
"Housing, Communities & Local Government",MHCLG,07/01/2021,Agency Staff,Stronger Places,ALEXANDER MANN SOLUTIONS LTD,,Large,,,5106267154,Contingent Labour,interim manager,EC2N 3AQ,"1,016.28",
"Housing, Communities & Local Government",MHCLG,07/01/2021,ERDF Work in Progress � Capital,Stronger Places,LEICESTER CITY COUNCIL,,,,,7700007987,,ERDF grant payment,LE1 1FZ,"10,997.42",Yes
"Housing, Communities & Local Government",MHCLG,07/01/2021,ERDF Work in Progress � Capital,Stronger Places,WAKEFIELD COUNCIL,,,,,7700007981,,ERDF grant payment,WF1 2EB,"7,769.93",Yes
"Housing, Communities & Local Government",MHCLG,07/01/2021,ERDF Work in Progress � Resource,Stronger Places,DERBY UNIVERSITY,,,,,7700007982,,ERDF grant payment,DE22 1GB,"33,341.70",Yes
"Housing, Communities & Local Government",MHCLG,07/01/2021,ERDF Work in Progress � Resource,Stronger Places,LEICESTER CITY COUNCIL,,,,,7700007986,,ERDF grant offset,LE1 1FZ,-388.88,Yes
"Housing, Communities & Local Government",MHCLG,07/01/2021,ERDF Work in Progress � Resource,Stronger Places,LEICESTER CITY COUNCIL,,,,,7700007987,,ERDF grant payment,LE1 1FZ,"96,551.74",Yes
"Housing, Communities & Local Government",MHCLG,07/01/2021,ERDF Work in Progress � Resource,Stronger Places,LIVERPOOL CITY REGION COMB AUTH,,,,,7700007980,,ERDF grant payment,L3 1FZ,"17,774.90",Yes
"Housing, Communities & Local Government",MHCLG,07/01/2021,ERDF Work in Progress � Resource,Stronger Places,University of Leicester,,,,,7700007985,,ERDF grant payment,LE1 7RH,"53,019.25",Yes
"Housing, Communities & Local Government",MHCLG,07/01/2021,ERDF Work in Progress � Resource,Stronger Places,UNIVERSITY OF YORK,,,,,7700007984,,ERDF grant payment,YO10 5DD,"141,359.75",Yes
"Housing, Communities & Local Government",MHCLG,07/01/2021,ERDF Work in Progress � Resource,Stronger Places,WAKEFIELD COUNCIL,,,,,7700007981,,ERDF grant payment,WF1 2EB,"15,924.10",Yes
"Housing, Communities & Local Government",MHCLG,07/01/2021,ERDF Work in Progress � Resource,Stronger Places,WAKEFIELD COUNCIL,,,,,7700007988,,ERDF grant payment,WF1 2EB,"45,200.07",Yes
"Housing, Communities & Local Government",MHCLG,07/01/2021,Grant in Aid to NDPBs (non budget),Local Government Strategy and Analysis,VALUATION TRIBUNAL SERVICE,,,,211218366,2100308416,,GIA to VTS,E1 8EU,"500,000.00",Yes
"Housing, Communities & Local Government",MHCLG,07/01/2021,"IT - PC, Network & Hardware",Building Safety Grenfell & Net Zero,X M A LTD,,Large,,298484148,5106267124,ICT Hardware,MacBook Pro,NG11 7EP,"4,599.04",
"Housing, Communities & Local Government",MHCLG,07/01/2021,"IT - PC, Network & Hardware",CFO and Corporate,X M A LTD,,Large,,298484148,5106267141,ICT Hardware,Hastings Decom Engineer,NG11 7EP,390.00,
"Housing, Communities & Local Government",MHCLG,07/01/2021,"IT - PC, Network & Hardware",CFO and Corporate,X M A LTD,,Large,,298484148,5106267142,ICT Hardware,IT equipment,NG11 7EP,"1,194.00",
"Housing, Communities & Local Government",MHCLG,07/01/2021,"IT - PC, Network & Hardware",CFO and Corporate,X M A LTD,,Large,,298484148,5106267146,ICT Hardware,IT equipment,NG11 7EP,390.00,
"Housing, Communities & Local Government",MHCLG,07/01/2021,IT - Service Contracts,Stronger Places,RISUAL LIMITED,,Medium,,,5106267149,Consultancy,MHCLG Dashboard Support Services,ST18 0WP,"1,413.60",
"Housing, Communities & Local Government",MHCLG,07/01/2021,Management Consultancy,Stronger Places,PRICEWATERHOUSECOOPERS LLP,,Large,,230101714,5106265736,Consultancy,PWC support to MHCLG Covid Response,SE1 2RD,"85,389.60",
"Housing, Communities & Local Government",MHCLG,07/01/2021,Physical Storage,CFO and Corporate,IRON MOUNTAIN (UK) LIMITED,,Large,,501338354,5106267135,Warehousing and Storage,Storage Costs,EH54 7DF,717.30,
"Housing, Communities & Local Government",MHCLG,07/01/2021,Property/Estates Consultancy,Building Safety Grenfell & Net Zero,FAITHFUL&GOULD LTD,,Large,,,5106267148,Consultancy,Multidisciplinary Technical Advisor,KT18 5BW,"105,906.00",
"Housing, Communities & Local Government",MHCLG,07/01/2021,Recruitment,CFO and Corporate,CABINET OFFICE,,Public Bodies,,232159186,5106267137,Business Process Outsourcing Services,Recruitment Costs,FY5 3TA,"294,417.00",
"Housing, Communities & Local Government",MHCLG,07/01/2021,Recruitment,CFO and Corporate,CABINET OFFICE,,Public Bodies,,232159186,5106267138,Business Process Outsourcing Services,Recruitment Costs,FY5 3TA,"288,376.00",
"Housing, Communities & Local Government",MHCLG,07/01/2021,Recruitment,CFO and Corporate,ODGERS BERNDTSON,,Large,,640828208,5106267159,Business Process Outsourcing Services,x1 Homes England Chair role,EC4M 6XD,292.58,
"Housing, Communities & Local Government",MHCLG,07/01/2021,Recruitment,CFO and Corporate,ODGERS BERNDTSON,,Large,,640828208,5106267159,Business Process Outsourcing Services,Recruitment Costs,EC4M 6XD,"20,107.42",
"Housing, Communities & Local Government",MHCLG,07/01/2021,Training,CFO and Corporate,CIRCLEINDIGO LTD,,Small,,,5106267125,Development and Training,Civil Service Training,CT10 1HN,"3,000.00",
"Housing, Communities & Local Government",MHCLG,07/01/2021,Training,CFO and Corporate,LEADERSHIP CENTRE FOR LOCAL GMNT,,Public Bodies,,,5106267133,Development and Training,Civil Service Training,SW1P 3HZ,"7,900.00",
"Housing, Communities & Local Government",MHCLG,07/01/2021,Training,Housing & Planning,Heriot-Watt University,,Large,,,5106267132,Development and Training,Civil Service Training,EH14 4AS,"5,600.00",
"Housing, Communities & Local Government",MHCLG,07/01/2021,Training,Housing & Planning,KNOWLEDGEPOOL GROUP LIMITED,,Medium,,737096441,5106267108,Development and Training,Civil Service Training,RG1 8LS,"12,988.01",
"Housing, Communities & Local Government",MHCLG,08/01/2021,Accommodation Service Charges,CFO and Corporate,GOVERNMENT PROPERTY AGENCY,,Medium,,,5106267207,Business Support,Warrington Estates Project (non vat),B2 5LS,"332,226.79",
"Housing, Communities & Local Government",MHCLG,08/01/2021,ERDF Work in Progress � Capital,Stronger Places,CENTRE FOR PROCESS INNOVATION LTD,,Large,,,7700007991,,ERDF grant payment,TS10 4RF,"80,013.90",Yes
"Housing, Communities & Local Government",MHCLG,08/01/2021,ERDF Work in Progress � Capital,Stronger Places,CENTRE FOR PROCESS INNOVATION LTD,,Large,,,7700007993,,ERDF grant offset,TS10 4RF,"-6,599.90",Yes
"Housing, Communities & Local Government",MHCLG,08/01/2021,ERDF Work in Progress � Capital,Stronger Places,FOLKESTONE & HYTHE DC,,,,,7700007997,,ERDF grant payment,CT20 2QY,"1,819.14",Yes
"Housing, Communities & Local Government",MHCLG,08/01/2021,ERDF Work in Progress � Capital,Stronger Places,Krowji Ltd,,,,,7700007992,,ERDF grant payment,TR15 3AJ,"143,680.63",Yes
"Housing, Communities & Local Government",MHCLG,08/01/2021,ERDF Work in Progress � Capital,Stronger Places,Krowji Ltd,,,,,7700007998,,ERDF grant payment,TR15 3AJ,"136,861.12",Yes
"Housing, Communities & Local Government",MHCLG,08/01/2021,ERDF Work in Progress � Resource,Stronger Places,CENTRE FOR PROCESS INNOVATION LTD,,Large,,,7700007990,,ERDF grant payment,TS10 4RF,"176,457.17",Yes
"Housing, Communities & Local Government",MHCLG,08/01/2021,ERDF Work in Progress � Resource,Stronger Places,CENTRE FOR PROCESS INNOVATION LTD,,Large,,,7700007991,,ERDF grant payment,TS10 4RF,"152,778.11",Yes
"Housing, Communities & Local Government",MHCLG,08/01/2021,ERDF Work in Progress � Resource,Stronger Places,CENTRE FOR PROCESS INNOVATION LTD,,Large,,,7700007994,,ERDF grant payment,TS10 4RF,"183,932.66",Yes
"Housing, Communities & Local Government",MHCLG,08/01/2021,ERDF Work in Progress � Resource,Stronger Places,EAST LANCASHIRE CHAMBER&COMMERCE,,,,,7700007989,,ERDF grant payment,BB5 5JR,"48,422.89",Yes
"Housing, Communities & Local Government",MHCLG,08/01/2021,ERDF Work in Progress � Resource,Stronger Places,EAST LANCASHIRE CHAMBER&COMMERCE,,,,,7700007996,,ERDF grant payment,BB5 5JR,"28,450.21",Yes
"Housing, Communities & Local Government",MHCLG,08/01/2021,ERDF Work in Progress � Resource,Stronger Places,FOLKESTONE & HYTHE DC,,,,,7700007997,,ERDF grant payment,CT20 2QY,"18,210.91",Yes
"Housing, Communities & Local Government",MHCLG,08/01/2021,ERDF Work in Progress � Resource,Stronger Places,Krowji Ltd,,,,,7700007992,,ERDF grant payment,TR15 3AJ,"1,322.60",Yes
"Housing, Communities & Local Government",MHCLG,08/01/2021,ERDF Work in Progress � Resource,Stronger Places,Krowji Ltd,,,,,7700007998,,ERDF grant payment,TR15 3AJ,"1,419.77",Yes
"Housing, Communities & Local Government",MHCLG,08/01/2021,ERDF Work in Progress � Resource,Stronger Places,OXFORD INNOVATION SERVICES LTD,,Medium,,,7700007995,,ERDF grant payment,OX1 1BY,"197,624.89",Yes
"Housing, Communities & Local Government",MHCLG,08/01/2021,EXP � PURCHASE OF GOODS /SERVICES R & D,Stronger Places,BEHAVIOURAL INSIGHTS LTD,,Large,,,5106267212,Research,Review to deliver CO2 net0 & sustainability,SW1H 9NP,"13,770.00",
"Housing, Communities & Local Government",MHCLG,08/01/2021,IT - Service Contracts,CFO and Corporate,ARCUS CLOUD SERVICES LTD,,Medium,,,5106267203,IT Managed / Outsourced Services,ITMP AWS Hosting,CB4 2HY,"7,932.11",
"Housing, Communities & Local Government",MHCLG,08/01/2021,IT - Service Contracts,CFO and Corporate,CENTURYLINK COMMUNICATIONS UK LTD,,Large,,,5106267201,IT Managed / Outsourced Services,PSN Assured Cloud Connect AWS Yr1FY20/21,EC4M 7RB,"1,367.00",
"Housing, Communities & Local Government",MHCLG,08/01/2021,IT - Service Contracts,Local Government Strategy and Analysis,ARCUS CLOUD SERVICES LTD,,Medium,,,5106267204,IT Managed / Outsourced Services,Data Analytics Platform,CB4 2HY,"55,234.45",
"Housing, Communities & Local Government",MHCLG,08/01/2021,IT - Software Maintenance,CFO and Corporate,INTERQUEST GROUP UK LIMITED,,Large,,423935241,5106267196,IT Managed / Outsourced Services,SAP Support Services Var13,EC4R 0AN,642.00,
"Housing, Communities & Local Government",MHCLG,08/01/2021,IT - Software Maintenance,CFO and Corporate,SOFTWIRE TECHNOLOGY LTD,,Medium,,,5106267180,IT Managed / Outsourced Services,Troubled Families and Continuous Recording (CORE) costs,NW5 1TL,"7,140.00",
"Housing, Communities & Local Government",MHCLG,08/01/2021,IT - Software Maintenance,CFO and Corporate,SOFTWIRE TECHNOLOGY LTD,,Medium,,,5106267180,IT Managed / Outsourced Services,Troubled Families and Continuous Recording (CORE) costs,NW5 1TL,"8,400.00",
"Housing, Communities & Local Government",MHCLG,08/01/2021,IT - Software Maintenance,CFO and Corporate,SOFTWIRE TECHNOLOGY LTD,,Medium,,,5106267182,IT Managed / Outsourced Services,Troubled Families and Continuous Recording (CORE) costs,NW5 1TL,"8,400.00",
"Housing, Communities & Local Government",MHCLG,08/01/2021,IT Maintenance,CFO and Corporate,DAISY CORPORATE SERVICES TRADING LT,,Large,,,5106267202,ICT Services,Estates work during extension period,BB9 5SR,"13,088.90",
"Housing, Communities & Local Government",MHCLG,08/01/2021,Repayments of LA Grant (Cap),Stronger Places,DERBY CITY COUNCIL,,Large,,229641378,2300003174,,Grant Recovery,DE1 2FS,"-70,421.35",
"Housing, Communities & Local Government",MHCLG,08/01/2021,Services provided by other Govt Orgs,CFO and Corporate,CABINET OFFICE,,Public Bodies,,232159186,5106267167,Financial,Annual fees for Expert HR Services from,FY5 3TA,"167,877.82",Yes
"Housing, Communities & Local Government",MHCLG,08/01/2021,Steady State Service Provision,CFO and Corporate,EDENRED (UK GROUP) LTD,,Large,,210186342,5106267195,Business Process Outsourcing Services,EPS Vouchers 20/21,SW1V 2RS,"15,005.00",
"Housing, Communities & Local Government",MHCLG,08/01/2021,Training,Local Government Strategy and Analysis,JUMPING RIVERS LTD,,Micro,,,5106267205,Development and Training,Civil Service Training,NE4 5TJ,900.00,
"Housing, Communities & Local Government",MHCLG,08/01/2021,Web Services,Stronger Places,DESTINATION CMS LTD,,Small,,,5106267206,ICT Services,Great British High Streets Website updat,EX4 3SR,360.00,
"Housing, Communities & Local Government",MHCLG,11/01/2021,Agency Staff,Building Safety Grenfell & Net Zero,ALEXANDER MANN SOLUTIONS LTD,,Large,,,5106267227,Contingent Labour,Contingent labour,EC2N 3AQ,"1,170.28",
"Housing, Communities & Local Government",MHCLG,11/01/2021,Agency Staff,Building Safety Grenfell & Net Zero,ALEXANDER MANN SOLUTIONS LTD,,Large,,,5106267235,Contingent Labour,Contingent labour,EC2N 3AQ,"1,385.83",
"Housing, Communities & Local Government",MHCLG,11/01/2021,Agency Staff,Building Safety Grenfell & Net Zero,ALEXANDER MANN SOLUTIONS LTD,,Large,,,5106267237,Contingent Labour,Contingent labour,EC2N 3AQ,"1,039.58",
"Housing, Communities & Local Government",MHCLG,11/01/2021,Agency Staff,Building Safety Grenfell & Net Zero,ALEXANDER MANN SOLUTIONS LTD,,Large,,,5106267240,Contingent Labour,Contingent labour,EC2N 3AQ,"1,108.66",
"Housing, Communities & Local Government",MHCLG,11/01/2021,Agency Staff,Building Safety Grenfell & Net Zero,ALEXANDER MANN SOLUTIONS LTD,,Large,,,5106267244,Contingent Labour,Short term backfill contractor,EC2N 3AQ,"1,701.14",
"Housing, Communities & Local Government",MHCLG,11/01/2021,Agency Staff,Building Safety Grenfell & Net Zero,ALEXANDER MANN SOLUTIONS LTD,,Large,,,5106267245,Contingent Labour,Contingent labour,EC2N 3AQ,"1,857.74",
"Housing, Communities & Local Government",MHCLG,11/01/2021,Agency Staff,Building Safety Grenfell & Net Zero,ALEXANDER MANN SOLUTIONS LTD,,Large,,,5106267247,Contingent Labour,Short term backfill contractor,EC2N 3AQ,"2,402.14",
"Housing, Communities & Local Government",MHCLG,11/01/2021,Agency Staff,Building Safety Grenfell & Net Zero,ALEXANDER MANN SOLUTIONS LTD,,Large,,,5106267249,Contingent Labour,Contingent labour,EC2N 3AQ,"2,008.30",
"Housing, Communities & Local Government",MHCLG,11/01/2021,Agency Staff,Building Safety Grenfell & Net Zero,ALEXANDER MANN SOLUTIONS LTD,,Large,,,5106267251,Not Addressable,Short term backfill contractor,EC2N 3AQ,"4,527.10",
"Housing, Communities & Local Government",MHCLG,11/01/2021,Agency Staff,Building Safety Grenfell & Net Zero,ALEXANDER MANN SOLUTIONS LTD,,Large,,,5106267260,Contingent Labour,Contingent labour,EC2N 3AQ,787.58,
"Housing, Communities & Local Government",MHCLG,11/01/2021,Agency Staff,CFO and Corporate,ALEXANDER MANN SOLUTIONS LTD,,Large,,,5106267224,Contingent Labour,Contingent labour,EC2N 3AQ,"3,024.29",
"Housing, Communities & Local Government",MHCLG,11/01/2021,Agency Staff,CFO and Corporate,ALEXANDER MANN SOLUTIONS LTD,,Large,,,5106267226,Contingent Labour,Contingent labour,EC2N 3AQ,"4,536.43",
"Housing, Communities & Local Government",MHCLG,11/01/2021,Agency Staff,CFO and Corporate,ALEXANDER MANN SOLUTIONS LTD,,Large,,,5106267228,Contingent Labour,Contingent labour,EC2N 3AQ,"1,899.14",
"Housing, Communities & Local Government",MHCLG,11/01/2021,Agency Staff,CFO and Corporate,ALEXANDER MANN SOLUTIONS LTD,,Large,,,5106267229,Contingent Labour,Contingent labour,EC2N 3AQ,"1,899.14",
"Housing, Communities & Local Government",MHCLG,11/01/2021,Agency Staff,CFO and Corporate,ALEXANDER MANN SOLUTIONS LTD,,Large,,,5106267230,Contingent Labour,Contingent labour,EC2N 3AQ,"2,658.82",
"Housing, Communities & Local Government",MHCLG,11/01/2021,Agency Staff,CFO and Corporate,ALEXANDER MANN SOLUTIONS LTD,,Large,,,5106267231,Contingent Labour,Contingent labour,EC2N 3AQ,825.12,
"Housing, Communities & Local Government",MHCLG,11/01/2021,Agency Staff,CFO and Corporate,ALEXANDER MANN SOLUTIONS LTD,,Large,,,5106267232,Contingent Labour,Contingent labour,EC2N 3AQ,"1,994.11",
"Housing, Communities & Local Government",MHCLG,11/01/2021,Agency Staff,CFO and Corporate,ALEXANDER MANN SOLUTIONS LTD,,Large,,,5106267233,Contingent Labour,Contingent labour,EC2N 3AQ,"2,454.29",
"Housing, Communities & Local Government",MHCLG,11/01/2021,Agency Staff,CFO and Corporate,ALEXANDER MANN SOLUTIONS LTD,,Large,,,5106267236,Contingent Labour,Contingent labour,EC2N 3AQ,"2,142.19",
"Housing, Communities & Local Government",MHCLG,11/01/2021,Agency Staff,CFO and Corporate,ALEXANDER MANN SOLUTIONS LTD,,Large,,,5106267238,Contingent Labour,Contingent labour,EC2N 3AQ,"1,606.64",
"Housing, Communities & Local Government",MHCLG,11/01/2021,Agency Staff,CFO and Corporate,ALEXANDER MANN SOLUTIONS LTD,,Large,,,5106267250,Contingent Labour,Contingent labour,EC2N 3AQ,"2,454.29",
"Housing, Communities & Local Government",MHCLG,11/01/2021,Agency Staff,Housing & Planning,ALEXANDER MANN SOLUTIONS LTD,,Large,,,5106267223,Contingent Labour,Contingent Labour,EC2N 3AQ,"4,536.43",
"Housing, Communities & Local Government",MHCLG,11/01/2021,Agency Staff,Local Government Strategy and Analysis,ALEXANDER MANN SOLUTIONS LTD,,Large,,,5106267220,Contingent Labour,Contingent labour,EC2N 3AQ,"4,410.42",
"Housing, Communities & Local Government",MHCLG,11/01/2021,Agency Staff,Local Government Strategy and Analysis,ALEXANDER MANN SOLUTIONS LTD,,Large,,,5106267237,Contingent Labour,Contingent labour,EC2N 3AQ,"1,039.60",
"Housing, Communities & Local Government",MHCLG,11/01/2021,Agency Staff,Stronger Places,ALEXANDER MANN SOLUTIONS LTD,,Large,,,5106267219,Contingent Labour,Contingent labour,EC2N 3AQ,"6,932.94",
"Housing, Communities & Local Government",MHCLG,11/01/2021,Agency Staff,Stronger Places,ALEXANDER MANN SOLUTIONS LTD,,Large,,,5106267222,Contingent Labour,Contingent labour,EC2N 3AQ,"7,574.69",
"Housing, Communities & Local Government",MHCLG,11/01/2021,Agency Staff,Stronger Places,ALEXANDER MANN SOLUTIONS LTD,,Large,,,5106267234,Contingent Labour,Contingent labour,EC2N 3AQ,"3,065.33",
"Housing, Communities & Local Government",MHCLG,11/01/2021,Agency Staff,Stronger Places,ALEXANDER MANN SOLUTIONS LTD,,Large,,,5106267242,Contingent Labour,interim manager,EC2N 3AQ,"1,016.28",
"Housing, Communities & Local Government",MHCLG,11/01/2021,ERDF Work in Progress � Capital,Stronger Places,CONNEXUS HOUSING LIMITED,,,,,7700008001,,ERDF grant payment,SY7 9BW,"8,611.53",Yes
"Housing, Communities & Local Government",MHCLG,11/01/2021,ERDF Work in Progress � Resource,Stronger Places,CHESTER UNIVERSITY,,Large,,,7700008003,,ERDF grant payment,CH1 4BJ,"50,312.63",Yes
"Housing, Communities & Local Government",MHCLG,11/01/2021,ERDF Work in Progress � Resource,Stronger Places,CHESTER UNIVERSITY,,Large,,,7700008005,,ERDF grant payment,CH1 4BJ,"54,047.41",Yes
"Housing, Communities & Local Government",MHCLG,11/01/2021,ERDF Work in Progress � Resource,Stronger Places,CONNEXUS HOUSING LIMITED,,,,,7700008001,,ERDF grant payment,SY7 9BW,"4,140.71",Yes
"Housing, Communities & Local Government",MHCLG,11/01/2021,ERDF Work in Progress � Resource,Stronger Places,LIVERPOOL CITY REGION COMB AUTH,,,,,7700008004,,ERDF grant payment,L3 1FZ,"7,392.60",Yes
"Housing, Communities & Local Government",MHCLG,11/01/2021,ERDF Work in Progress � Resource,Stronger Places,NEWHAM COLLEGE OF FURTHER EDUCATION,,,,,7700008002,,ERDF grant payment,E6 6ER,"39,644.99",Yes
"Housing, Communities & Local Government",MHCLG,11/01/2021,ERDF Work in Progress � Resource,Stronger Places,UNIVERSITY OF WARWICK,,,,,7700007999,,ERDF grant payment,CV4 8UW,"234,122.89",Yes
"Housing, Communities & Local Government",MHCLG,11/01/2021,ERDF Work in Progress � Resource,Stronger Places,UNIVERSITY OF WOLVERHAMPTON,,,,,7700008000,,ERDF grant payment,WV1 1LY,"48,447.08",Yes
"Housing, Communities & Local Government",MHCLG,11/01/2021,EXP � PURCHASE OF GOODS /SERVICES R & D,Local Government Strategy and Analysis,BLOOMBERG FINANCE L.P,,Large,,,5106267263,Research,Subscription Charges,10022,"5,965.01",
"Housing, Communities & Local Government",MHCLG,11/01/2021,EXP � PURCHASE OF GOODS /SERVICES R & D,Local Government Strategy and Analysis,GLASGOW UNIVERSITY,,Large,,,5106267246,Research,Research and Statistics,G12 8QQ,"5,000.00",
"Housing, Communities & Local Government",MHCLG,11/01/2021,Facilities Management (ISD use only),Local Government Strategy and Analysis,MINISTRY OF JUSTICE,,,,211860841,5106267283,Property Occupation,Rental Payments - MOJ,NP20 9BB,"1,816.45",
"Housing, Communities & Local Government",MHCLG,11/01/2021,Grant in Aid to NDPBs (non budget),Local Government Strategy and Analysis,COMMISSION LOCAL ADMINISTRATION,,,,215271508,2100308413,,DCLG DEL 20/21 budget contribution for the CLAE,CV1 3BH,"940,000.00",Yes
"Housing, Communities & Local Government",MHCLG,11/01/2021,IT - Service Contracts,CFO and Corporate,ARCUS CLOUD SERVICES LTD,,Medium,,,5106267181,IT Managed / Outsourced Services,Datamart/MCIS/TESA AWS Hosting,CB4 2HY,"10,512.25",
"Housing, Communities & Local Government",MHCLG,11/01/2021,IT - Service Contracts,CFO and Corporate,ARCUS CLOUD SERVICES LTD,,Medium,,,5106267268,IT Managed / Outsourced Services,Datamart/MCIS/TESA AWS Hosting,CB4 2HY,"88,678.97",
"Housing, Communities & Local Government",MHCLG,11/01/2021,IT - Service Contracts,Local Government Strategy and Analysis,ARCUS CLOUD SERVICES LTD,,Medium,,,5106267258,IT Managed / Outsourced Services,Data Analytics Platform,CB4 2HY,547.50,
"Housing, Communities & Local Government",MHCLG,11/01/2021,Management Consultancy,Building Safety Grenfell & Net Zero,VERACITY OSI UK LTD,,Medium,,,5106266894,Business Process Outsourcing Services,Business Analyst Support,EC3R 8LJ,"24,822.00",
"Housing, Communities & Local Government",MHCLG,11/01/2021,Management Consultancy,Housing & Planning,ALEXANDER MANN SOLUTIONS LTD,,Large,,,5106267225,Contingent Labour,interim manager,EC2N 3AQ,"6,804.58",
"Housing, Communities & Local Government",MHCLG,11/01/2021,Recruitment,Local Government Strategy and Analysis,HM REVENUE & CUSTOMS,,Public Bodies,,365117972,5106267184,Business Process Outsourcing Services,Recruitment Charges,BN12 4XH,"5,280.00",
"Housing, Communities & Local Government",MHCLG,11/01/2021,Recruitment,Local Government Strategy and Analysis,HM REVENUE & CUSTOMS,,Public Bodies,,365117972,5106267184,Business Process Outsourcing Services,Recruitment Charges,BN12 4XH,"5,280.00",
"Housing, Communities & Local Government",MHCLG,11/01/2021,Recruitment,Stronger Places,REDACTIVE PUBLISHING LTD,,Medium,,494940539,5106267265,Business Process Outsourcing Services,Advertise Programme Managers jobs extern,E1 8BL,900.00,
"Housing, Communities & Local Government",MHCLG,11/01/2021,Software Licences,CFO and Corporate,BYTES SOFTWARE SERVICES LTD,,Medium,,225273754,5106267270,Software,Reasonable Adjustment costs,KT22 7TW,384.56,
"Housing, Communities & Local Government",MHCLG,11/01/2021,Software Licences,CFO and Corporate,PHOENIX SOFTWARE LTD,,Large,,,5106267278,Software,MSEA Licences & Support 3 years,YO42 1NS,"288,699.41",
"Housing, Communities & Local Government",MHCLG,11/01/2021,Software Licences,CFO and Corporate,PHOENIX SOFTWARE LTD,,Large,,,5106267279,Software,MSEA Licences & Support 3 years,YO42 1NS,"1,905,843.62",
"Housing, Communities & Local Government",MHCLG,11/01/2021,Steady State Service Provision,Housing & Planning,GROUNDWORK UK,Yes,,,739193758,5106267173,Business Process Outsourcing Services,Grant admin costs,B1 2RR,"6,522.00",
"Housing, Communities & Local Government",MHCLG,11/01/2021,Steady State Service Provision,Housing & Planning,GROUNDWORK UK,Yes,,,739193758,5106267179,Business Process Outsourcing Services,Grant admin costs,B1 2RR,"3,000.00",
"Housing, Communities & Local Government",MHCLG,11/01/2021,Subscriptions,CFO and Corporate,RECORDS MANAGEMENT SOCIETY,,Small,,,5106267252,Subscriptions and Admissions,2021 IRMS subscription,NE1 4HZ,798.00,
"Housing, Communities & Local Government",MHCLG,11/01/2021,Training,CFO and Corporate,INSTITUTE FOR EMPLOYMENT STUDIES,,Medium,,225275759,5106267174,Development and Training,Civil Service Training,BN3 1TL,"13,000.00",
"Housing, Communities & Local Government",MHCLG,11/01/2021,Training,CFO and Corporate,KNOWLEDGE ACADEMY LTD,,Small,,217078555,5106267273,Development and Training,Civil Service Training,RG12 1HL,"8,310.00",
"Housing, Communities & Local Government",MHCLG,11/01/2021,Web Services,Stronger Places,PULSION TECHNOLOGY LTD,,Small,,,5106263994,ICT Services,Right to Buy Website- Support and hostin,G4 9XA,"3,566.40",
"Housing, Communities & Local Government",MHCLG,11/01/2021,Web Services,Stronger Places,PULSION TECHNOLOGY LTD,,Small,,,5106263994,ICT Services,Help to buy website- support and hosting,G4 9XA,"3,432.00",
"Housing, Communities & Local Government",MHCLG,12/01/2021,Accommodation - actuals,Local Government Strategy and Analysis,CORPORATE TRAVEL MANAGEMENT(NORTH)L,,Small,,213089972,2300003176,Business Travel Accommodation,Consolidated Monthly Travel November 2020 Hotels,BD1 5HQ,"-1,670.00",
"Housing, Communities & Local Government",MHCLG,12/01/2021,Administration of Grants,Stronger Places,GROUNDWORK UK,Yes,,,739193758,5106267319,IT Managed / Outsourced Services,Adminstration Fees for Coastal Communities Fund ,B1 2RR,"52,865.00",
"Housing, Communities & Local Government",MHCLG,12/01/2021,Air Travel,Housing & Planning,CORPORATE TRAVEL MANAGEMENT(NORTH)L,,Small,,213089972,2100308464,Air,Consolidated Monthly Travel December 2020 Air Tick,BD1 5HQ,536.92,
"Housing, Communities & Local Government",MHCLG,12/01/2021,Air Travel,Stronger Places,CORPORATE TRAVEL MANAGEMENT(NORTH)L,,Small,,213089972,2100308464,Air,Consolidated Monthly Travel December 2020 Air Tick,BD1 5HQ,486.48,
"Housing, Communities & Local Government",MHCLG,12/01/2021,Air Travel,Stronger Places,CORPORATE TRAVEL MANAGEMENT(NORTH)L,,Small,,213089972,2300003176,Air,Consolidated Monthly Travel November 2020 Air Tick,BD1 5HQ,652.00,
"Housing, Communities & Local Government",MHCLG,12/01/2021,Cap Grants to Private Sector Companies,Building Safety Grenfell & Net Zero,DERISK (UK) LTD,,Small,,220390649,5106267293,Consultancy,Contingent labour,WC2N 6DU,"7,280.09",Yes
"Housing, Communities & Local Government",MHCLG,12/01/2021,Current (non AEF) Grants to Local Authorities,Local Government Strategy and Analysis,Somerset West and Taunton Council,,,,,3700076034,,Surplus on account payable to the Exchequer,TA1 1HE,"-29,600.00",Yes
"Housing, Communities & Local Government",MHCLG,12/01/2021,Current Grants to Non Profit Bodies,Housing & Planning,WOMEN'S AID FEDERATION,,Small,,458141983,2100308454,,Ongoing project for  No Women Turned Away,BS99 7WS,"85,000.00",Yes
"Housing, Communities & Local Government",MHCLG,12/01/2021,Electronic Data Storage,CFO and Corporate,RESTORE PLC,,Large,,,5106267316,Warehousing and Storage,Visions digital storage,RH1 3DY,"4,770.54",
"Housing, Communities & Local Government",MHCLG,12/01/2021,ERDF Work in Progress � Capital,Stronger Places,CENTRE FOR PROCESS INNOVATION LTD,,Large,,,7700008021,,ERDF grant payment,TS10 4RF,"13,017.72",Yes
"Housing, Communities & Local Government",MHCLG,12/01/2021,ERDF Work in Progress � Capital,Stronger Places,CORNWALL DEVELOPMENT COMPANY,,Medium,,,7700008023,,ERDF grant payment,TR15 3QG,"2,810.80",Yes
"Housing, Communities & Local Government",MHCLG,12/01/2021,ERDF Work in Progress � Capital,Stronger Places,SHROPSHIRE COUNCIL,,,,,7700008019,,ERDF grant payment,SY2 6ND,"41,304.77",Yes
"Housing, Communities & Local Government",MHCLG,12/01/2021,ERDF Work in Progress � Capital,Stronger Places,SOUTH TYNESIDE BOROUGH COUNCIL,,,,,7700008010,,ERDF grant payment,NE33 2RL,"104,454.54",Yes
"Housing, Communities & Local Government",MHCLG,12/01/2021,ERDF Work in Progress � Capital,Stronger Places,UNIVERSITY OF WOLVERHAMPTON,,,,,7700008015,,ERDF grant payment,WV1 1LY,"11,700.00",Yes
"Housing, Communities & Local Government",MHCLG,12/01/2021,ERDF Work in Progress � Resource,Stronger Places,CENTRAL RESEARCH LABORATORY,,Micro,,,7700008014,,ERDF grant payment,SW1P 1DZ,"53,418.56",Yes
"Housing, Communities & Local Government",MHCLG,12/01/2021,ERDF Work in Progress � Resource,Stronger Places,CENTRE FOR PROCESS INNOVATION LTD,,Large,,,7700008021,,ERDF grant payment,TS10 4RF,"141,070.48",Yes
"Housing, Communities & Local Government",MHCLG,12/01/2021,ERDF Work in Progress � Resource,Stronger Places,CORNWALL COLLEGE,,,,,7700008013,,ERDF grant payment,PL25 4DJ,"252,634.22",Yes
"Housing, Communities & Local Government",MHCLG,12/01/2021,ERDF Work in Progress � Resource,Stronger Places,DEVON COUNTY COUNCIL,,Large,,,7700008006,,ERDF grant payment,EX2 4QD,"21,588.59",Yes
"Housing, Communities & Local Government",MHCLG,12/01/2021,ERDF Work in Progress � Resource,Stronger Places,DEVON COUNTY COUNCIL,,Large,,,7700008008,,ERDF grant payment,EX2 4QD,"45,660.48",Yes
"Housing, Communities & Local Government",MHCLG,12/01/2021,ERDF Work in Progress � Resource,Stronger Places,ESSEX COUNTY COUNCIL,,Large,,,7700008009,,ERDF grant payment,CM1 1LX,"256,676.36",Yes
"Housing, Communities & Local Government",MHCLG,12/01/2021,ERDF Work in Progress � Resource,Stronger Places,GREATER LONDON AUTHORITY,,Large,,,7700008022,,ERDF grant payment,SE1 2AA,"64,024.26",Yes
"Housing, Communities & Local Government",MHCLG,12/01/2021,ERDF Work in Progress � Resource,Stronger Places,LINCOLN UNIVERSITY,,Large,,,7700008007,,ERDF grant payment,LN6 7TS,"230,341.90",Yes
"Housing, Communities & Local Government",MHCLG,12/01/2021,ERDF Work in Progress � Resource,Stronger Places,LINCOLN UNIVERSITY,,Large,,,7700008020,,ERDF grant payment,LN6 7TS,"135,016.03",Yes
"Housing, Communities & Local Government",MHCLG,12/01/2021,ERDF Work in Progress � Resource,Stronger Places,LOUGHBOROUGH UNIVERSITY,,,,,7700008017,,ERDF grant payment,LE11 3TU,"18,639.01",Yes
"Housing, Communities & Local Government",MHCLG,12/01/2021,ERDF Work in Progress � Resource,Stronger Places,SOUTH EAST MIDLANDS LOCAL ENTERPRIS,,,,,7700008011,,ERDF grant payment,MK43 0BT,"101,725.59",Yes
"Housing, Communities & Local Government",MHCLG,12/01/2021,ERDF Work in Progress � Resource,Stronger Places,SOUTH TYNESIDE BOROUGH COUNCIL,,,,,7700008010,,ERDF grant payment,NE33 2RL,"5,121.83",Yes
"Housing, Communities & Local Government",MHCLG,12/01/2021,ERDF Work in Progress � Resource,Stronger Places,SOUTH TYNESIDE BOROUGH COUNCIL,,,,,7700008016,,ERDF grant offset,NE33 2RL,"-27,706.80",Yes
"Housing, Communities & Local Government",MHCLG,12/01/2021,ERDF Work in Progress � Resource,Stronger Places,TEES VALLEY COMBINED AUTHORITY,,,,,7700008018,,ERDF grant payment,TS17 6QY,"5,727.52",Yes
"Housing, Communities & Local Government",MHCLG,12/01/2021,ERDF Work in Progress � Resource,Stronger Places,UNIVERSITY OF PLYMOUTH,,,,,7700008012,,ERDF grant payment,PL4 8AA,"129,709.20",Yes
"Housing, Communities & Local Government",MHCLG,12/01/2021,ERDF Work in Progress � Resource,Stronger Places,UNIVERSITY OF WOLVERHAMPTON,,,,,7700008015,,ERDF grant payment,WV1 1LY,"78,021.25",Yes
"Housing, Communities & Local Government",MHCLG,12/01/2021,"Furniture, Fittings and carpets",CFO and Corporate,WAGSTAFF BROS LTD,,,,210307773,5106267288,"Furniture, Fixtures and Fittings",Reasonable Adjustments 20/21,EC1V 4JR,685.33,
"Housing, Communities & Local Government",MHCLG,12/01/2021,"IT - PC, Network & Hardware",Building Safety Grenfell & Net Zero,X M A LTD,,Large,,298484148,5106267320,ICT Hardware,AppleCare+,NG11 7EP,747.00,
"Housing, Communities & Local Government",MHCLG,12/01/2021,"IT - PC, Network & Hardware",CFO and Corporate,DCLG GOVERNMENT PROCUREMENT CARD,,,,,1000004884,ICT Hardware,Google GSuite accounts,TN37 7GA,401.23,
"Housing, Communities & Local Government",MHCLG,12/01/2021,"IT - PC, Network & Hardware",CFO and Corporate,STORM TECHNOLOGIES LTD,,Medium,,519916048,5106267217,ICT Hardware,Jabra Headsets,WD18 8YW,"10,207.20",
"Housing, Communities & Local Government",MHCLG,12/01/2021,"IT - PC, Network & Hardware",CFO and Corporate,STORM TECHNOLOGIES LTD,,Medium,,519916048,5106267337,ICT Hardware,Delivery costs,WD18 8YW,5.94,
"Housing, Communities & Local Government",MHCLG,12/01/2021,"IT - PC, Network & Hardware",CFO and Corporate,STORM TECHNOLOGIES LTD,,Medium,,519916048,5106267337,ICT Hardware,Q5N-00010 - MS Surface 65W Power Supply,WD18 8YW,"5,797.20",
"Housing, Communities & Local Government",MHCLG,12/01/2021,IT - Service Contracts,CFO and Corporate,VELOCITII DIGITAL SOLUTIONS LTD,,Micro,,,5106267301,IT Managed / Outsourced Services,Provision of Content Designer (LDCU),SE1 9LB,"6,600.00",
"Housing, Communities & Local Government",MHCLG,12/01/2021,IT - Service Contracts,CFO and Corporate,VELOCITII DIGITAL SOLUTIONS LTD,,Micro,,,5106267304,IT Managed / Outsourced Services,Digital Land Team Support,SE1 9LB,"55,475.00",
"Housing, Communities & Local Government",MHCLG,12/01/2021,IT - Service Contracts,CFO and Corporate,VELOCITII DIGITAL SOLUTIONS LTD,,Micro,,,5106267309,IT Managed / Outsourced Services,Provision of Delivery Manager (LDCU),SE1 9LB,"12,750.00",
"Housing, Communities & Local Government",MHCLG,12/01/2021,IT - Service Contracts,CFO and Corporate,VELOCITII DIGITAL SOLUTIONS LTD,,Micro,,,5106267317,IT Managed / Outsourced Services,Digital Design Support,SE1 9LB,"42,512.50",
"Housing, Communities & Local Government",MHCLG,12/01/2021,IT - Software Maintenance,CFO and Corporate,INTERQUEST GROUP UK LIMITED,,Large,,423935241,5106267303,IT Managed / Outsourced Services,SAP Support Services Var13,EC4R 0AN,"14,820.00",
"Housing, Communities & Local Government",MHCLG,12/01/2021,IT - Software Maintenance,CFO and Corporate,INTERQUEST GROUP UK LIMITED,,Large,,423935241,5106267305,IT Managed / Outsourced Services,SAP Support Services Var13,EC4R 0AN,"11,400.00",
"Housing, Communities & Local Government",MHCLG,12/01/2021,IT - Software Maintenance,CFO and Corporate,INTERQUEST GROUP UK LIMITED,,Large,,423935241,5106267323,IT Managed / Outsourced Services,SAP Support Services Var13,EC4R 0AN,"13,161.00",
"Housing, Communities & Local Government",MHCLG,12/01/2021,IT - Software Maintenance,CFO and Corporate,PTFS EUROPE LTD,,Micro,,,5106267286,IT Managed / Outsourced Services,Koha/Knowvation/VuFind 20/21,W1S 1DX,"16,191.00",
"Housing, Communities & Local Government",MHCLG,12/01/2021,Management Consultancy,Building Safety Grenfell & Net Zero,MOORHOUSE CONSULTING LTD,,Large,,737971072,5106267218,Consultancy,Consultancy Costs,EC4A 3AG,"8,775.00",
"Housing, Communities & Local Government",MHCLG,12/01/2021,Physical Storage,CFO and Corporate,RESTORE PLC,,Large,,,5106267300,Warehousing and Storage,Storage Costs 20/21,RH1 3DY,"1,534.89",
"Housing, Communities & Local Government",MHCLG,12/01/2021,Physical Storage,CFO and Corporate,RESTORE PLC,,Large,,,5106267307,Warehousing and Storage,Storage Costs 20/21,RH1 3DY,"4,015.96",
"Housing, Communities & Local Government",MHCLG,12/01/2021,Physical Storage,CFO and Corporate,RESTORE PLC,,Large,,,5106267310,Warehousing and Storage,Storage Costs 20/21,RH1 3DY,240.29,
"Housing, Communities & Local Government",MHCLG,12/01/2021,Physical Storage,CFO and Corporate,RESTORE PLC,,Large,,,5106267314,Warehousing and Storage,Storage Costs 20/21,RH1 3DY,875.72,
"Housing, Communities & Local Government",MHCLG,12/01/2021,Physical Storage,CFO and Corporate,RESTORE PLC,,Large,,,5106267316,Warehousing and Storage,Storage Costs 20/21,RH1 3DY,"22,656.75",
"Housing, Communities & Local Government",MHCLG,12/01/2021,Professional services,Building Safety Grenfell & Net Zero,K INTERNATIONAL LTD,,,,,5106267342,Interpretation and Translation,K International translation services,MK5 8PL,220.64,
"Housing, Communities & Local Government",MHCLG,12/01/2021,Professional services,Building Safety Grenfell & Net Zero,K INTERNATIONAL LTD,,,,,5106267343,Interpretation and Translation,K International translation services,MK5 8PL,701.60,
"Housing, Communities & Local Government",MHCLG,12/01/2021,Professional services,Building Safety Grenfell & Net Zero,K INTERNATIONAL LTD,,,,,5106267344,Interpretation and Translation,K International translation services,MK5 8PL,248.00,
"Housing, Communities & Local Government",MHCLG,12/01/2021,Professional services,Building Safety Grenfell & Net Zero,K INTERNATIONAL LTD,,,,,5106267346,Interpretation and Translation,K International translation services,MK5 8PL,540.00,
"Housing, Communities & Local Government",MHCLG,12/01/2021,Professional services,Housing & Planning,CEL GROUP,,Medium,,394794614,5106267335,Technical Services,Homes Improvement Agency 2020-2021,WA2 0YL,"80,024.90",
"Housing, Communities & Local Government",MHCLG,12/01/2021,Professional services,Housing & Planning,HAMPSHIRE COUNTY COUNCIL,,,,506774652,5106267340,Research,Secretariat Services-London  Aggregates Working Party 20/21,SO23 8UD,"1,241.00",
"Housing, Communities & Local Government",MHCLG,12/01/2021,"Rail, Underground and Eurostar",Stronger Places,CORPORATE TRAVEL MANAGEMENT(NORTH)L,,Small,,213089972,2100308464,Rail,Consolidated Monthly Travel December 2020 Rail,BD1 5HQ,639.00,
"Housing, Communities & Local Government",MHCLG,12/01/2021,Support services,Stronger Places,EXELA TECHNOLOGIES LIMITED,,Large,,,5106267331,Business Process Outsourcing Services,Provision of a Standby Service,TW20 9AB,"2,759.00",
"Housing, Communities & Local Government",MHCLG,12/01/2021,Support services,Stronger Places,EXELA TECHNOLOGIES LIMITED,,Large,,,5106267332,Business Process Outsourcing Services,Provision of a Standby Service,TW20 9AB,"47,295.00",
"Housing, Communities & Local Government",MHCLG,12/01/2021,Support services,Stronger Places,EXELA TECHNOLOGIES LIMITED,,Large,,,5106267333,Business Process Outsourcing Services,Provision of a Standby Service,TW20 9AB,"2,759.00",
"Housing, Communities & Local Government",MHCLG,12/01/2021,Telephone call costs,CFO and Corporate,DCLG GOVERNMENT PROCUREMENT CARD,,,,,1000004884,,Zoom software for VC,TN37 7GA,278.28,
"Housing, Communities & Local Government",MHCLG,12/01/2021,Training,CFO and Corporate,KPMG LLP (CSL),,Large,,,5106267311,Development and Training,Civil Service Training,E14 5GL,"1,153.00",
"Housing, Communities & Local Government",MHCLG,12/01/2021,Web Services,Stronger Places,FOREPOINT LIMITED,,Micro,,,5106267291,ICT Services,NPH website support and hosting Q4 Jan -,PR5 6EF,"1,117.20",
"Housing, Communities & Local Government",MHCLG,13/01/2021,Cap Grants to Local Authorities (DEL),Building Safety Grenfell & Net Zero,WATES PROPERTY SERVICES LTD,,Large,,,5106267361,Business Process Outsourcing Services,Specialist Contractors for Grenfell,EN1 3XA,"1,979,482.24",Yes
"Housing, Communities & Local Government",MHCLG,13/01/2021,Cap Grants to Local Authorities (DEL),Stronger Places,EBBSFLEET DEVELOPMENT CORPORATION,,,,,2100308243,,Ebbsfleet Development Corporation Grant payment,DA11 8DB,"4,300,000.00",Yes
"Housing, Communities & Local Government",MHCLG,13/01/2021,Cap Grants to Private Sector Companies,Building Safety Grenfell & Net Zero,PINSENT MASONS LLP,,Large,,215580626,5106267367,Legal,Legal Support for Grenfell S&P,EC2A 4ES,"24,709.20",Yes
"Housing, Communities & Local Government",MHCLG,13/01/2021,Cap Grants to Private Sector Companies,Building Safety Grenfell & Net Zero,PLOWMAN CRAVEN LIMITED,,Medium,,,5106267339,Business Process Outsourcing Services,Grenfell Tower Surveying services,AL5 5EQ,"9,894.00",Yes
"Housing, Communities & Local Government",MHCLG,13/01/2021,Current (non AEF) Grants to Local Authorities,Stronger Places,EBBSFLEET DEVELOPMENT CORPORATION,,,,,2100308244,,Ebbsfleet Development Corporation Grant payment,DA11 8DB,"600,000.00",Yes
"Housing, Communities & Local Government",MHCLG,13/01/2021,ERDF Work in Progress � Resource,Stronger Places,EXEMPLAS LIMITED,,Medium,,,7700008024,,ERDF grant payment,AL10 9NE,"19,659.45",Yes
"Housing, Communities & Local Government",MHCLG,13/01/2021,ERDF Work in Progress � Resource,Stronger Places,EXEMPLAS LIMITED,,Medium,,,7700008026,,ERDF grant payment,AL10 9NE,"25,944.00",Yes
"Housing, Communities & Local Government",MHCLG,13/01/2021,ERDF Work in Progress � Resource,Stronger Places,LEEDS CITY COUNCIL,,Large,,,7700008027,,ERDF grant payment,LS2 8HD,"25,384.47",Yes
"Housing, Communities & Local Government",MHCLG,13/01/2021,ERDF Work in Progress � Resource,Stronger Places,LIVERPOOL CITY REGION COMB AUTH,,,,,7700008028,,ERDF grant payment,L3 1FZ,"6,238.68",Yes
"Housing, Communities & Local Government",MHCLG,13/01/2021,ERDF Work in Progress � Resource,Stronger Places,NEWABLE TRADE(LONDON)LTD,,Medium,,,7700008025,,ERDF grant payment,EC1A 4HY,"88,852.77",Yes
"Housing, Communities & Local Government",MHCLG,13/01/2021,EXP � PURCHASE OF GOODS /SERVICES R & D,Local Government Strategy and Analysis,RIGHTMOVE,,Large,,,5106267348,Research,Research - Housing Market Indicator,MK16 1AJ,"6,000.00",
"Housing, Communities & Local Government",MHCLG,13/01/2021,Grant in Aid to NDPBs (non budget),Housing & Planning,HOMES ENGLAND,,Public Bodies,,215576860,2100308470,,Homes England January 2021 Grant in Aid payment,NE11 0NA,"260,336,208.00",Yes
"Housing, Communities & Local Government",MHCLG,13/01/2021,IT - Service Contracts,Local Government Strategy and Analysis,RISUAL LIMITED,,Medium,,,5106267357,Software,Cloud Platforming Services,ST18 0WP,"2,509.96",
"Housing, Communities & Local Government",MHCLG,13/01/2021,IT - Software Maintenance,CFO and Corporate,INTERQUEST GROUP UK LIMITED,,Large,,423935241,5106267363,IT Managed / Outsourced Services,SAP Support Services Var14,EC4R 0AN,"12,825.00",
"Housing, Communities & Local Government",MHCLG,13/01/2021,Legal Fees,Housing & Planning,SNR DENTON UK  LLP,,Large,,216819887,5106267353,Legal,Legal Advice,EC4M 7WS,"49,573.20",
"Housing, Communities & Local Government",MHCLG,13/01/2021,Legal Fees,Housing & Planning,SNR DENTON UK  LLP,,Large,,216819887,5106267354,Legal,Legal Advice,EC4M 7WS,"84,281.70",
"Housing, Communities & Local Government",MHCLG,13/01/2021,Legal Fees,Housing & Planning,SNR DENTON UK  LLP,,Large,,216819887,5106267356,Legal,Legal Advice,EC4M 7WS,"10,877.10",
"Housing, Communities & Local Government",MHCLG,13/01/2021,Professional services,Building Safety Grenfell & Net Zero,TURNER&TOWNSEND PROJECT MAN LTD,,Large,,,5106266761,Technical Services,Provision of Client Side Support Service,LS18 4GH,"10,992.00",
"Housing, Communities & Local Government",MHCLG,13/01/2021,Professional services,Building Safety Grenfell & Net Zero,TURNER&TOWNSEND PROJECT MAN LTD,,Large,,,5106266762,Technical Services,Provision of Client Side Support Service,LS18 4GH,"4,800.00",
"Housing, Communities & Local Government",MHCLG,13/01/2021,Publicity,Local Government Strategy and Analysis,XEIM,,Large,,229523717,5106267372,Advertising,Foresight News Renewal 19/20,W1T 3QN,"2,880.00",
"Housing, Communities & Local Government",MHCLG,13/01/2021,Publishing,Building Safety Grenfell & Net Zero,MINISTRY OF JUSTICE,,,,211860841,5106267008,Printing Services,Grenfell Postcard,NP20 9BB,"1,150.50",
"Housing, Communities & Local Government",MHCLG,13/01/2021,Steady State Service Provision,Building Safety Grenfell & Net Zero,PLOWMAN CRAVEN LIMITED,,Medium,,,5106267339,Business Process Outsourcing Services,Grenfell Tower Surveying services,AL5 5EQ,"3,925.20",
"Housing, Communities & Local Government",MHCLG,14/01/2021,Advertising,CFO and Corporate,BAME Recruitment Ltd,,Medium,,220588421,5106267376,Advertising,RSH Chair paid advertising,EC3N 2EX,650.00,
"Housing, Communities & Local Government",MHCLG,14/01/2021,Current (non AEF) Grants to Local Authorities,Local Government Strategy and Analysis,ADUR DC,,,,227472891,3700083832,,Grant payable by the Exchequer,BN11 1HA,"296,212.00",Yes
"Housing, Communities & Local Government",MHCLG,14/01/2021,Current (non AEF) Grants to Local Authorities,Local Government Strategy and Analysis,ADUR DC,,,,227472891,3700083849,,Grant payable by the Exchequer,BN11 1HA,"2,963.00",Yes
"Housing, Communities & Local Government",MHCLG,14/01/2021,Current (non AEF) Grants to Local Authorities,Local Government Strategy and Analysis,ADUR DC,,,,227472891,3700083971,,Grant payable by the Exchequer,BN11 1HA,"444,337.00",Yes
"Housing, Communities & Local Government",MHCLG,14/01/2021,Current (non AEF) Grants to Local Authorities,Local Government Strategy and Analysis,ADUR DC,,,,227472891,3700084910,,Grant payable by the Exchequer,BN11 1HA,"1,975.00",Yes
"Housing, Communities & Local Government",MHCLG,14/01/2021,Current (non AEF) Grants to Local Authorities,Local Government Strategy and Analysis,ALLERDALE BOROUGH COUNCIL,,,,230824120,3700084147,,Grant payable by the Exchequer,CA14 3YJ,"563,451.00",Yes
"Housing, Communities & Local Government",MHCLG,14/01/2021,Current (non AEF) Grants to Local Authorities,Local Government Strategy and Analysis,ALLERDALE BOROUGH COUNCIL,,,,230824120,3700084218,,Grant payable by the Exchequer,CA14 3YJ,"1,409.00",Yes
"Housing, Communities & Local Government",MHCLG,14/01/2021,Current (non AEF) Grants to Local Authorities,Local Government Strategy and Analysis,ALLERDALE BOROUGH COUNCIL,,,,230824120,3700084572,,Grant payable by the Exchequer,CA14 3YJ,"845,210.00",Yes
"Housing, Communities & Local Government",MHCLG,14/01/2021,Current (non AEF) Grants to Local Authorities,Local Government Strategy and Analysis,ALLERDALE BOROUGH COUNCIL,,,,230824120,3700084610,,Grant payable by the Exchequer,CA14 3YJ,"2,114.00",Yes
"Housing, Communities & Local Government",MHCLG,14/01/2021,Current (non AEF) Grants to Local Authorities,Local Government Strategy and Analysis,AMBER VALLEY BC,,,,,3700083698,,Grant payable by the Exchequer,DE5 3BT,"7,140.00",Yes
"Housing, Communities & Local Government",MHCLG,14/01/2021,Current (non AEF) Grants to Local Authorities,Local Government Strategy and Analysis,AMBER VALLEY BC,,,,,3700083754,,Grant payable by the Exchequer,DE5 3BT,"637,089.00",Yes
"Housing, Communities & Local Government",MHCLG,14/01/2021,Current (non AEF) Grants to Local Authorities,Local Government Strategy and Analysis,AMBER VALLEY BC,,,,,3700084501,,Grant payable by the Exchequer,DE5 3BT,"4,760.00",Yes
"Housing, Communities & Local Government",MHCLG,14/01/2021,Current (non AEF) Grants to Local Authorities,Local Government Strategy and Analysis,AMBER VALLEY BC,,,,,3700084907,,Grant payable by the Exchequer,DE5 3BT,"424,710.00",Yes
"Housing, Communities & Local Government",MHCLG,14/01/2021,Current (non AEF) Grants to Local Authorities,Local Government Strategy and Analysis,ARUN DC,,,,211217668,3700083793,,Grant payable by the Exchequer,BN17 5LF,"5,791.00",Yes
"Housing, Communities & Local Government",MHCLG,14/01/2021,Current (non AEF) Grants to Local Authorities,Local Government Strategy and Analysis,ARUN DC,,,,211217668,3700083904,,Grant payable by the Exchequer,BN17 5LF,"8,687.00",Yes
"Housing, Communities & Local Government",MHCLG,14/01/2021,Current (non AEF) Grants to Local Authorities,Local Government Strategy and Analysis,ARUN DC,,,,211217668,3700084380,,Grant payable by the Exchequer,BN17 5LF,"1,132,253.00",Yes
"Housing, Communities & Local Government",MHCLG,14/01/2021,Current (non AEF) Grants to Local Authorities,Local Government Strategy and Analysis,ARUN DC,,,,211217668,3700084868,,Grant payable by the Exchequer,BN17 5LF,"754,805.00",Yes
"Housing, Communities & Local Government",MHCLG,14/01/2021,Current (non AEF) Grants to Local Authorities,Local Government Strategy and Analysis,ASHFIELD DC,,,,235415296,3700083816,,Grant payable by the Exchequer,NG17 8DA,"382,140.00",Yes
"Housing, Communities & Local Government",MHCLG,14/01/2021,Current (non AEF) Grants to Local Authorities,Local Government Strategy and Analysis,ASHFIELD DC,,,,235415296,3700084202,,Grant payable by the Exchequer,NG17 8DA,"573,233.00",Yes
"Housing, Communities & Local Government",MHCLG,14/01/2021,Current (non AEF) Grants to Local Authorities,Local Government Strategy and Analysis,ASHFIELD DC,,,,235415296,3700084378,,Grant payable by the Exchequer,NG17 8DA,"8,636.00",Yes
"Housing, Communities & Local Government",MHCLG,14/01/2021,Current (non AEF) Grants to Local Authorities,Local Government Strategy and Analysis,ASHFIELD DC,,,,235415296,3700084606,,Grant payable by the Exchequer,NG17 8DA,"5,757.00",Yes
"Housing, Communities & Local Government",MHCLG,14/01/2021,Current (non AEF) Grants to Local Authorities,Local Government Strategy and Analysis,ASHFORD BC,,,,229467071,3700083952,,Grant payable by the Exchequer,TN23 1PL,"1,615,126.00",Yes
"Housing, Communities & Local Government",MHCLG,14/01/2021,Current (non AEF) Grants to Local Authorities,Local Government Strategy and Analysis,ASHFORD BC,,,,229467071,3700084424,,Grant payable by the Exchequer,TN23 1PL,"5,791.00",Yes
"Housing, Communities & Local Government",MHCLG,14/01/2021,Current (non AEF) Grants to Local Authorities,Local Government Strategy and Analysis,ASHFORD BC,,,,229467071,3700084431,,Grant payable by the Exchequer,TN23 1PL,"3,860.00",Yes
"Housing, Communities & Local Government",MHCLG,14/01/2021,Current (non AEF) Grants to Local Authorities,Local Government Strategy and Analysis,ASHFORD BC,,,,229467071,3700084816,,Grant payable by the Exchequer,TN23 1PL,"1,076,708.00",Yes
"Housing, Communities & Local Government",MHCLG,14/01/2021,Current (non AEF) Grants to Local Authorities,Local Government Strategy and Analysis,BABERGH DC,,,,232618405,3700084275,,Grant payable by the Exchequer,IP7 6SJ,"9,780.00",Yes
"Housing, Communities & Local Government",MHCLG,14/01/2021,Current (non AEF) Grants to Local Authorities,Local Government Strategy and Analysis,BABERGH DC,,,,232618405,3700084433,,Grant payable by the Exchequer,IP7 6SJ,"6,520.00",Yes
"Housing, Communities & Local Government",MHCLG,14/01/2021,Current (non AEF) Grants to Local Authorities,Local Government Strategy and Analysis,BABERGH DC,,,,232618405,3700084573,,Grant payable by the Exchequer,IP7 6SJ,"611,481.00",Yes
"Housing, Communities & Local Government",MHCLG,14/01/2021,Current (non AEF) Grants to Local Authorities,Local Government Strategy and Analysis,BABERGH DC,,,,232618405,3700084828,,Grant payable by the Exchequer,IP7 6SJ,"407,638.00",Yes
"Housing, Communities & Local Government",MHCLG,14/01/2021,Current (non AEF) Grants to Local Authorities,Local Government Strategy and Analysis,BARKING & DAGENHAM LB,,Public Bodies,,227419488,3700083901,,Grant payable by the Exchequer,RM10 7BY,"515,956.00",Yes
"Housing, Communities & Local Government",MHCLG,14/01/2021,Current (non AEF) Grants to Local Authorities,Local Government Strategy and Analysis,BARKING & DAGENHAM LB,,Public Bodies,,227419488,3700084321,,Grant payable by the Exchequer,RM10 7BY,"18,027.00",Yes
"Housing, Communities & Local Government",MHCLG,14/01/2021,Current (non AEF) Grants to Local Authorities,Local Government Strategy and Analysis,BARKING & DAGENHAM LB,,Public Bodies,,227419488,3700084325,,Grant payable by the Exchequer,RM10 7BY,"698,336.00",Yes
"Housing, Communities & Local Government",MHCLG,14/01/2021,Current (non AEF) Grants to Local Authorities,Local Government Strategy and Analysis,BARKING & DAGENHAM LB,,Public Bodies,,227419488,3700084869,,Grant payable by the Exchequer,RM10 7BY,"13,319.00",Yes
"Housing, Communities & Local Government",MHCLG,14/01/2021,Current (non AEF) Grants to Local Authorities,Local Government Strategy and Analysis,BARNET LBC,,,,211049507,3700083516,,Grant payable by the Exchequer,N11 1NP,"3,895,388.00",Yes
"Housing, Communities & Local Government",MHCLG,14/01/2021,Current (non AEF) Grants to Local Authorities,Local Government Strategy and Analysis,BARNET LBC,,,,211049507,3700083541,,Grant payable by the Exchequer,N11 1NP,"31,981.00",Yes
"Housing, Communities & Local Government",MHCLG,14/01/2021,Current (non AEF) Grants to Local Authorities,Local Government Strategy and Analysis,BARNET LBC,,,,211049507,3700083986,,Grant payable by the Exchequer,N11 1NP,"1,690,436.00",Yes
"Housing, Communities & Local Government",MHCLG,14/01/2021,Current (non AEF) Grants to Local Authorities,Local Government Strategy and Analysis,BARNET LBC,,,,211049507,3700084238,,Grant payable by the Exchequer,N11 1NP,"43,286.00",Yes
"Housing, Communities & Local Government",MHCLG,14/01/2021,Current (non AEF) Grants to Local Authorities,Local Government Strategy and Analysis,BARNSLEY MBC,,Public Bodies,,211178595,3700083831,,Grant payable by the Exchequer,S70 2AQ,"5,232.00",Yes
"Housing, Communities & Local Government",MHCLG,14/01/2021,Current (non AEF) Grants to Local Authorities,Local Government Strategy and Analysis,BARNSLEY MBC,,Public Bodies,,211178595,3700084132,,Grant payable by the Exchequer,S70 2AQ,"1,098,136.00",Yes
"Housing, Communities & Local Government",MHCLG,14/01/2021,Current (non AEF) Grants to Local Authorities,Local Government Strategy and Analysis,BARNSLEY MBC,,Public Bodies,,211178595,3700084641,,Grant payable by the Exchequer,S70 2AQ,"732,062.00",Yes
"Housing, Communities & Local Government",MHCLG,14/01/2021,Current (non AEF) Grants to Local Authorities,Local Government Strategy and Analysis,BARNSLEY MBC,,Public Bodies,,211178595,3700084695,,Grant payable by the Exchequer,S70 2AQ,"7,849.00",Yes
"Housing, Communities & Local Government",MHCLG,14/01/2021,Current (non AEF) Grants to Local Authorities,Local Government Strategy and Analysis,BARROW BC,,,,295632913,3700083671,,Grant payable by the Exchequer,LA14 2LD,"3,459.00",Yes
"Housing, Communities & Local Government",MHCLG,14/01/2021,Current (non AEF) Grants to Local Authorities,Local Government Strategy and Analysis,BARROW BC,,,,295632913,3700084234,,Grant payable by the Exchequer,LA14 2LD,"2,306.00",Yes
"Housing, Communities & Local Government",MHCLG,14/01/2021,Current (non AEF) Grants to Local Authorities,Local Government Strategy and Analysis,BARROW BC,,,,295632913,3700084237,,Grant payable by the Exchequer,LA14 2LD,"258,364.00",Yes
"Housing, Communities & Local Government",MHCLG,14/01/2021,Current (non AEF) Grants to Local Authorities,Local Government Strategy and Analysis,BARROW BC,,,,295632913,3700084255,,Grant payable by the Exchequer,LA14 2LD,"172,236.00",Yes
"Housing, Communities & Local Government",MHCLG,14/01/2021,Current (non AEF) Grants to Local Authorities,Local Government Strategy and Analysis,BASILDON DC,,,,,3700083867,,Grant payable by the Exchequer,SS14 0DF,"1,848,181.00",Yes
"Housing, Communities & Local Government",MHCLG,14/01/2021,Current (non AEF) Grants to Local Authorities,Local Government Strategy and Analysis,BASILDON DC,,,,,3700083965,,Grant payable by the Exchequer,SS14 0DF,"6,137.00",Yes
"Housing, Communities & Local Government",MHCLG,14/01/2021,Current (non AEF) Grants to Local Authorities,Local Government Strategy and Analysis,BASILDON DC,,,,,3700084539,,Grant payable by the Exchequer,SS14 0DF,"1,232,072.00",Yes
"Housing, Communities & Local Government",MHCLG,14/01/2021,Current (non AEF) Grants to Local Authorities,Local Government Strategy and Analysis,BASILDON DC,,,,,3700084544,,Grant payable by the Exchequer,SS14 0DF,"9,205.00",Yes
"Housing, Communities & Local Government",MHCLG,14/01/2021,Current (non AEF) Grants to Local Authorities,Local Government Strategy and Analysis,BASINGSTOKE & DEANE BC,,,,228328506,3700083856,,Grant payable by the Exchequer,RG21 2AJ,"1,066,930.00",Yes
"Housing, Communities & Local Government",MHCLG,14/01/2021,Current (non AEF) Grants to Local Authorities,Local Government Strategy and Analysis,BASINGSTOKE & DEANE BC,,,,228328506,3700084150,,Grant payable by the Exchequer,RG21 2AJ,"24,818.00",Yes
"Housing, Communities & Local Government",MHCLG,14/01/2021,Current (non AEF) Grants to Local Authorities,Local Government Strategy and Analysis,BASINGSTOKE & DEANE BC,,,,228328506,3700084166,,Grant payable by the Exchequer,RG21 2AJ,"1,579,907.00",Yes
"Housing, Communities & Local Government",MHCLG,14/01/2021,Current (non AEF) Grants to Local Authorities,Local Government Strategy and Analysis,BASINGSTOKE & DEANE BC,,,,228328506,3700084884,,Grant payable by the Exchequer,RG21 2AJ,"37,227.00",Yes
"Housing, Communities & Local Government",MHCLG,14/01/2021,Current (non AEF) Grants to Local Authorities,Local Government Strategy and Analysis,BASSETLAW DC,,,,230225054,3700083514,,Grant payable by the Exchequer,S80 2AH,"9,166.00",Yes
"Housing, Communities & Local Government",MHCLG,14/01/2021,Current (non AEF) Grants to Local Authorities,Local Government Strategy and Analysis,BASSETLAW DC,,,,230225054,3700084094,,Grant payable by the Exchequer,S80 2AH,"13,750.00",Yes
"Housing, Communities & Local Government",MHCLG,14/01/2021,Current (non AEF) Grants to Local Authorities,Local Government Strategy and Analysis,BASSETLAW DC,,,,230225054,3700084533,,Grant payable by the Exchequer,S80 2AH,"487,861.00",Yes
"Housing, Communities & Local Government",MHCLG,14/01/2021,Current (non AEF) Grants to Local Authorities,Local Government Strategy and Analysis,BASSETLAW DC,,,,230225054,3700084535,,Grant payable by the Exchequer,S80 2AH,"731,820.00",Yes
"Housing, Communities & Local Government",MHCLG,14/01/2021,Current (non AEF) Grants to Local Authorities,Local Government Strategy and Analysis,BATH & NORTH EAST SOMERSET DC,,,,214502499,3700083335,,Grant payable by the Exchequer,BA1 5AW,"3,406,037.00",Yes
"Housing, Communities & Local Government",MHCLG,14/01/2021,Current (non AEF) Grants to Local Authorities,Local Government Strategy and Analysis,BATH & NORTH EAST SOMERSET DC,,,,214502499,3700083586,,Grant payable by the Exchequer,BA1 5AW,"18,520.00",Yes
"Housing, Communities & Local Government",MHCLG,14/01/2021,Current (non AEF) Grants to Local Authorities,Local Government Strategy and Analysis,BEDFORD BOROUGH COUNCIL,,,,211166889,3700083789,,Grant payable by the Exchequer,MK40 1SJ,"11,720.00",Yes
"Housing, Communities & Local Government",MHCLG,14/01/2021,Current (non AEF) Grants to Local Authorities,Local Government Strategy and Analysis,BEDFORD BOROUGH COUNCIL,,,,211166889,3700084362,,Grant payable by the Exchequer,MK40 1SJ,"17,581.00",Yes
"Housing, Communities & Local Government",MHCLG,14/01/2021,Current (non AEF) Grants to Local Authorities,Local Government Strategy and Analysis,BEDFORD BOROUGH COUNCIL,,,,211166889,3700084858,,Grant payable by the Exchequer,MK40 1SJ,"1,018,304.00",Yes
"Housing, Communities & Local Government",MHCLG,14/01/2021,Current (non AEF) Grants to Local Authorities,Local Government Strategy and Analysis,BEDFORD BOROUGH COUNCIL,,,,211166889,3700084896,,Grant payable by the Exchequer,MK40 1SJ,"1,527,517.00",Yes
"Housing, Communities & Local Government",MHCLG,14/01/2021,Current (non AEF) Grants to Local Authorities,Local Government Strategy and Analysis,BEXLEY LB,,,,,3700083859,,Grant payable by the Exchequer,DA8 1TL,"15,509.00",Yes
"Housing, Communities & Local Government",MHCLG,14/01/2021,Current (non AEF) Grants to Local Authorities,Local Government Strategy and Analysis,BEXLEY LB,,,,,3700084116,,Grant payable by the Exchequer,DA8 1TL,"1,543,990.00",Yes
"Housing, Communities & Local Government",MHCLG,14/01/2021,Current (non AEF) Grants to Local Authorities,Local Government Strategy and Analysis,BEXLEY LB,,,,,3700084339,,Grant payable by the Exchequer,DA8 1TL,"11,459.00",Yes
"Housing, Communities & Local Government",MHCLG,14/01/2021,Current (non AEF) Grants to Local Authorities,Local Government Strategy and Analysis,BEXLEY LB,,,,,3700084919,,Grant payable by the Exchequer,DA8 1TL,"1,140,754.00",Yes
"Housing, Communities & Local Government",MHCLG,14/01/2021,Current (non AEF) Grants to Local Authorities,Local Government Strategy and Analysis,BIRMINGHAM CITY CNCL,,,,213780559,3700083803,,Grant payable by the Exchequer,B3 3AB,"13,583,976.00",Yes
"Housing, Communities & Local Government",MHCLG,14/01/2021,Current (non AEF) Grants to Local Authorities,Local Government Strategy and Analysis,BIRMINGHAM CITY CNCL,,,,213780559,3700084117,,Grant payable by the Exchequer,B3 3AB,"203,766.00",Yes
"Housing, Communities & Local Government",MHCLG,14/01/2021,Current (non AEF) Grants to Local Authorities,Local Government Strategy and Analysis,BLABY DC,,,,,3700083722,,Grant payable by the Exchequer,LE9 5EP,"817,768.00",Yes
"Housing, Communities & Local Government",MHCLG,14/01/2021,Current (non AEF) Grants to Local Authorities,Local Government Strategy and Analysis,BLABY DC,,,,,3700084551,,Grant payable by the Exchequer,LE9 5EP,"1,226,702.00",Yes
"Housing, Communities & Local Government",MHCLG,14/01/2021,Current (non AEF) Grants to Local Authorities,Local Government Strategy and Analysis,BLABY DC,,,,,3700084634,,Grant payable by the Exchequer,LE9 5EP,"13,053.00",Yes
"Housing, Communities & Local Government",MHCLG,14/01/2021,Current (non AEF) Grants to Local Authorities,Local Government Strategy and Analysis,BLABY DC,,,,,3700084824,,Grant payable by the Exchequer,LE9 5EP,"8,702.00",Yes
"Housing, Communities & Local Government",MHCLG,14/01/2021,Current (non AEF) Grants to Local Authorities,Local Government Strategy and Analysis,BLACKBURN WITH DARWEN BC,,,,,3700084207,,Grant payable by the Exchequer,BB1 7DY,"670,470.00",Yes
"Housing, Communities & Local Government",MHCLG,14/01/2021,Current (non AEF) Grants to Local Authorities,Local Government Strategy and Analysis,BLACKBURN WITH DARWEN BC,,,,,3700084338,,Grant payable by the Exchequer,BB1 7DY,"1,005,744.00",Yes
"Housing, Communities & Local Government",MHCLG,14/01/2021,Current (non AEF) Grants to Local Authorities,Local Government Strategy and Analysis,BLACKBURN WITH DARWEN BC,,,,,3700084388,,Grant payable by the Exchequer,BB1 7DY,"9,619.00",Yes
"Housing, Communities & Local Government",MHCLG,14/01/2021,Current (non AEF) Grants to Local Authorities,Local Government Strategy and Analysis,BLACKBURN WITH DARWEN BC,,,,,3700084830,,Grant payable by the Exchequer,BB1 7DY,"14,428.00",Yes
"Housing, Communities & Local Government",MHCLG,14/01/2021,Current (non AEF) Grants to Local Authorities,Local Government Strategy and Analysis,BLACKPOOL BC,,,,,3700084034,,Grant payable by the Exchequer,FY1 1NA,"1,763,894.00",Yes
"Housing, Communities & Local Government",MHCLG,14/01/2021,Current (non AEF) Grants to Local Authorities,Local Government Strategy and Analysis,BLACKPOOL BC,,,,,3700084415,,Grant payable by the Exchequer,FY1 1NA,"8,195.00",Yes
"Housing, Communities & Local Government",MHCLG,14/01/2021,Current (non AEF) Grants to Local Authorities,Local Government Strategy and Analysis,BLACKPOOL BC,,,,,3700084430,,Grant payable by the Exchequer,FY1 1NA,"1,189,923.00",Yes
"Housing, Communities & Local Government",MHCLG,14/01/2021,Current (non AEF) Grants to Local Authorities,Local Government Strategy and Analysis,BLACKPOOL BC,,,,,3700084774,,Grant payable by the Exchequer,FY1 1NA,"5,463.00",Yes
"Housing, Communities & Local Government",MHCLG,14/01/2021,Current (non AEF) Grants to Local Authorities,Local Government Strategy and Analysis,BOLSOVER DC,,Large,,235516523,3700083319,,Grant payable by the Exchequer,S43 4JY,"282,798.00",Yes
"Housing, Communities & Local Government",MHCLG,14/01/2021,Current (non AEF) Grants to Local Authorities,Local Government Strategy and Analysis,BOLSOVER DC,,Large,,235516523,3700083524,,Grant payable by the Exchequer,S43 4JY,"424,214.00",Yes
"Housing, Communities & Local Government",MHCLG,14/01/2021,Current (non AEF) Grants to Local Authorities,Local Government Strategy and Analysis,BOLSOVER DC,,Large,,235516523,3700084453,,Grant payable by the Exchequer,S43 4JY,"1,978.00",Yes
"Housing, Communities & Local Government",MHCLG,14/01/2021,Current (non AEF) Grants to Local Authorities,Local Government Strategy and Analysis,BOLSOVER DC,,Large,,235516523,3700084471,,Grant payable by the Exchequer,S43 4JY,"2,966.00",Yes
"Housing, Communities & Local Government",MHCLG,14/01/2021,Current (non AEF) Grants to Local Authorities,Local Government Strategy and Analysis,BOLTON MBC,,,,,3700083635,,Grant payable by the Exchequer,BL1 1RU,"33,897.00",Yes
"Housing, Communities & Local Government",MHCLG,14/01/2021,Current (non AEF) Grants to Local Authorities,Local Government Strategy and Analysis,BOLTON MBC,,,,,3700084227,,Grant payable by the Exchequer,BL1 1RU,"2,978,454.00",Yes
"Housing, Communities & Local Government",MHCLG,14/01/2021,Current (non AEF) Grants to Local Authorities,Local Government Strategy and Analysis,BOSTON BC,,,,236417713,3700084023,,Grant payable by the Exchequer,PE21 8QR,"365,844.00",Yes
"Housing, Communities & Local Government",MHCLG,14/01/2021,Current (non AEF) Grants to Local Authorities,Local Government Strategy and Analysis,BOSTON BC,,,,236417713,3700084257,,Grant payable by the Exchequer,PE21 8QR,"548,787.00",Yes
"Housing, Communities & Local Government",MHCLG,14/01/2021,Current (non AEF) Grants to Local Authorities,Local Government Strategy and Analysis,BOSTON BC,,,,236417713,3700084298,,Grant payable by the Exchequer,PE21 8QR,"7,365.00",Yes
"Housing, Communities & Local Government",MHCLG,14/01/2021,Current (non AEF) Grants to Local Authorities,Local Government Strategy and Analysis,BOSTON BC,,,,236417713,3700084859,,Grant payable by the Exchequer,PE21 8QR,"4,910.00",Yes
"Housing, Communities & Local Government",MHCLG,14/01/2021,Current (non AEF) Grants to Local Authorities,Local Government Strategy and Analysis,"Bournemouth, Christchurch and Poole",,,,,3700083871,,Grant payable by the Exchequer,BH2 6DY,"23,647.00",Yes
"Housing, Communities & Local Government",MHCLG,14/01/2021,Current (non AEF) Grants to Local Authorities,Local Government Strategy and Analysis,"Bournemouth, Christchurch and Poole",,,,,3700083900,,Grant payable by the Exchequer,BH2 6DY,"35,472.00",Yes
"Housing, Communities & Local Government",MHCLG,14/01/2021,Current (non AEF) Grants to Local Authorities,Local Government Strategy and Analysis,"Bournemouth, Christchurch and Poole",,,,,3700084550,,Grant payable by the Exchequer,BH2 6DY,"3,237,725.00",Yes
"Housing, Communities & Local Government",MHCLG,14/01/2021,Current (non AEF) Grants to Local Authorities,Local Government Strategy and Analysis,"Bournemouth, Christchurch and Poole",,,,,3700084897,,Grant payable by the Exchequer,BH2 6DY,"4,856,781.00",Yes
"Housing, Communities & Local Government",MHCLG,14/01/2021,Current (non AEF) Grants to Local Authorities,Local Government Strategy and Analysis,BRACKNELL FOREST DC,,,,236184867,3700083338,,Grant payable by the Exchequer,RG12 1JD,"1,614,960.00",Yes
"Housing, Communities & Local Government",MHCLG,14/01/2021,Current (non AEF) Grants to Local Authorities,Local Government Strategy and Analysis,BRACKNELL FOREST DC,,,,236184867,3700083380,,Grant payable by the Exchequer,RG12 1JD,"14,928.00",Yes
"Housing, Communities & Local Government",MHCLG,14/01/2021,Current (non AEF) Grants to Local Authorities,Local Government Strategy and Analysis,BRACKNELL FOREST DC,,,,236184867,3700083835,,Grant payable by the Exchequer,RG12 1JD,"1,076,597.00",Yes
"Housing, Communities & Local Government",MHCLG,14/01/2021,Current (non AEF) Grants to Local Authorities,Local Government Strategy and Analysis,BRACKNELL FOREST DC,,,,236184867,3700083993,,Grant payable by the Exchequer,RG12 1JD,"9,952.00",Yes
"Housing, Communities & Local Government",MHCLG,14/01/2021,Current (non AEF) Grants to Local Authorities,Local Government Strategy and Analysis,BRADFORD MBC,,,,,3700084333,,Grant payable by the Exchequer,BD1 1HX,"2,773,079.00",Yes
"Housing, Communities & Local Government",MHCLG,14/01/2021,Current (non AEF) Grants to Local Authorities,Local Government Strategy and Analysis,BRADFORD MBC,,,,,3700084410,,Grant payable by the Exchequer,BD1 1HX,"40,832.00",Yes
"Housing, Communities & Local Government",MHCLG,14/01/2021,Current (non AEF) Grants to Local Authorities,Local Government Strategy and Analysis,BRADFORD MBC,,,,,3700084420,,Grant payable by the Exchequer,BD1 1HX,"1,848,645.00",Yes
"Housing, Communities & Local Government",MHCLG,14/01/2021,Current (non AEF) Grants to Local Authorities,Local Government Strategy and Analysis,BRADFORD MBC,,,,,3700084817,,Grant payable by the Exchequer,BD1 1HX,"61,250.00",Yes
"Housing, Communities & Local Government",MHCLG,14/01/2021,Current (non AEF) Grants to Local Authorities,Local Government Strategy and Analysis,BRAINTREE DC,,,,226941730,3700083518,,Grant payable by the Exchequer,CM7 9HB,"645,869.00",Yes
"Housing, Communities & Local Government",MHCLG,14/01/2021,Current (non AEF) Grants to Local Authorities,Local Government Strategy and Analysis,BRAINTREE DC,,,,226941730,3700084228,,Grant payable by the Exchequer,CM7 9HB,"968,843.00",Yes
"Housing, Communities & Local Government",MHCLG,14/01/2021,Current (non AEF) Grants to Local Authorities,Local Government Strategy and Analysis,BRAINTREE DC,,,,226941730,3700084689,,Grant payable by the Exchequer,CM7 9HB,"12,218.00",Yes
"Housing, Communities & Local Government",MHCLG,14/01/2021,Current (non AEF) Grants to Local Authorities,Local Government Strategy and Analysis,BRAINTREE DC,,,,226941730,3700084883,,Grant payable by the Exchequer,CM7 9HB,"8,144.00",Yes
"Housing, Communities & Local Government",MHCLG,14/01/2021,Current (non AEF) Grants to Local Authorities,Local Government Strategy and Analysis,BRECKLAND DC,,,,232611384,3700084072,,Grant payable by the Exchequer,NR19 1EE,"9,413.00",Yes
"Housing, Communities & Local Government",MHCLG,14/01/2021,Current (non AEF) Grants to Local Authorities,Local Government Strategy and Analysis,BRECKLAND DC,,,,232611384,3700084524,,Grant payable by the Exchequer,NR19 1EE,"6,275.00",Yes
"Housing, Communities & Local Government",MHCLG,14/01/2021,Current (non AEF) Grants to Local Authorities,Local Government Strategy and Analysis,BRECKLAND DC,,,,232611384,3700084754,,Grant payable by the Exchequer,NR19 1EE,"506,235.00",Yes
"Housing, Communities & Local Government",MHCLG,14/01/2021,Current (non AEF) Grants to Local Authorities,Local Government Strategy and Analysis,BRECKLAND DC,,,,232611384,3700084843,,Grant payable by the Exchequer,NR19 1EE,"759,383.00",Yes
"Housing, Communities & Local Government",MHCLG,14/01/2021,Current (non AEF) Grants to Local Authorities,Local Government Strategy and Analysis,BRENT LB,,,,,3700084212,,Grant payable by the Exchequer,HA9 9EZ,"14,194.00",Yes
"Housing, Communities & Local Government",MHCLG,14/01/2021,Current (non AEF) Grants to Local Authorities,Local Government Strategy and Analysis,BRENT LB,,,,,3700084384,,Grant payable by the Exchequer,HA9 9EZ,"1,933,541.00",Yes
"Housing, Communities & Local Government",MHCLG,14/01/2021,Current (non AEF) Grants to Local Authorities,Local Government Strategy and Analysis,BRENT LB,,,,,3700084714,,Grant payable by the Exchequer,HA9 9EZ,"2,617,012.00",Yes
"Housing, Communities & Local Government",MHCLG,14/01/2021,Current (non AEF) Grants to Local Authorities,Local Government Strategy and Analysis,BRENT LB,,,,,3700084826,,Grant payable by the Exchequer,HA9 9EZ,"19,211.00",Yes
"Housing, Communities & Local Government",MHCLG,14/01/2021,Current (non AEF) Grants to Local Authorities,Local Government Strategy and Analysis,BRENTWOOD BC,,,,227473188,3700083598,,Grant payable by the Exchequer,CM15 8AY,"5,661.00",Yes
"Housing, Communities & Local Government",MHCLG,14/01/2021,Current (non AEF) Grants to Local Authorities,Local Government Strategy and Analysis,BRENTWOOD BC,,,,227473188,3700084138,,Grant payable by the Exchequer,CM15 8AY,"655,202.00",Yes
"Housing, Communities & Local Government",MHCLG,14/01/2021,Current (non AEF) Grants to Local Authorities,Local Government Strategy and Analysis,BRENTWOOD BC,,,,227473188,3700084411,,Grant payable by the Exchequer,CM15 8AY,"436,783.00",Yes
"Housing, Communities & Local Government",MHCLG,14/01/2021,Current (non AEF) Grants to Local Authorities,Local Government Strategy and Analysis,BRENTWOOD BC,,,,227473188,3700084536,,Grant payable by the Exchequer,CM15 8AY,"8,491.00",Yes
"Housing, Communities & Local Government",MHCLG,14/01/2021,Current (non AEF) Grants to Local Authorities,Local Government Strategy and Analysis,BRIGHTON & HOVE CITY COUNCIL,,Large,,228455218,3700084033,,Grant payable by the Exchequer,BN1 3JE,"33,531.00",Yes
"Housing, Communities & Local Government",MHCLG,14/01/2021,Current (non AEF) Grants to Local Authorities,Local Government Strategy and Analysis,BRIGHTON & HOVE CITY COUNCIL,,Large,,228455218,3700084040,,Grant payable by the Exchequer,BN1 3JE,"3,990,100.00",Yes
"Housing, Communities & Local Government",MHCLG,14/01/2021,Current (non AEF) Grants to Local Authorities,Local Government Strategy and Analysis,BRIGHTON & HOVE CITY COUNCIL,,Large,,228455218,3700084583,,Grant payable by the Exchequer,BN1 3JE,"50,299.00",Yes
"Housing, Communities & Local Government",MHCLG,14/01/2021,Current (non AEF) Grants to Local Authorities,Local Government Strategy and Analysis,BRIGHTON & HOVE CITY COUNCIL,,Large,,228455218,3700084879,,Grant payable by the Exchequer,BN1 3JE,"2,659,960.00",Yes
"Housing, Communities & Local Government",MHCLG,14/01/2021,Current (non AEF) Grants to Local Authorities,Local Government Strategy and Analysis,BRISTOL CITY CNCL,,,,211103882,3700084284,,Grant payable by the Exchequer,BS99 7BL,"5,889,373.00",Yes
"Housing, Communities & Local Government",MHCLG,14/01/2021,Current (non AEF) Grants to Local Authorities,Local Government Strategy and Analysis,BRISTOL CITY CNCL,,,,211103882,3700084542,,Grant payable by the Exchequer,BS99 7BL,"72,838.00",Yes
"Housing, Communities & Local Government",MHCLG,14/01/2021,Current (non AEF) Grants to Local Authorities,Local Government Strategy and Analysis,BROADLAND DC,,,,219737785,3700083811,,Grant payable by the Exchequer,NR7 0DU,"8,184.00",Yes
"Housing, Communities & Local Government",MHCLG,14/01/2021,Current (non AEF) Grants to Local Authorities,Local Government Strategy and Analysis,BROADLAND DC,,,,219737785,3700084302,,Grant payable by the Exchequer,NR7 0DU,"529,993.00",Yes
"Housing, Communities & Local Government",MHCLG,14/01/2021,Current (non AEF) Grants to Local Authorities,Local Government Strategy and Analysis,BROADLAND DC,,,,219737785,3700084555,,Grant payable by the Exchequer,NR7 0DU,"795,022.00",Yes
"Housing, Communities & Local Government",MHCLG,14/01/2021,Current (non AEF) Grants to Local Authorities,Local Government Strategy and Analysis,BROADLAND DC,,,,219737785,3700084730,,Grant payable by the Exchequer,NR7 0DU,"5,456.00",Yes
"Housing, Communities & Local Government",MHCLG,14/01/2021,Current (non AEF) Grants to Local Authorities,Local Government Strategy and Analysis,BROMLEY LB,,,,211331954,3700083457,,Grant payable by the Exchequer,BR1 3UH,"45,970.00",Yes
"Housing, Communities & Local Government",MHCLG,14/01/2021,Current (non AEF) Grants to Local Authorities,Local Government Strategy and Analysis,BROMLEY LB,,,,211331954,3700084085,,Grant payable by the Exchequer,BR1 3UH,"33,964.00",Yes
"Housing, Communities & Local Government",MHCLG,14/01/2021,Current (non AEF) Grants to Local Authorities,Local Government Strategy and Analysis,BROMLEY LB,,,,211331954,3700084105,,Grant payable by the Exchequer,BR1 3UH,"2,075,466.00",Yes
"Housing, Communities & Local Government",MHCLG,14/01/2021,Current (non AEF) Grants to Local Authorities,Local Government Strategy and Analysis,BROMLEY LB,,,,211331954,3700084911,,Grant payable by the Exchequer,BR1 3UH,"2,809,105.00",Yes
"Housing, Communities & Local Government",MHCLG,14/01/2021,Current (non AEF) Grants to Local Authorities,Local Government Strategy and Analysis,BROMSGROVE DC,,,,236654745,3700083892,,Grant payable by the Exchequer,B60 1AA,"585,800.00",Yes
"Housing, Communities & Local Government",MHCLG,14/01/2021,Current (non AEF) Grants to Local Authorities,Local Government Strategy and Analysis,BROMSGROVE DC,,,,236654745,3700084657,,Grant payable by the Exchequer,B60 1AA,"390,517.00",Yes
"Housing, Communities & Local Government",MHCLG,14/01/2021,Current (non AEF) Grants to Local Authorities,Local Government Strategy and Analysis,BROMSGROVE DC,,,,236654745,3700084674,,Grant payable by the Exchequer,B60 1AA,"13,884.00",Yes
"Housing, Communities & Local Government",MHCLG,14/01/2021,Current (non AEF) Grants to Local Authorities,Local Government Strategy and Analysis,BROMSGROVE DC,,,,236654745,3700084698,,Grant payable by the Exchequer,B60 1AA,"9,255.00",Yes
"Housing, Communities & Local Government",MHCLG,14/01/2021,Current (non AEF) Grants to Local Authorities,Local Government Strategy and Analysis,BROXBOURNE BOROUGH COUNCIL,,,,239931918,3700083903,,Grant payable by the Exchequer,EN8 9XQ,"6,440.00",Yes
"Housing, Communities & Local Government",MHCLG,14/01/2021,Current (non AEF) Grants to Local Authorities,Local Government Strategy and Analysis,BROXBOURNE BOROUGH COUNCIL,,,,239931918,3700084608,,Grant payable by the Exchequer,EN8 9XQ,"9,659.00",Yes
"Housing, Communities & Local Government",MHCLG,14/01/2021,Current (non AEF) Grants to Local Authorities,Local Government Strategy and Analysis,BROXBOURNE BOROUGH COUNCIL,,,,239931918,3700084632,,Grant payable by the Exchequer,EN8 9XQ,"511,896.00",Yes
"Housing, Communities & Local Government",MHCLG,14/01/2021,Current (non AEF) Grants to Local Authorities,Local Government Strategy and Analysis,BROXBOURNE BOROUGH COUNCIL,,,,239931918,3700084758,,Grant payable by the Exchequer,EN8 9XQ,"767,875.00",Yes
"Housing, Communities & Local Government",MHCLG,14/01/2021,Current (non AEF) Grants to Local Authorities,Local Government Strategy and Analysis,BROXTOWE BC,,,,239877640,3700083908,,Grant payable by the Exchequer,NG9 1AB,"662,272.00",Yes
"Housing, Communities & Local Government",MHCLG,14/01/2021,Current (non AEF) Grants to Local Authorities,Local Government Strategy and Analysis,BROXTOWE BC,,,,239877640,3700084101,,Grant payable by the Exchequer,NG9 1AB,"12,750.00",Yes
"Housing, Communities & Local Government",MHCLG,14/01/2021,Current (non AEF) Grants to Local Authorities,Local Government Strategy and Analysis,BROXTOWE BC,,,,239877640,3700084497,,Grant payable by the Exchequer,NG9 1AB,"993,447.00",Yes
"Housing, Communities & Local Government",MHCLG,14/01/2021,Current (non AEF) Grants to Local Authorities,Local Government Strategy and Analysis,BROXTOWE BC,,,,239877640,3700084900,,Grant payable by the Exchequer,NG9 1AB,"8,499.00",Yes
"Housing, Communities & Local Government",MHCLG,14/01/2021,Current (non AEF) Grants to Local Authorities,Local Government Strategy and Analysis,Buckinghamshire Council,,,,,3700083649,,Grant payable by the Exchequer,HP19 8FF,"91,729.00",Yes
"Housing, Communities & Local Government",MHCLG,14/01/2021,Current (non AEF) Grants to Local Authorities,Local Government Strategy and Analysis,Buckinghamshire Council,,,,,3700083994,,Grant payable by the Exchequer,HP19 8FF,"4,557,150.00",Yes
"Housing, Communities & Local Government",MHCLG,14/01/2021,Current (non AEF) Grants to Local Authorities,Local Government Strategy and Analysis,Buckinghamshire Council,,,,,3700084050,,Grant payable by the Exchequer,HP19 8FF,"61,150.00",Yes
"Housing, Communities & Local Government",MHCLG,14/01/2021,Current (non AEF) Grants to Local Authorities,Local Government Strategy and Analysis,Buckinghamshire Council,,,,,3700084465,,Grant payable by the Exchequer,HP19 8FF,"3,037,979.00",Yes
"Housing, Communities & Local Government",MHCLG,14/01/2021,Current (non AEF) Grants to Local Authorities,Local Government Strategy and Analysis,BURNLEY BC,,,,229413281,3700083769,,Grant payable by the Exchequer,BB11 1JA,"6,188.00",Yes
"Housing, Communities & Local Government",MHCLG,14/01/2021,Current (non AEF) Grants to Local Authorities,Local Government Strategy and Analysis,BURNLEY BC,,,,229413281,3700083872,,Grant payable by the Exchequer,BB11 1JA,"458,288.00",Yes
"Housing, Communities & Local Government",MHCLG,14/01/2021,Current (non AEF) Grants to Local Authorities,Local Government Strategy and Analysis,BURNLEY BC,,,,229413281,3700084002,,Grant payable by the Exchequer,BB11 1JA,"687,460.00",Yes
"Housing, Communities & Local Government",MHCLG,14/01/2021,Current (non AEF) Grants to Local Authorities,Local Government Strategy and Analysis,BURNLEY BC,,,,229413281,3700084102,,Grant payable by the Exchequer,BB11 1JA,"4,124.00",Yes
"Housing, Communities & Local Government",MHCLG,14/01/2021,Current (non AEF) Grants to Local Authorities,Local Government Strategy and Analysis,BURY MBC,,,,236491114,3700083718,,Grant payable by the Exchequer,BL9 0SP,"28,868.00",Yes
"Housing, Communities & Local Government",MHCLG,14/01/2021,Current (non AEF) Grants to Local Authorities,Local Government Strategy and Analysis,BURY MBC,,,,236491114,3700084021,,Grant payable by the Exchequer,BL9 0SP,"1,856,061.00",Yes
"Housing, Communities & Local Government",MHCLG,14/01/2021,Current (non AEF) Grants to Local Authorities,Local Government Strategy and Analysis,CALDERDALE MBC,,Public Bodies,,,3700083623,,Grant payable by the Exchequer,HX1 1YP,"12,729.00",Yes
"Housing, Communities & Local Government",MHCLG,14/01/2021,Current (non AEF) Grants to Local Authorities,Local Government Strategy and Analysis,CALDERDALE MBC,,Public Bodies,,,3700083858,,Grant payable by the Exchequer,HX1 1YP,"222,511.00",Yes
"Housing, Communities & Local Government",MHCLG,14/01/2021,Current (non AEF) Grants to Local Authorities,Local Government Strategy and Analysis,CALDERDALE MBC,,Public Bodies,,,3700084240,,Grant payable by the Exchequer,HX1 1YP,"8,485.00",Yes
"Housing, Communities & Local Government",MHCLG,14/01/2021,Current (non AEF) Grants to Local Authorities,Local Government Strategy and Analysis,CALDERDALE MBC,,Public Bodies,,,3700084647,,Grant payable by the Exchequer,HX1 1YP,"333,781.00",Yes
"Housing, Communities & Local Government",MHCLG,14/01/2021,Current (non AEF) Grants to Local Authorities,Local Government Strategy and Analysis,CAMBRIDGE CITY COUNCIL,,,,210357534,3700083588,,Grant payable by the Exchequer,CB1 0JH,"23,999.00",Yes
"Housing, Communities & Local Government",MHCLG,14/01/2021,Current (non AEF) Grants to Local Authorities,Local Government Strategy and Analysis,CAMBRIDGE CITY COUNCIL,,,,210357534,3700083822,,Grant payable by the Exchequer,CB1 0JH,"2,066,704.00",Yes
"Housing, Communities & Local Government",MHCLG,14/01/2021,Current (non AEF) Grants to Local Authorities,Local Government Strategy and Analysis,CAMBRIDGE CITY COUNCIL,,,,210357534,3700084008,,Grant payable by the Exchequer,CB1 0JH,"3,100,179.00",Yes
"Housing, Communities & Local Government",MHCLG,14/01/2021,Current (non AEF) Grants to Local Authorities,Local Government Strategy and Analysis,CAMBRIDGE CITY COUNCIL,,,,210357534,3700084163,,Grant payable by the Exchequer,CB1 0JH,"36,000.00",Yes
"Housing, Communities & Local Government",MHCLG,14/01/2021,Current (non AEF) Grants to Local Authorities,Local Government Strategy and Analysis,CAMDEN LONDON BOROUGH,,,,,3700083584,,Grant payable by the Exchequer,N1C 4AG,"10,386,265.00",Yes
"Housing, Communities & Local Government",MHCLG,14/01/2021,Current (non AEF) Grants to Local Authorities,Local Government Strategy and Analysis,CAMDEN LONDON BOROUGH,,,,,3700084395,,Grant payable by the Exchequer,N1C 4AG,"19,390.00",Yes
"Housing, Communities & Local Government",MHCLG,14/01/2021,Current (non AEF) Grants to Local Authorities,Local Government Strategy and Analysis,CAMDEN LONDON BOROUGH,,,,,3700084540,,Grant payable by the Exchequer,N1C 4AG,"7,673,742.00",Yes
"Housing, Communities & Local Government",MHCLG,14/01/2021,Current (non AEF) Grants to Local Authorities,Local Government Strategy and Analysis,CAMDEN LONDON BOROUGH,,,,,3700084708,,Grant payable by the Exchequer,N1C 4AG,"26,244.00",Yes
"Housing, Communities & Local Government",MHCLG,14/01/2021,Current (non AEF) Grants to Local Authorities,Local Government Strategy and Analysis,CANNOCK CHASE DC,,,,215064770,3700083964,,Grant payable by the Exchequer,WS11 1BG,"569,212.00",Yes
"Housing, Communities & Local Government",MHCLG,14/01/2021,Current (non AEF) Grants to Local Authorities,Local Government Strategy and Analysis,CANNOCK CHASE DC,,,,215064770,3700084133,,Grant payable by the Exchequer,WS11 1BG,"1,653.00",Yes
"Housing, Communities & Local Government",MHCLG,14/01/2021,Current (non AEF) Grants to Local Authorities,Local Government Strategy and Analysis,CANNOCK CHASE DC,,,,215064770,3700084437,,Grant payable by the Exchequer,WS11 1BG,"853,853.00",Yes
"Housing, Communities & Local Government",MHCLG,14/01/2021,Current (non AEF) Grants to Local Authorities,Local Government Strategy and Analysis,CANNOCK CHASE DC,,,,215064770,3700084450,,Grant payable by the Exchequer,WS11 1BG,"2,480.00",Yes
"Housing, Communities & Local Government",MHCLG,14/01/2021,Current (non AEF) Grants to Local Authorities,Local Government Strategy and Analysis,CANTERBURY CITY CNCL,,,,,3700083423,,Grant payable by the Exchequer,CT1 1YW,"2,008,467.00",Yes
"Housing, Communities & Local Government",MHCLG,14/01/2021,Current (non AEF) Grants to Local Authorities,Local Government Strategy and Analysis,CANTERBURY CITY CNCL,,,,,3700083996,,Grant payable by the Exchequer,CT1 1YW,"4,422.00",Yes
"Housing, Communities & Local Government",MHCLG,14/01/2021,Current (non AEF) Grants to Local Authorities,Local Government Strategy and Analysis,CANTERBURY CITY CNCL,,,,,3700084123,,Grant payable by the Exchequer,CT1 1YW,"6,632.00",Yes
"Housing, Communities & Local Government",MHCLG,14/01/2021,Current (non AEF) Grants to Local Authorities,Local Government Strategy and Analysis,CANTERBURY CITY CNCL,,,,,3700084772,,Grant payable by the Exchequer,CT1 1YW,"1,338,925.00",Yes
"Housing, Communities & Local Government",MHCLG,14/01/2021,Current (non AEF) Grants to Local Authorities,Local Government Strategy and Analysis,CARLISLE CITY CNCL,,,,227471059,3700083937,,Grant payable by the Exchequer,CA3 8QG,"1,320,828.00",Yes
"Housing, Communities & Local Government",MHCLG,14/01/2021,Current (non AEF) Grants to Local Authorities,Local Government Strategy and Analysis,CARLISLE CITY CNCL,,,,227471059,3700083955,,Grant payable by the Exchequer,CA3 8QG,"6,047.00",Yes
"Housing, Communities & Local Government",MHCLG,14/01/2021,Current (non AEF) Grants to Local Authorities,Local Government Strategy and Analysis,CARLISLE CITY CNCL,,,,227471059,3700084434,,Grant payable by the Exchequer,CA3 8QG,"898,862.00",Yes
"Housing, Communities & Local Government",MHCLG,14/01/2021,Current (non AEF) Grants to Local Authorities,Local Government Strategy and Analysis,CARLISLE CITY CNCL,,,,227471059,3700084815,,Grant payable by the Exchequer,CA3 8QG,"4,031.00",Yes
"Housing, Communities & Local Government",MHCLG,14/01/2021,Current (non AEF) Grants to Local Authorities,Local Government Strategy and Analysis,CASTLE POINT BC,,Public Bodies,,228217931,3700083843,,Grant payable by the Exchequer,SS7 1TF,"4,798.00",Yes
"Housing, Communities & Local Government",MHCLG,14/01/2021,Current (non AEF) Grants to Local Authorities,Local Government Strategy and Analysis,CASTLE POINT BC,,Public Bodies,,228217931,3700084013,,Grant payable by the Exchequer,SS7 1TF,"324,054.00",Yes
"Housing, Communities & Local Government",MHCLG,14/01/2021,Current (non AEF) Grants to Local Authorities,Local Government Strategy and Analysis,CASTLE POINT BC,,Public Bodies,,228217931,3700084315,,Grant payable by the Exchequer,SS7 1TF,"486,100.00",Yes
"Housing, Communities & Local Government",MHCLG,14/01/2021,Current (non AEF) Grants to Local Authorities,Local Government Strategy and Analysis,CASTLE POINT BC,,Public Bodies,,228217931,3700084865,,Grant payable by the Exchequer,SS7 1TF,"3,198.00",Yes
"Housing, Communities & Local Government",MHCLG,14/01/2021,Current (non AEF) Grants to Local Authorities,Local Government Strategy and Analysis,CENTRAL BEDFORDSHIRE COUNCIL,,,,232624882,3700084063,,Grant payable by the Exchequer,SG17 5TQ,"1,505,196.00",Yes
"Housing, Communities & Local Government",MHCLG,14/01/2021,Current (non AEF) Grants to Local Authorities,Local Government Strategy and Analysis,CENTRAL BEDFORDSHIRE COUNCIL,,,,232624882,3700084490,,Grant payable by the Exchequer,SG17 5TQ,"1,003,424.00",Yes
"Housing, Communities & Local Government",MHCLG,14/01/2021,Current (non AEF) Grants to Local Authorities,Local Government Strategy and Analysis,CENTRAL BEDFORDSHIRE COUNCIL,,,,232624882,3700084660,,Grant payable by the Exchequer,SG17 5TQ,"16,100.00",Yes
"Housing, Communities & Local Government",MHCLG,14/01/2021,Current (non AEF) Grants to Local Authorities,Local Government Strategy and Analysis,CENTRAL BEDFORDSHIRE COUNCIL,,,,232624882,3700084809,,Grant payable by the Exchequer,SG17 5TQ,"24,152.00",Yes
"Housing, Communities & Local Government",MHCLG,14/01/2021,Current (non AEF) Grants to Local Authorities,Local Government Strategy and Analysis,CHARNWOOD BC,,,,,3700083465,,Grant payable by the Exchequer,LE11 2TU,"8,106.00",Yes
"Housing, Communities & Local Government",MHCLG,14/01/2021,Current (non AEF) Grants to Local Authorities,Local Government Strategy and Analysis,CHARNWOOD BC,,,,,3700083608,,Grant payable by the Exchequer,LE11 2TU,"1,080,847.00",Yes
"Housing, Communities & Local Government",MHCLG,14/01/2021,Current (non AEF) Grants to Local Authorities,Local Government Strategy and Analysis,CHARNWOOD BC,,,,,3700084242,,Grant payable by the Exchequer,LE11 2TU,"12,159.00",Yes
"Housing, Communities & Local Government",MHCLG,14/01/2021,Current (non AEF) Grants to Local Authorities,Local Government Strategy and Analysis,CHARNWOOD BC,,,,,3700084694,,Grant payable by the Exchequer,LE11 2TU,"720,535.00",Yes
"Housing, Communities & Local Government",MHCLG,14/01/2021,Current (non AEF) Grants to Local Authorities,Local Government Strategy and Analysis,CHELMSFORD BC,,,,,3700083839,,Grant payable by the Exchequer,CM1 1JE,"2,793.00",Yes
"Housing, Communities & Local Government",MHCLG,14/01/2021,Current (non AEF) Grants to Local Authorities,Local Government Strategy and Analysis,CHELMSFORD BC,,,,,3700083917,,Grant payable by the Exchequer,CM1 1JE,"4,190.00",Yes
"Housing, Communities & Local Government",MHCLG,14/01/2021,Current (non AEF) Grants to Local Authorities,Local Government Strategy and Analysis,CHELMSFORD BC,,,,,3700084118,,Grant payable by the Exchequer,CM1 1JE,"1,296,429.00",Yes
"Housing, Communities & Local Government",MHCLG,14/01/2021,Current (non AEF) Grants to Local Authorities,Local Government Strategy and Analysis,CHELMSFORD BC,,,,,3700084661,,Grant payable by the Exchequer,CM1 1JE,"1,944,720.00",Yes
"Housing, Communities & Local Government",MHCLG,14/01/2021,Current (non AEF) Grants to Local Authorities,Local Government Strategy and Analysis,CHELTENHAM BC,,,,,3700083451,,Grant payable by the Exchequer,GL50 1PW,"1,266,557.00",Yes
"Housing, Communities & Local Government",MHCLG,14/01/2021,Current (non AEF) Grants to Local Authorities,Local Government Strategy and Analysis,CHELTENHAM BC,,,,,3700083879,,Grant payable by the Exchequer,GL50 1PW,"4,316.00",Yes
"Housing, Communities & Local Government",MHCLG,14/01/2021,Current (non AEF) Grants to Local Authorities,Local Government Strategy and Analysis,CHELTENHAM BC,,,,,3700084081,,Grant payable by the Exchequer,GL50 1PW,"1,899,913.00",Yes
"Housing, Communities & Local Government",MHCLG,14/01/2021,Current (non AEF) Grants to Local Authorities,Local Government Strategy and Analysis,CHELTENHAM BC,,,,,3700084236,,Grant payable by the Exchequer,GL50 1PW,"6,473.00",Yes
"Housing, Communities & Local Government",MHCLG,14/01/2021,Current (non AEF) Grants to Local Authorities,Local Government Strategy and Analysis,CHERWELL DC,,,,,3700084289,,Grant payable by the Exchequer,OX15 4AA,"2,148,727.00",Yes
"Housing, Communities & Local Government",MHCLG,14/01/2021,Current (non AEF) Grants to Local Authorities,Local Government Strategy and Analysis,CHERWELL DC,,,,,3700084332,,Grant payable by the Exchequer,OX15 4AA,"3,223,219.00",Yes
"Housing, Communities & Local Government",MHCLG,14/01/2021,Current (non AEF) Grants to Local Authorities,Local Government Strategy and Analysis,CHERWELL DC,,,,,3700084543,,Grant payable by the Exchequer,OX15 4AA,"14,338.00",Yes
"Housing, Communities & Local Government",MHCLG,14/01/2021,Current (non AEF) Grants to Local Authorities,Local Government Strategy and Analysis,CHERWELL DC,,,,,3700084797,,Grant payable by the Exchequer,OX15 4AA,"9,558.00",Yes
"Housing, Communities & Local Government",MHCLG,14/01/2021,Current (non AEF) Grants to Local Authorities,Local Government Strategy and Analysis,CHESHIRE EAST BOROUGH COUNCIL,,,,293699450,3700083406,,Grant payable by the Exchequer,CW11 1HZ,"40,411.00",Yes
"Housing, Communities & Local Government",MHCLG,14/01/2021,Current (non AEF) Grants to Local Authorities,Local Government Strategy and Analysis,CHESHIRE EAST BOROUGH COUNCIL,,,,293699450,3700083582,,Grant payable by the Exchequer,CW11 1HZ,"2,408,831.00",Yes
"Housing, Communities & Local Government",MHCLG,14/01/2021,Current (non AEF) Grants to Local Authorities,Local Government Strategy and Analysis,CHESHIRE EAST BOROUGH COUNCIL,,,,293699450,3700083930,,Grant payable by the Exchequer,CW11 1HZ,"60,618.00",Yes
"Housing, Communities & Local Government",MHCLG,14/01/2021,Current (non AEF) Grants to Local Authorities,Local Government Strategy and Analysis,CHESHIRE EAST BOROUGH COUNCIL,,,,293699450,3700084020,,Grant payable by the Exchequer,CW11 1HZ,"3,613,392.00",Yes
"Housing, Communities & Local Government",MHCLG,14/01/2021,Current (non AEF) Grants to Local Authorities,Local Government Strategy and Analysis,CHESHIRE WEST AND CHESTER,,Large,,215584383,3700084293,,Grant payable by the Exchequer,CH1 2NP,"2,970,666.00",Yes
"Housing, Communities & Local Government",MHCLG,14/01/2021,Current (non AEF) Grants to Local Authorities,Local Government Strategy and Analysis,CHESHIRE WEST AND CHESTER,,Large,,215584383,3700084463,,Grant payable by the Exchequer,CH1 2NP,"4,456,178.00",Yes
"Housing, Communities & Local Government",MHCLG,14/01/2021,Current (non AEF) Grants to Local Authorities,Local Government Strategy and Analysis,CHESHIRE WEST AND CHESTER,,Large,,215584383,3700084616,,Grant payable by the Exchequer,CH1 2NP,"37,550.00",Yes
"Housing, Communities & Local Government",MHCLG,14/01/2021,Current (non AEF) Grants to Local Authorities,Local Government Strategy and Analysis,CHESHIRE WEST AND CHESTER,,Large,,215584383,3700084850,,Grant payable by the Exchequer,CH1 2NP,"25,033.00",Yes
"Housing, Communities & Local Government",MHCLG,14/01/2021,Current (non AEF) Grants to Local Authorities,Local Government Strategy and Analysis,CHESTERFIELD BC,,,,232102301,3700083572,,Grant payable by the Exchequer,S40 1LP,"675,155.00",Yes
"Housing, Communities & Local Government",MHCLG,14/01/2021,Current (non AEF) Grants to Local Authorities,Local Government Strategy and Analysis,CHESTERFIELD BC,,,,232102301,3700083896,,Grant payable by the Exchequer,S40 1LP,"2,839.00",Yes
"Housing, Communities & Local Government",MHCLG,14/01/2021,Current (non AEF) Grants to Local Authorities,Local Government Strategy and Analysis,CHESTERFIELD BC,,,,232102301,3700084710,,Grant payable by the Exchequer,S40 1LP,"4,258.00",Yes
"Housing, Communities & Local Government",MHCLG,14/01/2021,Current (non AEF) Grants to Local Authorities,Local Government Strategy and Analysis,CHESTERFIELD BC,,,,232102301,3700084734,,Grant payable by the Exchequer,S40 1LP,"1,012,772.00",Yes
"Housing, Communities & Local Government",MHCLG,14/01/2021,Current (non AEF) Grants to Local Authorities,Local Government Strategy and Analysis,CHICHESTER DC,,,,739800998,3700083398,,Grant payable by the Exchequer,PO19 1TY,"1,599,526.00",Yes
"Housing, Communities & Local Government",MHCLG,14/01/2021,Current (non AEF) Grants to Local Authorities,Local Government Strategy and Analysis,CHICHESTER DC,,,,739800998,3700084300,,Grant payable by the Exchequer,PO19 1TY,"10,256.00",Yes
"Housing, Communities & Local Government",MHCLG,14/01/2021,Current (non AEF) Grants to Local Authorities,Local Government Strategy and Analysis,CHICHESTER DC,,,,739800998,3700084349,,Grant payable by the Exchequer,PO19 1TY,"1,066,308.00",Yes
"Housing, Communities & Local Government",MHCLG,14/01/2021,Current (non AEF) Grants to Local Authorities,Local Government Strategy and Analysis,CHICHESTER DC,,,,739800998,3700084848,,Grant payable by the Exchequer,PO19 1TY,"15,385.00",Yes
"Housing, Communities & Local Government",MHCLG,14/01/2021,Current (non AEF) Grants to Local Authorities,Local Government Strategy and Analysis,CHORLEY DC,,,,236415576,3700083504,,Grant payable by the Exchequer,PR7 1DP,"618,776.00",Yes
"Housing, Communities & Local Government",MHCLG,14/01/2021,Current (non AEF) Grants to Local Authorities,Local Government Strategy and Analysis,CHORLEY DC,,,,236415576,3700083940,,Grant payable by the Exchequer,PR7 1DP,"412,501.00",Yes
"Housing, Communities & Local Government",MHCLG,14/01/2021,Current (non AEF) Grants to Local Authorities,Local Government Strategy and Analysis,CHORLEY DC,,,,236415576,3700084048,,Grant payable by the Exchequer,PR7 1DP,"8,834.00",Yes
"Housing, Communities & Local Government",MHCLG,14/01/2021,Current (non AEF) Grants to Local Authorities,Local Government Strategy and Analysis,CHORLEY DC,,,,236415576,3700084588,,Grant payable by the Exchequer,PR7 1DP,"13,251.00",Yes
"Housing, Communities & Local Government",MHCLG,14/01/2021,Current (non AEF) Grants to Local Authorities,Local Government Strategy and Analysis,CITY OF LINCOLN COUNCIL,,,,,3700083545,,Grant payable by the Exchequer,LN1 1DB,"9,448.00",Yes
"Housing, Communities & Local Government",MHCLG,14/01/2021,Current (non AEF) Grants to Local Authorities,Local Government Strategy and Analysis,CITY OF LINCOLN COUNCIL,,,,,3700084397,,Grant payable by the Exchequer,LN1 1DB,"6,298.00",Yes
"Housing, Communities & Local Government",MHCLG,14/01/2021,Current (non AEF) Grants to Local Authorities,Local Government Strategy and Analysis,CITY OF LINCOLN COUNCIL,,,,,3700084574,,Grant payable by the Exchequer,LN1 1DB,"1,542,348.00",Yes
"Housing, Communities & Local Government",MHCLG,14/01/2021,Current (non AEF) Grants to Local Authorities,Local Government Strategy and Analysis,CITY OF LINCOLN COUNCIL,,,,,3700084701,,Grant payable by the Exchequer,LN1 1DB,"1,028,191.00",Yes
"Housing, Communities & Local Government",MHCLG,14/01/2021,Current (non AEF) Grants to Local Authorities,Local Government Strategy and Analysis,CITY OF WAKEFIELD MDC,,,,,3700083882,,Grant payable by the Exchequer,WF1 2QW,"14,508.00",Yes
"Housing, Communities & Local Government",MHCLG,14/01/2021,Current (non AEF) Grants to Local Authorities,Local Government Strategy and Analysis,CITY OF WAKEFIELD MDC,,,,,3700084304,,Grant payable by the Exchequer,WF1 2QW,"1,709,274.00",Yes
"Housing, Communities & Local Government",MHCLG,14/01/2021,Current (non AEF) Grants to Local Authorities,Local Government Strategy and Analysis,CITY OF WAKEFIELD MDC,,,,,3700084346,,Grant payable by the Exchequer,WF1 2QW,"2,564,013.00",Yes
"Housing, Communities & Local Government",MHCLG,14/01/2021,Current (non AEF) Grants to Local Authorities,Local Government Strategy and Analysis,CITY OF WAKEFIELD MDC,,,,,3700084801,,Grant payable by the Exchequer,WF1 2QW,"21,763.00",Yes
"Housing, Communities & Local Government",MHCLG,14/01/2021,Current (non AEF) Grants to Local Authorities,Local Government Strategy and Analysis,COLCHESTER BC,,,,,3700083692,,Grant payable by the Exchequer,CO3 3WG,"28,159.00",Yes
"Housing, Communities & Local Government",MHCLG,14/01/2021,Current (non AEF) Grants to Local Authorities,Local Government Strategy and Analysis,COLCHESTER BC,,,,,3700084158,,Grant payable by the Exchequer,CO3 3WG,"18,772.00",Yes
"Housing, Communities & Local Government",MHCLG,14/01/2021,Current (non AEF) Grants to Local Authorities,Local Government Strategy and Analysis,COLCHESTER BC,,,,,3700084215,,Grant payable by the Exchequer,CO3 3WG,"1,998,070.00",Yes
"Housing, Communities & Local Government",MHCLG,14/01/2021,Current (non AEF) Grants to Local Authorities,Local Government Strategy and Analysis,COLCHESTER BC,,,,,3700084354,,Grant payable by the Exchequer,CO3 3WG,"1,331,994.00",Yes
"Housing, Communities & Local Government",MHCLG,14/01/2021,Current (non AEF) Grants to Local Authorities,Local Government Strategy and Analysis,COPELAND BC,,,,236414827,3700083400,,Grant payable by the Exchequer,CA28 7NY,"3,394.00",Yes
"Housing, Communities & Local Government",MHCLG,14/01/2021,Current (non AEF) Grants to Local Authorities,Local Government Strategy and Analysis,COPELAND BC,,,,236414827,3700083512,,Grant payable by the Exchequer,CA28 7NY,"308,347.00",Yes
"Housing, Communities & Local Government",MHCLG,14/01/2021,Current (non AEF) Grants to Local Authorities,Local Government Strategy and Analysis,COPELAND BC,,,,236414827,3700083526,,Grant payable by the Exchequer,CA28 7NY,"2,263.00",Yes
"Housing, Communities & Local Government",MHCLG,14/01/2021,Current (non AEF) Grants to Local Authorities,Local Government Strategy and Analysis,COPELAND BC,,,,236414827,3700084644,,Grant payable by the Exchequer,CA28 7NY,"205,556.00",Yes
"Housing, Communities & Local Government",MHCLG,14/01/2021,Current (non AEF) Grants to Local Authorities,Local Government Strategy and Analysis,CORBY BC,,,,,3700084127,,Grant payable by the Exchequer,NN17 1GD,"4,207.00",Yes
"Housing, Communities & Local Government",MHCLG,14/01/2021,Current (non AEF) Grants to Local Authorities,Local Government Strategy and Analysis,CORBY BC,,,,,3700084216,,Grant payable by the Exchequer,NN17 1GD,"6,312.00",Yes
"Housing, Communities & Local Government",MHCLG,14/01/2021,Current (non AEF) Grants to Local Authorities,Local Government Strategy and Analysis,CORBY BC,,,,,3700084443,,Grant payable by the Exchequer,NN17 1GD,"237,171.00",Yes
"Housing, Communities & Local Government",MHCLG,14/01/2021,Current (non AEF) Grants to Local Authorities,Local Government Strategy and Analysis,CORBY BC,,,,,3700084722,,Grant payable by the Exchequer,NN17 1GD,"158,108.00",Yes
"Housing, Communities & Local Government",MHCLG,14/01/2021,Current (non AEF) Grants to Local Authorities,Local Government Strategy and Analysis,CORNWALL COUNCIL,,,,211334404,3700084107,,Grant payable by the Exchequer,TR1 3AY,625.00,Yes
"Housing, Communities & Local Government",MHCLG,14/01/2021,Current (non AEF) Grants to Local Authorities,Local Government Strategy and Analysis,CORNWALL COUNCIL,,,,211334404,3700084274,,Grant payable by the Exchequer,TR1 3AY,"7,581,202.00",Yes
"Housing, Communities & Local Government",MHCLG,14/01/2021,Current (non AEF) Grants to Local Authorities,Local Government Strategy and Analysis,CORNWALL COUNCIL,,,,211334404,3700084413,,Grant payable by the Exchequer,TR1 3AY,"36,406.00",Yes
"Housing, Communities & Local Government",MHCLG,14/01/2021,Current (non AEF) Grants to Local Authorities,Local Government Strategy and Analysis,CORPORATION OF LONDON,,,,225438175,3700083750,,Grant payable by the Exchequer,EC2P 2EJ,"8,121.00",Yes
"Housing, Communities & Local Government",MHCLG,14/01/2021,Current (non AEF) Grants to Local Authorities,Local Government Strategy and Analysis,CORPORATION OF LONDON,,,,225438175,3700084129,,Grant payable by the Exchequer,EC2P 2EJ,"6,347,741.00",Yes
"Housing, Communities & Local Government",MHCLG,14/01/2021,Current (non AEF) Grants to Local Authorities,Local Government Strategy and Analysis,CORPORATION OF LONDON,,,,225438175,3700084287,,Grant payable by the Exchequer,EC2P 2EJ,"4,689,937.00",Yes
"Housing, Communities & Local Government",MHCLG,14/01/2021,Current (non AEF) Grants to Local Authorities,Local Government Strategy and Analysis,CORPORATION OF LONDON,,,,225438175,3700084310,,Grant payable by the Exchequer,EC2P 2EJ,"10,992.00",Yes
"Housing, Communities & Local Government",MHCLG,14/01/2021,Current (non AEF) Grants to Local Authorities,Local Government Strategy and Analysis,COTSWOLD DC,,,,232462085,3700083714,,Grant payable by the Exchequer,GL7 1PX,"2,963.00",Yes
"Housing, Communities & Local Government",MHCLG,14/01/2021,Current (non AEF) Grants to Local Authorities,Local Government Strategy and Analysis,COTSWOLD DC,,,,232462085,3700084192,,Grant payable by the Exchequer,GL7 1PX,"4,445.00",Yes
"Housing, Communities & Local Government",MHCLG,14/01/2021,Current (non AEF) Grants to Local Authorities,Local Government Strategy and Analysis,COTSWOLD DC,,,,232462085,3700084306,,Grant payable by the Exchequer,GL7 1PX,"988,631.00",Yes
"Housing, Communities & Local Government",MHCLG,14/01/2021,Current (non AEF) Grants to Local Authorities,Local Government Strategy and Analysis,COTSWOLD DC,,,,232462085,3700084447,,Grant payable by the Exchequer,GL7 1PX,"659,060.00",Yes
"Housing, Communities & Local Government",MHCLG,14/01/2021,Current (non AEF) Grants to Local Authorities,Local Government Strategy and Analysis,COVENTRY CITY CNCL,,,,210384802,3700084303,,Grant payable by the Exchequer,CV1 2QL,"41,233.00",Yes
"Housing, Communities & Local Government",MHCLG,14/01/2021,Current (non AEF) Grants to Local Authorities,Local Government Strategy and Analysis,COVENTRY CITY CNCL,,,,210384802,3700084487,,Grant payable by the Exchequer,CV1 2QL,"3,884,820.00",Yes
"Housing, Communities & Local Government",MHCLG,14/01/2021,Current (non AEF) Grants to Local Authorities,Local Government Strategy and Analysis,CRAVEN DISTRICT COUNCIL,,,,215577851,3700083758,,Grant payable by the Exchequer,BD23 1PS,"2,888.00",Yes
"Housing, Communities & Local Government",MHCLG,14/01/2021,Current (non AEF) Grants to Local Authorities,Local Government Strategy and Analysis,CRAVEN DISTRICT COUNCIL,,,,215577851,3700084093,,Grant payable by the Exchequer,BD23 1PS,"1,925.00",Yes
"Housing, Communities & Local Government",MHCLG,14/01/2021,Current (non AEF) Grants to Local Authorities,Local Government Strategy and Analysis,CRAVEN DISTRICT COUNCIL,,,,215577851,3700084149,,Grant payable by the Exchequer,BD23 1PS,"85,289.00",Yes
"Housing, Communities & Local Government",MHCLG,14/01/2021,Current (non AEF) Grants to Local Authorities,Local Government Strategy and Analysis,CRAVEN DISTRICT COUNCIL,,,,215577851,3700084441,,Grant payable by the Exchequer,BD23 1PS,"127,938.00",Yes
"Housing, Communities & Local Government",MHCLG,14/01/2021,Current (non AEF) Grants to Local Authorities,Local Government Strategy and Analysis,CRAWLEY BOROUGH COUNCIL,,,,211222500,3700083732,,Grant payable by the Exchequer,RH10 1UZ,"1,395,064.00",Yes
"Housing, Communities & Local Government",MHCLG,14/01/2021,Current (non AEF) Grants to Local Authorities,Local Government Strategy and Analysis,CRAWLEY BOROUGH COUNCIL,,,,211222500,3700084402,,Grant payable by the Exchequer,RH10 1UZ,"14,819.00",Yes
"Housing, Communities & Local Government",MHCLG,14/01/2021,Current (non AEF) Grants to Local Authorities,Local Government Strategy and Analysis,CRAWLEY BOROUGH COUNCIL,,,,211222500,3700084810,,Grant payable by the Exchequer,RH10 1UZ,"2,092,681.00",Yes
"Housing, Communities & Local Government",MHCLG,14/01/2021,Current (non AEF) Grants to Local Authorities,Local Government Strategy and Analysis,CRAWLEY BOROUGH COUNCIL,,,,211222500,3700084819,,Grant payable by the Exchequer,RH10 1UZ,"22,229.00",Yes
"Housing, Communities & Local Government",MHCLG,14/01/2021,Current (non AEF) Grants to Local Authorities,Local Government Strategy and Analysis,CROYDON LB,,,,212419973,3700083738,,Grant payable by the Exchequer,CR0 1EA,"1,799,598.00",Yes
"Housing, Communities & Local Government",MHCLG,14/01/2021,Current (non AEF) Grants to Local Authorities,Local Government Strategy and Analysis,CROYDON LB,,,,212419973,3700084401,,Grant payable by the Exchequer,CR0 1EA,"3,160,387.00",Yes
"Housing, Communities & Local Government",MHCLG,14/01/2021,Current (non AEF) Grants to Local Authorities,Local Government Strategy and Analysis,CROYDON LB,,,,212419973,3700084707,,Grant payable by the Exchequer,CR0 1EA,"44,210.00",Yes
"Housing, Communities & Local Government",MHCLG,14/01/2021,Current (non AEF) Grants to Local Authorities,Local Government Strategy and Analysis,CROYDON LB,,,,212419973,3700084916,,Grant payable by the Exchequer,CR0 1EA,"63,058.00",Yes
"Housing, Communities & Local Government",MHCLG,14/01/2021,Current (non AEF) Grants to Local Authorities,Local Government Strategy and Analysis,DACORUM BC,,,,236448643,3700083566,,Grant payable by the Exchequer,HP1 1DN,"18,375.00",Yes
"Housing, Communities & Local Government",MHCLG,14/01/2021,Current (non AEF) Grants to Local Authorities,Local Government Strategy and Analysis,DACORUM BC,,,,236448643,3700084190,,Grant payable by the Exchequer,HP1 1DN,"12,249.00",Yes
"Housing, Communities & Local Government",MHCLG,14/01/2021,Current (non AEF) Grants to Local Authorities,Local Government Strategy and Analysis,DACORUM BC,,,,236448643,3700084253,,Grant payable by the Exchequer,HP1 1DN,"1,072,981.00",Yes
"Housing, Communities & Local Government",MHCLG,14/01/2021,Current (non AEF) Grants to Local Authorities,Local Government Strategy and Analysis,DACORUM BC,,,,236448643,3700084637,,Grant payable by the Exchequer,HP1 1DN,"1,609,536.00",Yes
"Housing, Communities & Local Government",MHCLG,14/01/2021,Current (non AEF) Grants to Local Authorities,Local Government Strategy and Analysis,DARLINGTON BC,,,,,3700083392,,Grant payable by the Exchequer,TS19 1JA,"5,488.00",Yes
"Housing, Communities & Local Government",MHCLG,14/01/2021,Current (non AEF) Grants to Local Authorities,Local Government Strategy and Analysis,DARLINGTON BC,,,,,3700083857,,Grant payable by the Exchequer,TS19 1JA,"8,233.00",Yes
"Housing, Communities & Local Government",MHCLG,14/01/2021,Current (non AEF) Grants to Local Authorities,Local Government Strategy and Analysis,DARLINGTON BC,,,,,3700084091,,Grant payable by the Exchequer,TS19 1JA,"962,384.00",Yes
"Housing, Communities & Local Government",MHCLG,14/01/2021,Current (non AEF) Grants to Local Authorities,Local Government Strategy and Analysis,DARLINGTON BC,,,,,3700084418,,Grant payable by the Exchequer,TS19 1JA,"641,710.00",Yes
"Housing, Communities & Local Government",MHCLG,14/01/2021,Current (non AEF) Grants to Local Authorities,Local Government Strategy and Analysis,DARTFORD BC,,,,225694942,3700083641,,Grant payable by the Exchequer,DA1 1DR,"3,618,514.00",Yes
"Housing, Communities & Local Government",MHCLG,14/01/2021,Current (non AEF) Grants to Local Authorities,Local Government Strategy and Analysis,DARTFORD BC,,,,225694942,3700083956,,Grant payable by the Exchequer,DA1 1DR,"13,551.00",Yes
"Housing, Communities & Local Government",MHCLG,14/01/2021,Current (non AEF) Grants to Local Authorities,Local Government Strategy and Analysis,DARTFORD BC,,,,225694942,3700084365,,Grant payable by the Exchequer,DA1 1DR,"2,412,245.00",Yes
"Housing, Communities & Local Government",MHCLG,14/01/2021,Current (non AEF) Grants to Local Authorities,Local Government Strategy and Analysis,DARTFORD BC,,,,225694942,3700084475,,Grant payable by the Exchequer,DA1 1DR,"20,327.00",Yes
"Housing, Communities & Local Government",MHCLG,14/01/2021,Current (non AEF) Grants to Local Authorities,Local Government Strategy and Analysis,DAVENTRY DC,,,,239859333,3700083782,,Grant payable by the Exchequer,NN11 5AF,"217,394.00",Yes
"Housing, Communities & Local Government",MHCLG,14/01/2021,Current (non AEF) Grants to Local Authorities,Local Government Strategy and Analysis,DAVENTRY DC,,,,239859333,3700084121,,Grant payable by the Exchequer,NN11 5AF,"8,687.00",Yes
"Housing, Communities & Local Government",MHCLG,14/01/2021,Current (non AEF) Grants to Local Authorities,Local Government Strategy and Analysis,DAVENTRY DC,,,,239859333,3700084492,,Grant payable by the Exchequer,NN11 5AF,"144,923.00",Yes
"Housing, Communities & Local Government",MHCLG,14/01/2021,Current (non AEF) Grants to Local Authorities,Local Government Strategy and Analysis,DAVENTRY DC,,,,239859333,3700084511,,Grant payable by the Exchequer,NN11 5AF,"5,791.00",Yes
"Housing, Communities & Local Government",MHCLG,14/01/2021,Current (non AEF) Grants to Local Authorities,Local Government Strategy and Analysis,DERBY CITY CNCL,,,,229641378,3700083618,,Grant payable by the Exchequer,DE1 2FS,"28,030.00",Yes
"Housing, Communities & Local Government",MHCLG,14/01/2021,Current (non AEF) Grants to Local Authorities,Local Government Strategy and Analysis,DERBY CITY CNCL,,,,229641378,3700084499,,Grant payable by the Exchequer,DE1 2FS,"1,383,938.00",Yes
"Housing, Communities & Local Government",MHCLG,14/01/2021,Current (non AEF) Grants to Local Authorities,Local Government Strategy and Analysis,DERBY CITY CNCL,,,,229641378,3700084590,,Grant payable by the Exchequer,DE1 2FS,"18,686.00",Yes
"Housing, Communities & Local Government",MHCLG,14/01/2021,Current (non AEF) Grants to Local Authorities,Local Government Strategy and Analysis,DERBY CITY CNCL,,,,229641378,3700084902,,Grant payable by the Exchequer,DE1 2FS,"2,075,990.00",Yes
"Housing, Communities & Local Government",MHCLG,14/01/2021,Current (non AEF) Grants to Local Authorities,Local Government Strategy and Analysis,DERBYSHIRE DALES DC,,,,,3700083868,,Grant payable by the Exchequer,DE4 3NN,"289,633.00",Yes
"Housing, Communities & Local Government",MHCLG,14/01/2021,Current (non AEF) Grants to Local Authorities,Local Government Strategy and Analysis,DERBYSHIRE DALES DC,,,,,3700084011,,Grant payable by the Exchequer,DE4 3NN,"1,465.00",Yes
"Housing, Communities & Local Government",MHCLG,14/01/2021,Current (non AEF) Grants to Local Authorities,Local Government Strategy and Analysis,DERBYSHIRE DALES DC,,,,,3700084503,,Grant payable by the Exchequer,DE4 3NN,"2,198.00",Yes
"Housing, Communities & Local Government",MHCLG,14/01/2021,Current (non AEF) Grants to Local Authorities,Local Government Strategy and Analysis,DERBYSHIRE DALES DC,,,,,3700084615,,Grant payable by the Exchequer,DE4 3NN,"434,468.00",Yes
"Housing, Communities & Local Government",MHCLG,14/01/2021,Current (non AEF) Grants to Local Authorities,Local Government Strategy and Analysis,DONCASTER MBC,,,,,3700084067,,Grant payable by the Exchequer,DN1 3QA,"2,296,635.00",Yes
"Housing, Communities & Local Government",MHCLG,14/01/2021,Current (non AEF) Grants to Local Authorities,Local Government Strategy and Analysis,DONCASTER MBC,,,,,3700084331,,Grant payable by the Exchequer,DN1 3QA,"17,372.00",Yes
"Housing, Communities & Local Government",MHCLG,14/01/2021,Current (non AEF) Grants to Local Authorities,Local Government Strategy and Analysis,DONCASTER MBC,,,,,3700084642,,Grant payable by the Exchequer,DN1 3QA,"11,581.00",Yes
"Housing, Communities & Local Government",MHCLG,14/01/2021,Current (non AEF) Grants to Local Authorities,Local Government Strategy and Analysis,DONCASTER MBC,,,,,3700084887,,Grant payable by the Exchequer,DN1 3QA,"1,531,029.00",Yes
"Housing, Communities & Local Government",MHCLG,14/01/2021,Current (non AEF) Grants to Local Authorities,Local Government Strategy and Analysis,DORSET COUNCIL,,,,,3700083482,,Grant payable by the Exchequer,DT1 1XJ,"2,806,050.00",Yes
"Housing, Communities & Local Government",MHCLG,14/01/2021,Current (non AEF) Grants to Local Authorities,Local Government Strategy and Analysis,DORSET COUNCIL,,,,,3700083905,,Grant payable by the Exchequer,DT1 1XJ,"17,854.00",Yes
"Housing, Communities & Local Government",MHCLG,14/01/2021,Current (non AEF) Grants to Local Authorities,Local Government Strategy and Analysis,DORSET COUNCIL,,,,,3700084549,,Grant payable by the Exchequer,DT1 1XJ,"26,782.00",Yes
"Housing, Communities & Local Government",MHCLG,14/01/2021,Current (non AEF) Grants to Local Authorities,Local Government Strategy and Analysis,DORSET COUNCIL,,,,,3700084727,,Grant payable by the Exchequer,DT1 1XJ,"1,870,626.00",Yes
"Housing, Communities & Local Government",MHCLG,14/01/2021,Current (non AEF) Grants to Local Authorities,Local Government Strategy and Analysis,DOVER DC,,,,,3700083476,,Grant payable by the Exchequer,CT16 3PD,"4,128.00",Yes
"Housing, Communities & Local Government",MHCLG,14/01/2021,Current (non AEF) Grants to Local Authorities,Local Government Strategy and Analysis,DOVER DC,,,,,3700083830,,Grant payable by the Exchequer,CT16 3PD,"6,193.00",Yes
"Housing, Communities & Local Government",MHCLG,14/01/2021,Current (non AEF) Grants to Local Authorities,Local Government Strategy and Analysis,DOVER DC,,,,,3700084128,,Grant payable by the Exchequer,CT16 3PD,"478,494.00",Yes
"Housing, Communities & Local Government",MHCLG,14/01/2021,Current (non AEF) Grants to Local Authorities,Local Government Strategy and Analysis,DOVER DC,,,,,3700084723,,Grant payable by the Exchequer,CT16 3PD,"717,771.00",Yes
"Housing, Communities & Local Government",MHCLG,14/01/2021,Current (non AEF) Grants to Local Authorities,Local Government Strategy and Analysis,DUDLEY MBC,,,,,3700084481,,Grant payable by the Exchequer,DY1 1HF,"14,570.00",Yes
"Housing, Communities & Local Government",MHCLG,14/01/2021,Current (non AEF) Grants to Local Authorities,Local Government Strategy and Analysis,DUDLEY MBC,,,,,3700084798,,Grant payable by the Exchequer,DY1 1HF,"3,590,277.00",Yes
"Housing, Communities & Local Government",MHCLG,14/01/2021,Current (non AEF) Grants to Local Authorities,Local Government Strategy and Analysis,DURHAM COUNTY COUNCIL,,,,228453601,3700084206,,Grant payable by the Exchequer,DH1 5UE,"15,556.00",Yes
"Housing, Communities & Local Government",MHCLG,14/01/2021,Current (non AEF) Grants to Local Authorities,Local Government Strategy and Analysis,DURHAM COUNTY COUNCIL,,,,228453601,3700084530,,Grant payable by the Exchequer,DH1 5UE,"23,335.00",Yes
"Housing, Communities & Local Government",MHCLG,14/01/2021,Current (non AEF) Grants to Local Authorities,Local Government Strategy and Analysis,DURHAM COUNTY COUNCIL,,,,228453601,3700084548,,Grant payable by the Exchequer,DH1 5UE,"1,970,984.00",Yes
"Housing, Communities & Local Government",MHCLG,14/01/2021,Current (non AEF) Grants to Local Authorities,Local Government Strategy and Analysis,DURHAM COUNTY COUNCIL,,,,228453601,3700084631,,Grant payable by the Exchequer,DH1 5UE,"2,956,594.00",Yes
"Housing, Communities & Local Government",MHCLG,14/01/2021,Current (non AEF) Grants to Local Authorities,Local Government Strategy and Analysis,EALING LB,,,,,3700084006,,Grant payable by the Exchequer,W5 2HL,"2,872,337.00",Yes
"Housing, Communities & Local Government",MHCLG,14/01/2021,Current (non AEF) Grants to Local Authorities,Local Government Strategy and Analysis,EALING LB,,,,,3700084294,,Grant payable by the Exchequer,W5 2HL,"2,122,184.00",Yes
"Housing, Communities & Local Government",MHCLG,14/01/2021,Current (non AEF) Grants to Local Authorities,Local Government Strategy and Analysis,EALING LB,,,,,3700084348,,Grant payable by the Exchequer,W5 2HL,"52,324.00",Yes
"Housing, Communities & Local Government",MHCLG,14/01/2021,Current (non AEF) Grants to Local Authorities,Local Government Strategy and Analysis,EALING LB,,,,,3700084768,,Grant payable by the Exchequer,W5 2HL,"38,659.00",Yes
"Housing, Communities & Local Government",MHCLG,14/01/2021,Current (non AEF) Grants to Local Authorities,Local Government Strategy and Analysis,EAST CAMBRIDGESHIRE DC,,,,236472023,3700083661,,Grant payable by the Exchequer,CB7 4PL,"5,023.00",Yes
"Housing, Communities & Local Government",MHCLG,14/01/2021,Current (non AEF) Grants to Local Authorities,Local Government Strategy and Analysis,EAST CAMBRIDGESHIRE DC,,,,236472023,3700084031,,Grant payable by the Exchequer,CB7 4PL,"382,087.00",Yes
"Housing, Communities & Local Government",MHCLG,14/01/2021,Current (non AEF) Grants to Local Authorities,Local Government Strategy and Analysis,EAST CAMBRIDGESHIRE DC,,,,236472023,3700084193,,Grant payable by the Exchequer,CB7 4PL,"254,715.00",Yes
"Housing, Communities & Local Government",MHCLG,14/01/2021,Current (non AEF) Grants to Local Authorities,Local Government Strategy and Analysis,EAST CAMBRIDGESHIRE DC,,,,236472023,3700084538,,Grant payable by the Exchequer,CB7 4PL,"7,535.00",Yes
"Housing, Communities & Local Government",MHCLG,14/01/2021,Current (non AEF) Grants to Local Authorities,Local Government Strategy and Analysis,EAST DEVON DC,,,,,3700084318,,Grant payable by the Exchequer,EX10 8HL,"7,399.00",Yes
"Housing, Communities & Local Government",MHCLG,14/01/2021,Current (non AEF) Grants to Local Authorities,Local Government Strategy and Analysis,EAST DEVON DC,,,,,3700084370,,Grant payable by the Exchequer,EX10 8HL,"4,933.00",Yes
"Housing, Communities & Local Government",MHCLG,14/01/2021,Current (non AEF) Grants to Local Authorities,Local Government Strategy and Analysis,EAST DEVON DC,,,,,3700084675,,Grant payable by the Exchequer,EX10 8HL,"702,618.00",Yes
"Housing, Communities & Local Government",MHCLG,14/01/2021,Current (non AEF) Grants to Local Authorities,Local Government Strategy and Analysis,EAST DEVON DC,,,,,3700084808,,Grant payable by the Exchequer,EX10 8HL,"1,048,176.00",Yes
"Housing, Communities & Local Government",MHCLG,14/01/2021,Current (non AEF) Grants to Local Authorities,Local Government Strategy and Analysis,EAST HAMPSHIRE DC,,,,,3700083767,,Grant payable by the Exchequer,GU31 4EX,"780,729.00",Yes
"Housing, Communities & Local Government",MHCLG,14/01/2021,Current (non AEF) Grants to Local Authorities,Local Government Strategy and Analysis,EAST HAMPSHIRE DC,,,,,3700084436,,Grant payable by the Exchequer,GU31 4EX,"5,666.00",Yes
"Housing, Communities & Local Government",MHCLG,14/01/2021,Current (non AEF) Grants to Local Authorities,Local Government Strategy and Analysis,EAST HAMPSHIRE DC,,,,,3700084545,,Grant payable by the Exchequer,GU31 4EX,"520,465.00",Yes
"Housing, Communities & Local Government",MHCLG,14/01/2021,Current (non AEF) Grants to Local Authorities,Local Government Strategy and Analysis,EAST HAMPSHIRE DC,,,,,3700084795,,Grant payable by the Exchequer,GU31 4EX,"8,500.00",Yes
"Housing, Communities & Local Government",MHCLG,14/01/2021,Current (non AEF) Grants to Local Authorities,Local Government Strategy and Analysis,EAST HERTFORDSHIRE DC,,,,236176954,3700083384,,Grant payable by the Exchequer,SG13 8EQ,"16,794.00",Yes
"Housing, Communities & Local Government",MHCLG,14/01/2021,Current (non AEF) Grants to Local Authorities,Local Government Strategy and Analysis,EAST HERTFORDSHIRE DC,,,,236176954,3700083602,,Grant payable by the Exchequer,SG13 8EQ,"11,196.00",Yes
"Housing, Communities & Local Government",MHCLG,14/01/2021,Current (non AEF) Grants to Local Authorities,Local Government Strategy and Analysis,EAST HERTFORDSHIRE DC,,,,236176954,3700083796,,Grant payable by the Exchequer,SG13 8EQ,"688,912.00",Yes
"Housing, Communities & Local Government",MHCLG,14/01/2021,Current (non AEF) Grants to Local Authorities,Local Government Strategy and Analysis,EAST HERTFORDSHIRE DC,,,,236176954,3700084231,,Grant payable by the Exchequer,SG13 8EQ,"1,033,409.00",Yes
"Housing, Communities & Local Government",MHCLG,14/01/2021,Current (non AEF) Grants to Local Authorities,Local Government Strategy and Analysis,EAST LINDSEY DC,,,,,3700083954,,Grant payable by the Exchequer,LN11 8UP,"7,858.00",Yes
"Housing, Communities & Local Government",MHCLG,14/01/2021,Current (non AEF) Grants to Local Authorities,Local Government Strategy and Analysis,EAST LINDSEY DC,,,,,3700084330,,Grant payable by the Exchequer,LN11 8UP,"1,221,414.00",Yes
"Housing, Communities & Local Government",MHCLG,14/01/2021,Current (non AEF) Grants to Local Authorities,Local Government Strategy and Analysis,EAST LINDSEY DC,,,,,3700084459,,Grant payable by the Exchequer,LN11 8UP,"814,244.00",Yes
"Housing, Communities & Local Government",MHCLG,14/01/2021,Current (non AEF) Grants to Local Authorities,Local Government Strategy and Analysis,EAST LINDSEY DC,,,,,3700084717,,Grant payable by the Exchequer,LN11 8UP,"5,239.00",Yes
"Housing, Communities & Local Government",MHCLG,14/01/2021,Current (non AEF) Grants to Local Authorities,Local Government Strategy and Analysis,EAST NORTHAMPTONSHIRE COUNCIL,,,,227475290,3700083474,,Grant payable by the Exchequer,NN14 4LZ,"8,562.00",Yes
"Housing, Communities & Local Government",MHCLG,14/01/2021,Current (non AEF) Grants to Local Authorities,Local Government Strategy and Analysis,EAST NORTHAMPTONSHIRE COUNCIL,,,,227475290,3700083919,,Grant payable by the Exchequer,NN14 4LZ,"464,579.00",Yes
"Housing, Communities & Local Government",MHCLG,14/01/2021,Current (non AEF) Grants to Local Authorities,Local Government Strategy and Analysis,EAST NORTHAMPTONSHIRE COUNCIL,,,,227475290,3700084766,,Grant payable by the Exchequer,NN14 4LZ,"5,708.00",Yes
"Housing, Communities & Local Government",MHCLG,14/01/2021,Current (non AEF) Grants to Local Authorities,Local Government Strategy and Analysis,EAST NORTHAMPTONSHIRE COUNCIL,,,,227475290,3700084789,,Grant payable by the Exchequer,NN14 4LZ,"696,896.00",Yes
"Housing, Communities & Local Government",MHCLG,14/01/2021,Current (non AEF) Grants to Local Authorities,Local Government Strategy and Analysis,EAST RIDING OF YORKS,,,,,3700084119,,Grant payable by the Exchequer,HU17 9AB,"24,755.00",Yes
"Housing, Communities & Local Government",MHCLG,14/01/2021,Current (non AEF) Grants to Local Authorities,Local Government Strategy and Analysis,EAST RIDING OF YORKS,,,,,3700084368,,Grant payable by the Exchequer,HU17 9AB,"1,395,837.00",Yes
"Housing, Communities & Local Government",MHCLG,14/01/2021,Current (non AEF) Grants to Local Authorities,Local Government Strategy and Analysis,EAST RIDING OF YORKS,,,,,3700084800,,Grant payable by the Exchequer,HU17 9AB,"2,093,839.00",Yes
"Housing, Communities & Local Government",MHCLG,14/01/2021,Current (non AEF) Grants to Local Authorities,Local Government Strategy and Analysis,EAST RIDING OF YORKS,,,,,3700084881,,Grant payable by the Exchequer,HU17 9AB,"16,502.00",Yes
"Housing, Communities & Local Government",MHCLG,14/01/2021,Current (non AEF) Grants to Local Authorities,Local Government Strategy and Analysis,EAST STAFFORDSHIRE BC,,,,226778033,3700083763,,Grant payable by the Exchequer,DE14 2EB,"14,511.00",Yes
"Housing, Communities & Local Government",MHCLG,14/01/2021,Current (non AEF) Grants to Local Authorities,Local Government Strategy and Analysis,EAST STAFFORDSHIRE BC,,,,226778033,3700083823,,Grant payable by the Exchequer,DE14 2EB,"715,984.00",Yes
"Housing, Communities & Local Government",MHCLG,14/01/2021,Current (non AEF) Grants to Local Authorities,Local Government Strategy and Analysis,EAST STAFFORDSHIRE BC,,,,226778033,3700084500,,Grant payable by the Exchequer,DE14 2EB,"9,673.00",Yes
"Housing, Communities & Local Government",MHCLG,14/01/2021,Current (non AEF) Grants to Local Authorities,Local Government Strategy and Analysis,EAST STAFFORDSHIRE BC,,,,226778033,3700084703,,Grant payable by the Exchequer,DE14 2EB,"1,074,020.00",Yes
"Housing, Communities & Local Government",MHCLG,14/01/2021,Current (non AEF) Grants to Local Authorities,Local Government Strategy and Analysis,EAST SUFFOLK COUNCIL,,,,,3700083972,,Grant payable by the Exchequer,IP12 1RT,"1,167,007.00",Yes
"Housing, Communities & Local Government",MHCLG,14/01/2021,Current (non AEF) Grants to Local Authorities,Local Government Strategy and Analysis,EAST SUFFOLK COUNCIL,,,,,3700084003,,Grant payable by the Exchequer,IP12 1RT,"14,226.00",Yes
"Housing, Communities & Local Government",MHCLG,14/01/2021,Current (non AEF) Grants to Local Authorities,Local Government Strategy and Analysis,EAST SUFFOLK COUNCIL,,,,,3700084526,,Grant payable by the Exchequer,IP12 1RT,"9,483.00",Yes
"Housing, Communities & Local Government",MHCLG,14/01/2021,Current (non AEF) Grants to Local Authorities,Local Government Strategy and Analysis,EAST SUFFOLK COUNCIL,,,,,3700084630,,Grant payable by the Exchequer,IP12 1RT,"1,750,581.00",Yes
"Housing, Communities & Local Government",MHCLG,14/01/2021,Current (non AEF) Grants to Local Authorities,Local Government Strategy and Analysis,EASTBOURNE BC,,,,229896428,3700083684,,Grant payable by the Exchequer,BN21 4TW,"16,229.00",Yes
"Housing, Communities & Local Government",MHCLG,14/01/2021,Current (non AEF) Grants to Local Authorities,Local Government Strategy and Analysis,EASTBOURNE BC,,,,229896428,3700083712,,Grant payable by the Exchequer,BN21 4TW,"10,819.00",Yes
"Housing, Communities & Local Government",MHCLG,14/01/2021,Current (non AEF) Grants to Local Authorities,Local Government Strategy and Analysis,EASTBOURNE BC,,,,229896428,3700083824,,Grant payable by the Exchequer,BN21 4TW,"977,824.00",Yes
"Housing, Communities & Local Government",MHCLG,14/01/2021,Current (non AEF) Grants to Local Authorities,Local Government Strategy and Analysis,EASTBOURNE BC,,,,229896428,3700083838,,Grant payable by the Exchequer,BN21 4TW,"1,466,795.00",Yes
"Housing, Communities & Local Government",MHCLG,14/01/2021,Current (non AEF) Grants to Local Authorities,Local Government Strategy and Analysis,EASTLEIGH BOROUGH COUNCIL,,,,232669911,3700083439,,Grant payable by the Exchequer,SO5 9YN,"875,365.00",Yes
"Housing, Communities & Local Government",MHCLG,14/01/2021,Current (non AEF) Grants to Local Authorities,Local Government Strategy and Analysis,EASTLEIGH BOROUGH COUNCIL,,,,232669911,3700083870,,Grant payable by the Exchequer,SO5 9YN,"1,313,100.00",Yes
"Housing, Communities & Local Government",MHCLG,14/01/2021,Current (non AEF) Grants to Local Authorities,Local Government Strategy and Analysis,EASTLEIGH BOROUGH COUNCIL,,,,232669911,3700084145,,Grant payable by the Exchequer,SO5 9YN,"8,522.00",Yes
"Housing, Communities & Local Government",MHCLG,14/01/2021,Current (non AEF) Grants to Local Authorities,Local Government Strategy and Analysis,EASTLEIGH BOROUGH COUNCIL,,,,232669911,3700084649,,Grant payable by the Exchequer,SO5 9YN,"12,784.00",Yes
"Housing, Communities & Local Government",MHCLG,14/01/2021,Current (non AEF) Grants to Local Authorities,Local Government Strategy and Analysis,EDEN DC,,,,,3700083679,,Grant payable by the Exchequer,CA11 7QF,"2,892.00",Yes
"Housing, Communities & Local Government",MHCLG,14/01/2021,Current (non AEF) Grants to Local Authorities,Local Government Strategy and Analysis,EDEN DC,,,,,3700083840,,Grant payable by the Exchequer,CA11 7QF,"833,737.00",Yes
"Housing, Communities & Local Government",MHCLG,14/01/2021,Current (non AEF) Grants to Local Authorities,Local Government Strategy and Analysis,EDEN DC,,,,,3700084249,,Grant payable by the Exchequer,CA11 7QF,"555,803.00",Yes
"Housing, Communities & Local Government",MHCLG,14/01/2021,Current (non AEF) Grants to Local Authorities,Local Government Strategy and Analysis,EDEN DC,,,,,3700084367,,Grant payable by the Exchequer,CA11 7QF,"1,927.00",Yes
"Housing, Communities & Local Government",MHCLG,14/01/2021,Current (non AEF) Grants to Local Authorities,Local Government Strategy and Analysis,ELMBRIDGE BOROUGH COUNCIL,,Large,,236082442,3700083966,,Grant payable by the Exchequer,KT10 9SD,"24,412.00",Yes
"Housing, Communities & Local Government",MHCLG,14/01/2021,Current (non AEF) Grants to Local Authorities,Local Government Strategy and Analysis,ELMBRIDGE BOROUGH COUNCIL,,Large,,236082442,3700084752,,Grant payable by the Exchequer,KT10 9SD,"1,682,517.00",Yes
"Housing, Communities & Local Government",MHCLG,14/01/2021,Current (non AEF) Grants to Local Authorities,Local Government Strategy and Analysis,ELMBRIDGE BOROUGH COUNCIL,,Large,,236082442,3700084783,,Grant payable by the Exchequer,KT10 9SD,"36,618.00",Yes
"Housing, Communities & Local Government",MHCLG,14/01/2021,Current (non AEF) Grants to Local Authorities,Local Government Strategy and Analysis,ELMBRIDGE BOROUGH COUNCIL,,Large,,236082442,3700084917,,Grant payable by the Exchequer,KT10 9SD,"1,121,633.00",Yes
"Housing, Communities & Local Government",MHCLG,14/01/2021,Current (non AEF) Grants to Local Authorities,Local Government Strategy and Analysis,ENFIELD LB,,,,,3700083463,,Grant payable by the Exchequer,EN1 3XF,"1,643,783.00",Yes
"Housing, Communities & Local Government",MHCLG,14/01/2021,Current (non AEF) Grants to Local Authorities,Local Government Strategy and Analysis,ENFIELD LB,,,,,3700083580,,Grant payable by the Exchequer,EN1 3XF,"29,816.00",Yes
"Housing, Communities & Local Government",MHCLG,14/01/2021,Current (non AEF) Grants to Local Authorities,Local Government Strategy and Analysis,ENFIELD LB,,,,,3700083880,,Grant payable by the Exchequer,EN1 3XF,"2,224,829.00",Yes
"Housing, Communities & Local Government",MHCLG,14/01/2021,Current (non AEF) Grants to Local Authorities,Local Government Strategy and Analysis,ENFIELD LB,,,,,3700083953,,Grant payable by the Exchequer,EN1 3XF,"22,030.00",Yes
"Housing, Communities & Local Government",MHCLG,14/01/2021,Current (non AEF) Grants to Local Authorities,Local Government Strategy and Analysis,EPPING FOREST DC,,,,775876360,3700083412,,Grant payable by the Exchequer,CM16 4BZ,"863,356.00",Yes
"Housing, Communities & Local Government",MHCLG,14/01/2021,Current (non AEF) Grants to Local Authorities,Local Government Strategy and Analysis,EPPING FOREST DC,,,,775876360,3700083936,,Grant payable by the Exchequer,CM16 4BZ,"11,129.00",Yes
"Housing, Communities & Local Government",MHCLG,14/01/2021,Current (non AEF) Grants to Local Authorities,Local Government Strategy and Analysis,EPPING FOREST DC,,,,775876360,3700084200,,Grant payable by the Exchequer,CM16 4BZ,"16,694.00",Yes
"Housing, Communities & Local Government",MHCLG,14/01/2021,Current (non AEF) Grants to Local Authorities,Local Government Strategy and Analysis,EPPING FOREST DC,,,,775876360,3700084457,,Grant payable by the Exchequer,CM16 4BZ,"575,547.00",Yes
"Housing, Communities & Local Government",MHCLG,14/01/2021,Current (non AEF) Grants to Local Authorities,Local Government Strategy and Analysis,EPSOM & EWELL BC,,,,225423094,3700083492,,Grant payable by the Exchequer,KT18 5BY,"17,965.00",Yes
"Housing, Communities & Local Government",MHCLG,14/01/2021,Current (non AEF) Grants to Local Authorities,Local Government Strategy and Analysis,EPSOM & EWELL BC,,,,225423094,3700083498,,Grant payable by the Exchequer,KT18 5BY,"815,795.00",Yes
"Housing, Communities & Local Government",MHCLG,14/01/2021,Current (non AEF) Grants to Local Authorities,Local Government Strategy and Analysis,EPSOM & EWELL BC,,,,225423094,3700084474,,Grant payable by the Exchequer,KT18 5BY,"26,949.00",Yes
"Housing, Communities & Local Government",MHCLG,14/01/2021,Current (non AEF) Grants to Local Authorities,Local Government Strategy and Analysis,EPSOM & EWELL BC,,,,225423094,3700084498,,Grant payable by the Exchequer,KT18 5BY,"543,841.00",Yes
"Housing, Communities & Local Government",MHCLG,14/01/2021,Current (non AEF) Grants to Local Authorities,Local Government Strategy and Analysis,EREWASH BC,,,,211209762,3700083340,,Grant payable by the Exchequer,DE7 5RP,"603,557.00",Yes
"Housing, Communities & Local Government",MHCLG,14/01/2021,Current (non AEF) Grants to Local Authorities,Local Government Strategy and Analysis,EREWASH BC,,,,211209762,3700083673,,Grant payable by the Exchequer,DE7 5RP,"402,355.00",Yes
"Housing, Communities & Local Government",MHCLG,14/01/2021,Current (non AEF) Grants to Local Authorities,Local Government Strategy and Analysis,EREWASH BC,,,,211209762,3700084620,,Grant payable by the Exchequer,DE7 5RP,"7,051.00",Yes
"Housing, Communities & Local Government",MHCLG,14/01/2021,Current (non AEF) Grants to Local Authorities,Local Government Strategy and Analysis,EREWASH BC,,,,211209762,3700084757,,Grant payable by the Exchequer,DE7 5RP,"10,576.00",Yes
"Housing, Communities & Local Government",MHCLG,14/01/2021,Current (non AEF) Grants to Local Authorities,Local Government Strategy and Analysis,EXETER CITY CNCL,,,,,3700083850,,Grant payable by the Exchequer,EX1 1JW,"1,615,931.00",Yes
"Housing, Communities & Local Government",MHCLG,14/01/2021,Current (non AEF) Grants to Local Authorities,Local Government Strategy and Analysis,EXETER CITY CNCL,,,,,3700084477,,Grant payable by the Exchequer,EX1 1JW,"2,423,993.00",Yes
"Housing, Communities & Local Government",MHCLG,14/01/2021,Current (non AEF) Grants to Local Authorities,Local Government Strategy and Analysis,EXETER CITY CNCL,,,,,3700084597,,Grant payable by the Exchequer,EX1 1JW,"19,437.00",Yes
"Housing, Communities & Local Government",MHCLG,14/01/2021,Current (non AEF) Grants to Local Authorities,Local Government Strategy and Analysis,EXETER CITY CNCL,,,,,3700084871,,Grant payable by the Exchequer,EX1 1JW,"12,958.00",Yes
"Housing, Communities & Local Government",MHCLG,14/01/2021,Current (non AEF) Grants to Local Authorities,Local Government Strategy and Analysis,FAREHAM BC,,,,228474144,3700084191,,Grant payable by the Exchequer,PO16 7PU,"905,028.00",Yes
"Housing, Communities & Local Government",MHCLG,14/01/2021,Current (non AEF) Grants to Local Authorities,Local Government Strategy and Analysis,FAREHAM BC,,,,228474144,3700084273,,Grant payable by the Exchequer,PO16 7PU,"14,390.00",Yes
"Housing, Communities & Local Government",MHCLG,14/01/2021,Current (non AEF) Grants to Local Authorities,Local Government Strategy and Analysis,FAREHAM BC,,,,228474144,3700084352,,Grant payable by the Exchequer,PO16 7PU,"603,635.00",Yes
"Housing, Communities & Local Government",MHCLG,14/01/2021,Current (non AEF) Grants to Local Authorities,Local Government Strategy and Analysis,FAREHAM BC,,,,228474144,3700084796,,Grant payable by the Exchequer,PO16 7PU,"9,593.00",Yes
"Housing, Communities & Local Government",MHCLG,14/01/2021,Current (non AEF) Grants to Local Authorities,Local Government Strategy and Analysis,FENLAND DC,,,,227476348,3700083690,,Grant payable by the Exchequer,PE15 8NQ,"4,115.00",Yes
"Housing, Communities & Local Government",MHCLG,14/01/2021,Current (non AEF) Grants to Local Authorities,Local Government Strategy and Analysis,FENLAND DC,,,,227476348,3700084153,,Grant payable by the Exchequer,PE15 8NQ,"2,743.00",Yes
"Housing, Communities & Local Government",MHCLG,14/01/2021,Current (non AEF) Grants to Local Authorities,Local Government Strategy and Analysis,FENLAND DC,,,,227476348,3700084195,,Grant payable by the Exchequer,PE15 8NQ,"305,942.00",Yes
"Housing, Communities & Local Government",MHCLG,14/01/2021,Current (non AEF) Grants to Local Authorities,Local Government Strategy and Analysis,FENLAND DC,,,,227476348,3700084286,,Grant payable by the Exchequer,PE15 8NQ,"458,931.00",Yes
"Housing, Communities & Local Government",MHCLG,14/01/2021,Current (non AEF) Grants to Local Authorities,Local Government Strategy and Analysis,FOLKESTONE & HYTHE DC,,,,235550878,3700083378,,Grant payable by the Exchequer,CT20 2QY,"837,815.00",Yes
"Housing, Communities & Local Government",MHCLG,14/01/2021,Current (non AEF) Grants to Local Authorities,Local Government Strategy and Analysis,FOLKESTONE & HYTHE DC,,,,235550878,3700083555,,Grant payable by the Exchequer,CT20 2QY,"4,427.00",Yes
"Housing, Communities & Local Government",MHCLG,14/01/2021,Current (non AEF) Grants to Local Authorities,Local Government Strategy and Analysis,FOLKESTONE & HYTHE DC,,,,235550878,3700084502,,Grant payable by the Exchequer,CT20 2QY,"558,521.00",Yes
"Housing, Communities & Local Government",MHCLG,14/01/2021,Current (non AEF) Grants to Local Authorities,Local Government Strategy and Analysis,FOLKESTONE & HYTHE DC,,,,235550878,3700084913,,Grant payable by the Exchequer,CT20 2QY,"2,951.00",Yes
"Housing, Communities & Local Government",MHCLG,14/01/2021,Current (non AEF) Grants to Local Authorities,Local Government Strategy and Analysis,FOREST OF DEAN DC,,,,211278890,3700083496,,Grant payable by the Exchequer,GL16 8HG,"140,541.00",Yes
"Housing, Communities & Local Government",MHCLG,14/01/2021,Current (non AEF) Grants to Local Authorities,Local Government Strategy and Analysis,FOREST OF DEAN DC,,,,211278890,3700084211,,Grant payable by the Exchequer,GL16 8HG,"1,483.00",Yes
"Housing, Communities & Local Government",MHCLG,14/01/2021,Current (non AEF) Grants to Local Authorities,Local Government Strategy and Analysis,FOREST OF DEAN DC,,,,211278890,3700084458,,Grant payable by the Exchequer,GL16 8HG,"210,819.00",Yes
"Housing, Communities & Local Government",MHCLG,14/01/2021,Current (non AEF) Grants to Local Authorities,Local Government Strategy and Analysis,FOREST OF DEAN DC,,,,211278890,3700084844,,Grant payable by the Exchequer,GL16 8HG,"2,224.00",Yes
"Housing, Communities & Local Government",MHCLG,14/01/2021,Current (non AEF) Grants to Local Authorities,Local Government Strategy and Analysis,FYLDE BC,,,,227479912,3700083317,,Grant payable by the Exchequer,FY8 1LW,"3,455.00",Yes
"Housing, Communities & Local Government",MHCLG,14/01/2021,Current (non AEF) Grants to Local Authorities,Local Government Strategy and Analysis,FYLDE BC,,,,227479912,3700084366,,Grant payable by the Exchequer,FY8 1LW,"665,265.00",Yes
"Housing, Communities & Local Government",MHCLG,14/01/2021,Current (non AEF) Grants to Local Authorities,Local Government Strategy and Analysis,FYLDE BC,,,,227479912,3700084648,,Grant payable by the Exchequer,FY8 1LW,"466,960.00",Yes
"Housing, Communities & Local Government",MHCLG,14/01/2021,Current (non AEF) Grants to Local Authorities,Local Government Strategy and Analysis,FYLDE BC,,,,227479912,3700084749,,Grant payable by the Exchequer,FY8 1LW,"5,184.00",Yes
"Housing, Communities & Local Government",MHCLG,14/01/2021,Current (non AEF) Grants to Local Authorities,Local Government Strategy and Analysis,GATESHEAD COUNCIL,,,,216116041,3700083533,,Grant payable by the Exchequer,NE8 1HH,"13,206.00",Yes
"Housing, Communities & Local Government",MHCLG,14/01/2021,Current (non AEF) Grants to Local Authorities,Local Government Strategy and Analysis,GATESHEAD COUNCIL,,,,216116041,3700083570,,Grant payable by the Exchequer,NE8 1HH,"3,290,269.00",Yes
"Housing, Communities & Local Government",MHCLG,14/01/2021,Current (non AEF) Grants to Local Authorities,Local Government Strategy and Analysis,GATESHEAD COUNCIL,,,,216116041,3700084268,,Grant payable by the Exchequer,NE8 1HH,"8,804.00",Yes
"Housing, Communities & Local Government",MHCLG,14/01/2021,Current (non AEF) Grants to Local Authorities,Local Government Strategy and Analysis,GATESHEAD COUNCIL,,,,216116041,3700084627,,Grant payable by the Exchequer,NE8 1HH,"2,249,985.00",Yes
"Housing, Communities & Local Government",MHCLG,14/01/2021,Current (non AEF) Grants to Local Authorities,Local Government Strategy and Analysis,GEDLING BC,,,,236180337,3700083877,,Grant payable by the Exchequer,NG5 6LU,"666,497.00",Yes
"Housing, Communities & Local Government",MHCLG,14/01/2021,Current (non AEF) Grants to Local Authorities,Local Government Strategy and Analysis,GEDLING BC,,,,236180337,3700084522,,Grant payable by the Exchequer,NG5 6LU,"4,968.00",Yes
"Housing, Communities & Local Government",MHCLG,14/01/2021,Current (non AEF) Grants to Local Authorities,Local Government Strategy and Analysis,GEDLING BC,,,,236180337,3700084683,,Grant payable by the Exchequer,NG5 6LU,"444,314.00",Yes
"Housing, Communities & Local Government",MHCLG,14/01/2021,Current (non AEF) Grants to Local Authorities,Local Government Strategy and Analysis,GEDLING BC,,,,236180337,3700084711,,Grant payable by the Exchequer,NG5 6LU,"7,452.00",Yes
"Housing, Communities & Local Government",MHCLG,14/01/2021,Current (non AEF) Grants to Local Authorities,Local Government Strategy and Analysis,GLOUCESTER CITY COUNCIL,,,,230841392,3700084232,,Grant payable by the Exchequer,GL1 2EQ,"1,565,985.00",Yes
"Housing, Communities & Local Government",MHCLG,14/01/2021,Current (non AEF) Grants to Local Authorities,Local Government Strategy and Analysis,GLOUCESTER CITY COUNCIL,,,,230841392,3700084480,,Grant payable by the Exchequer,GL1 2EQ,"1,043,949.00",Yes
"Housing, Communities & Local Government",MHCLG,14/01/2021,Current (non AEF) Grants to Local Authorities,Local Government Strategy and Analysis,GLOUCESTER CITY COUNCIL,,,,230841392,3700084692,,Grant payable by the Exchequer,GL1 2EQ,"12,837.00",Yes
"Housing, Communities & Local Government",MHCLG,14/01/2021,Current (non AEF) Grants to Local Authorities,Local Government Strategy and Analysis,GLOUCESTER CITY COUNCIL,,,,230841392,3700084818,,Grant payable by the Exchequer,GL1 2EQ,"8,559.00",Yes
"Housing, Communities & Local Government",MHCLG,14/01/2021,Current (non AEF) Grants to Local Authorities,Local Government Strategy and Analysis,GOSPORT BOROUGH COUNCIL,,,,239825078,3700084553,,Grant payable by the Exchequer,PO12 1ED,"351,913.00",Yes
"Housing, Communities & Local Government",MHCLG,14/01/2021,Current (non AEF) Grants to Local Authorities,Local Government Strategy and Analysis,GOSPORT BOROUGH COUNCIL,,,,239825078,3700084623,,Grant payable by the Exchequer,PO12 1ED,"237,172.00",Yes
"Housing, Communities & Local Government",MHCLG,14/01/2021,Current (non AEF) Grants to Local Authorities,Local Government Strategy and Analysis,GOSPORT BOROUGH COUNCIL,,,,239825078,3700084702,,Grant payable by the Exchequer,PO12 1ED,"7,719.00",Yes
"Housing, Communities & Local Government",MHCLG,14/01/2021,Current (non AEF) Grants to Local Authorities,Local Government Strategy and Analysis,GOSPORT BOROUGH COUNCIL,,,,239825078,3700084880,,Grant payable by the Exchequer,PO12 1ED,"5,145.00",Yes
"Housing, Communities & Local Government",MHCLG,14/01/2021,Current (non AEF) Grants to Local Authorities,Local Government Strategy and Analysis,GRAVESHAM BC,,,,236178612,3700084204,,Grant payable by the Exchequer,DA12 1AU,"4,234.00",Yes
"Housing, Communities & Local Government",MHCLG,14/01/2021,Current (non AEF) Grants to Local Authorities,Local Government Strategy and Analysis,GRAVESHAM BC,,,,236178612,3700084618,,Grant payable by the Exchequer,DA12 1AU,"6,352.00",Yes
"Housing, Communities & Local Government",MHCLG,14/01/2021,Current (non AEF) Grants to Local Authorities,Local Government Strategy and Analysis,GRAVESHAM BC,,,,236178612,3700084740,,Grant payable by the Exchequer,DA12 1AU,"273,613.00",Yes
"Housing, Communities & Local Government",MHCLG,14/01/2021,Current (non AEF) Grants to Local Authorities,Local Government Strategy and Analysis,GRAVESHAM BC,,,,236178612,3700084771,,Grant payable by the Exchequer,DA12 1AU,"182,401.00",Yes
"Housing, Communities & Local Government",MHCLG,14/01/2021,Current (non AEF) Grants to Local Authorities,Local Government Strategy and Analysis,GREAT YARMOUTH BC,,,,292697372,3700083704,,Grant payable by the Exchequer,NR30 2QF,"846,105.00",Yes
"Housing, Communities & Local Government",MHCLG,14/01/2021,Current (non AEF) Grants to Local Authorities,Local Government Strategy and Analysis,GREAT YARMOUTH BC,,,,292697372,3700084248,,Grant payable by the Exchequer,NR30 2QF,"5,568.00",Yes
"Housing, Communities & Local Government",MHCLG,14/01/2021,Current (non AEF) Grants to Local Authorities,Local Government Strategy and Analysis,GREAT YARMOUTH BC,,,,292697372,3700084531,,Grant payable by the Exchequer,NR30 2QF,"3,712.00",Yes
"Housing, Communities & Local Government",MHCLG,14/01/2021,Current (non AEF) Grants to Local Authorities,Local Government Strategy and Analysis,GREAT YARMOUTH BC,,,,292697372,3700084725,,Grant payable by the Exchequer,NR30 2QF,"564,047.00",Yes
"Housing, Communities & Local Government",MHCLG,14/01/2021,Current (non AEF) Grants to Local Authorities,Local Government Strategy and Analysis,GREENWICH LB,,,,,3700083425,,Grant payable by the Exchequer,SE18 6HQ,"14,726.00",Yes
"Housing, Communities & Local Government",MHCLG,14/01/2021,Current (non AEF) Grants to Local Authorities,Local Government Strategy and Analysis,GREENWICH LB,,,,,3700084519,,Grant payable by the Exchequer,SE18 6HQ,"1,807,804.00",Yes
"Housing, Communities & Local Government",MHCLG,14/01/2021,Current (non AEF) Grants to Local Authorities,Local Government Strategy and Analysis,GREENWICH LB,,,,,3700084847,,Grant payable by the Exchequer,SE18 6HQ,"19,932.00",Yes
"Housing, Communities & Local Government",MHCLG,14/01/2021,Current (non AEF) Grants to Local Authorities,Local Government Strategy and Analysis,GREENWICH LB,,,,,3700084874,,Grant payable by the Exchequer,SE18 6HQ,"2,446,829.00",Yes
"Housing, Communities & Local Government",MHCLG,14/01/2021,Current (non AEF) Grants to Local Authorities,Local Government Strategy and Analysis,GUILDFORD BC,,,,236663720,3700083874,,Grant payable by the Exchequer,GU2 5BB,"26,043.00",Yes
"Housing, Communities & Local Government",MHCLG,14/01/2021,Current (non AEF) Grants to Local Authorities,Local Government Strategy and Analysis,GUILDFORD BC,,,,236663720,3700084181,,Grant payable by the Exchequer,GU2 5BB,"39,067.00",Yes
"Housing, Communities & Local Government",MHCLG,14/01/2021,Current (non AEF) Grants to Local Authorities,Local Government Strategy and Analysis,GUILDFORD BC,,,,236663720,3700084442,,Grant payable by the Exchequer,GU2 5BB,"1,609,840.00",Yes
"Housing, Communities & Local Government",MHCLG,14/01/2021,Current (non AEF) Grants to Local Authorities,Local Government Strategy and Analysis,GUILDFORD BC,,,,236663720,3700084666,,Grant payable by the Exchequer,GU2 5BB,"2,414,856.00",Yes
"Housing, Communities & Local Government",MHCLG,14/01/2021,Current (non AEF) Grants to Local Authorities,Local Government Strategy and Analysis,HALTON BC,,,,227959376,3700083402,,Grant payable by the Exchequer,WA8 7QF,"17,614.00",Yes
"Housing, Communities & Local Government",MHCLG,14/01/2021,Current (non AEF) Grants to Local Authorities,Local Government Strategy and Analysis,HALTON BC,,,,227959376,3700084827,,Grant payable by the Exchequer,WA8 7QF,"706,730.00",Yes
"Housing, Communities & Local Government",MHCLG,14/01/2021,Current (non AEF) Grants to Local Authorities,Local Government Strategy and Analysis,HAMBLETON DC,,Large,,503481319,3700083321,,Grant payable by the Exchequer,DL6 2UU,"631,343.00",Yes
"Housing, Communities & Local Government",MHCLG,14/01/2021,Current (non AEF) Grants to Local Authorities,Local Government Strategy and Analysis,HAMBLETON DC,,Large,,503481319,3700083429,,Grant payable by the Exchequer,DL6 2UU,"420,878.00",Yes
"Housing, Communities & Local Government",MHCLG,14/01/2021,Current (non AEF) Grants to Local Authorities,Local Government Strategy and Analysis,HAMBLETON DC,,Large,,503481319,3700083942,,Grant payable by the Exchequer,DL6 2UU,"6,808.00",Yes
"Housing, Communities & Local Government",MHCLG,14/01/2021,Current (non AEF) Grants to Local Authorities,Local Government Strategy and Analysis,HAMBLETON DC,,Large,,503481319,3700084394,,Grant payable by the Exchequer,DL6 2UU,"10,212.00",Yes
"Housing, Communities & Local Government",MHCLG,14/01/2021,Current (non AEF) Grants to Local Authorities,Local Government Strategy and Analysis,HAMMERSMITH & FULHAM LB,,,,216929489,3700083488,,Grant payable by the Exchequer,W6 9JU,"5,988,686.00",Yes
"Housing, Communities & Local Government",MHCLG,14/01/2021,Current (non AEF) Grants to Local Authorities,Local Government Strategy and Analysis,HAMMERSMITH & FULHAM LB,,,,216929489,3700083800,,Grant payable by the Exchequer,W6 9JU,"57,138.00",Yes
"Housing, Communities & Local Government",MHCLG,14/01/2021,Current (non AEF) Grants to Local Authorities,Local Government Strategy and Analysis,HAMMERSMITH & FULHAM LB,,,,216929489,3700084272,,Grant payable by the Exchequer,W6 9JU,"4,424,654.00",Yes
"Housing, Communities & Local Government",MHCLG,14/01/2021,Current (non AEF) Grants to Local Authorities,Local Government Strategy and Analysis,HAMMERSMITH & FULHAM LB,,,,216929489,3700084841,,Grant payable by the Exchequer,W6 9JU,"42,216.00",Yes
"Housing, Communities & Local Government",MHCLG,14/01/2021,Current (non AEF) Grants to Local Authorities,Local Government Strategy and Analysis,HARBOROUGH DC,,Public Bodies,,232611962,3700083629,,Grant payable by the Exchequer,LE16 7AG,"479,234.00",Yes
"Housing, Communities & Local Government",MHCLG,14/01/2021,Current (non AEF) Grants to Local Authorities,Local Government Strategy and Analysis,HARBOROUGH DC,,Public Bodies,,232611962,3700083819,,Grant payable by the Exchequer,LE16 7AG,"319,477.00",Yes
"Housing, Communities & Local Government",MHCLG,14/01/2021,Current (non AEF) Grants to Local Authorities,Local Government Strategy and Analysis,HARBOROUGH DC,,Public Bodies,,232611962,3700084899,,Grant payable by the Exchequer,LE16 7AG,"8,882.00",Yes
"Housing, Communities & Local Government",MHCLG,14/01/2021,Current (non AEF) Grants to Local Authorities,Local Government Strategy and Analysis,HARBOROUGH DC,,Public Bodies,,232611962,3700084903,,Grant payable by the Exchequer,LE16 7AG,"5,922.00",Yes
"Housing, Communities & Local Government",MHCLG,14/01/2021,Current (non AEF) Grants to Local Authorities,Local Government Strategy and Analysis,HARINGEY LB,,,,217471767,3700084044,,Grant payable by the Exchequer,N22 7TR,"2,053,064.00",Yes
"Housing, Communities & Local Government",MHCLG,14/01/2021,Current (non AEF) Grants to Local Authorities,Local Government Strategy and Analysis,HARINGEY LB,,,,217471767,3700084301,,Grant payable by the Exchequer,N22 7TR,"19,527.00",Yes
"Housing, Communities & Local Government",MHCLG,14/01/2021,Current (non AEF) Grants to Local Authorities,Local Government Strategy and Analysis,HARINGEY LB,,,,217471767,3700084496,,Grant payable by the Exchequer,N22 7TR,"26,428.00",Yes
"Housing, Communities & Local Government",MHCLG,14/01/2021,Current (non AEF) Grants to Local Authorities,Local Government Strategy and Analysis,HARINGEY LB,,,,217471767,3700084655,,Grant payable by the Exchequer,N22 7TR,"1,516,877.00",Yes
"Housing, Communities & Local Government",MHCLG,14/01/2021,Current (non AEF) Grants to Local Authorities,Local Government Strategy and Analysis,HARLOW COUNCIL,,,,239999055,3700083360,,Grant payable by the Exchequer,CM20 1WG,"1,013,081.00",Yes
"Housing, Communities & Local Government",MHCLG,14/01/2021,Current (non AEF) Grants to Local Authorities,Local Government Strategy and Analysis,HARLOW COUNCIL,,,,239999055,3700083906,,Grant payable by the Exchequer,CM20 1WG,"9,769.00",Yes
"Housing, Communities & Local Government",MHCLG,14/01/2021,Current (non AEF) Grants to Local Authorities,Local Government Strategy and Analysis,HARLOW COUNCIL,,,,239999055,3700084099,,Grant payable by the Exchequer,CM20 1WG,"683,913.00",Yes
"Housing, Communities & Local Government",MHCLG,14/01/2021,Current (non AEF) Grants to Local Authorities,Local Government Strategy and Analysis,HARLOW COUNCIL,,,,239999055,3700084587,,Grant payable by the Exchequer,CM20 1WG,"14,655.00",Yes
"Housing, Communities & Local Government",MHCLG,14/01/2021,Current (non AEF) Grants to Local Authorities,Local Government Strategy and Analysis,HARROGATE BOROUGH COUNCIL,,,,236660031,3700083478,,Grant payable by the Exchequer,HG1 2SG,"1,289,053.00",Yes
"Housing, Communities & Local Government",MHCLG,14/01/2021,Current (non AEF) Grants to Local Authorities,Local Government Strategy and Analysis,HARROGATE BOROUGH COUNCIL,,,,236660031,3700083783,,Grant payable by the Exchequer,HG1 2SG,"1,933,657.00",Yes
"Housing, Communities & Local Government",MHCLG,14/01/2021,Current (non AEF) Grants to Local Authorities,Local Government Strategy and Analysis,HARROGATE BOROUGH COUNCIL,,,,236660031,3700084753,,Grant payable by the Exchequer,HG1 2SG,"10,948.00",Yes
"Housing, Communities & Local Government",MHCLG,14/01/2021,Current (non AEF) Grants to Local Authorities,Local Government Strategy and Analysis,HARROGATE BOROUGH COUNCIL,,,,236660031,3700084839,,Grant payable by the Exchequer,HG1 2SG,"16,423.00",Yes
"Housing, Communities & Local Government",MHCLG,14/01/2021,Current (non AEF) Grants to Local Authorities,Local Government Strategy and Analysis,HARROW LB,,,,,3700083844,,Grant payable by the Exchequer,HA1 2UZ,"20,937.00",Yes
"Housing, Communities & Local Government",MHCLG,14/01/2021,Current (non AEF) Grants to Local Authorities,Local Government Strategy and Analysis,HARROW LB,,,,,3700084229,,Grant payable by the Exchequer,HA1 2UZ,"721,875.00",Yes
"Housing, Communities & Local Government",MHCLG,14/01/2021,Current (non AEF) Grants to Local Authorities,Local Government Strategy and Analysis,HARROW LB,,,,,3700084320,,Grant payable by the Exchequer,HA1 2UZ,"15,468.00",Yes
"Housing, Communities & Local Government",MHCLG,14/01/2021,Current (non AEF) Grants to Local Authorities,Local Government Strategy and Analysis,HARROW LB,,,,,3700084878,,Grant payable by the Exchequer,HA1 2UZ,"977,045.00",Yes
"Housing, Communities & Local Government",MHCLG,14/01/2021,Current (non AEF) Grants to Local Authorities,Local Government Strategy and Analysis,HART DC,,,,229723895,3700083529,,Grant payable by the Exchequer,GU13 8AE,"548,193.00",Yes
"Housing, Communities & Local Government",MHCLG,14/01/2021,Current (non AEF) Grants to Local Authorities,Local Government Strategy and Analysis,HART DC,,,,229723895,3700083667,,Grant payable by the Exchequer,GU13 8AE,"12,125.00",Yes
"Housing, Communities & Local Government",MHCLG,14/01/2021,Current (non AEF) Grants to Local Authorities,Local Government Strategy and Analysis,HART DC,,,,229723895,3700084054,,Grant payable by the Exchequer,GU13 8AE,"18,189.00",Yes
"Housing, Communities & Local Government",MHCLG,14/01/2021,Current (non AEF) Grants to Local Authorities,Local Government Strategy and Analysis,HART DC,,,,229723895,3700084563,,Grant payable by the Exchequer,GU13 8AE,"365,448.00",Yes
"Housing, Communities & Local Government",MHCLG,14/01/2021,Current (non AEF) Grants to Local Authorities,Local Government Strategy and Analysis,HARTLEPOOL BOROUGH COUNCIL,,,,424291797,3700084049,,Grant payable by the Exchequer,TS24 8AY,"442,988.00",Yes
"Housing, Communities & Local Government",MHCLG,14/01/2021,Current (non AEF) Grants to Local Authorities,Local Government Strategy and Analysis,HARTLEPOOL BOROUGH COUNCIL,,,,424291797,3700084223,,Grant payable by the Exchequer,TS24 8AY,"1,362.00",Yes
"Housing, Communities & Local Government",MHCLG,14/01/2021,Current (non AEF) Grants to Local Authorities,Local Government Strategy and Analysis,HARTLEPOOL BOROUGH COUNCIL,,,,424291797,3700084444,,Grant payable by the Exchequer,TS24 8AY,"664,509.00",Yes
"Housing, Communities & Local Government",MHCLG,14/01/2021,Current (non AEF) Grants to Local Authorities,Local Government Strategy and Analysis,HARTLEPOOL BOROUGH COUNCIL,,,,424291797,3700084626,,Grant payable by the Exchequer,TS24 8AY,"2,044.00",Yes
"Housing, Communities & Local Government",MHCLG,14/01/2021,Current (non AEF) Grants to Local Authorities,Local Government Strategy and Analysis,HASTINGS BC,,,,,3700083484,,Grant payable by the Exchequer,TN34 3WN,"506,274.00",Yes
"Housing, Communities & Local Government",MHCLG,14/01/2021,Current (non AEF) Grants to Local Authorities,Local Government Strategy and Analysis,HASTINGS BC,,,,,3700083696,,Grant payable by the Exchequer,TN34 3WN,"6,099.00",Yes
"Housing, Communities & Local Government",MHCLG,14/01/2021,Current (non AEF) Grants to Local Authorities,Local Government Strategy and Analysis,HASTINGS BC,,,,,3700083829,,Grant payable by the Exchequer,TN34 3WN,"4,066.00",Yes
"Housing, Communities & Local Government",MHCLG,14/01/2021,Current (non AEF) Grants to Local Authorities,Local Government Strategy and Analysis,HASTINGS BC,,,,,3700084596,,Grant payable by the Exchequer,TN34 3WN,"759,441.00",Yes
"Housing, Communities & Local Government",MHCLG,14/01/2021,Current (non AEF) Grants to Local Authorities,Local Government Strategy and Analysis,HAVANT BC,,,,211047543,3700083686,,Grant payable by the Exchequer,PO9 2AX,"1,059,848.00",Yes
"Housing, Communities & Local Government",MHCLG,14/01/2021,Current (non AEF) Grants to Local Authorities,Local Government Strategy and Analysis,HAVANT BC,,,,211047543,3700083797,,Grant payable by the Exchequer,PO9 2AX,"706,537.00",Yes
"Housing, Communities & Local Government",MHCLG,14/01/2021,Current (non AEF) Grants to Local Authorities,Local Government Strategy and Analysis,HAVANT BC,,,,211047543,3700084681,,Grant payable by the Exchequer,PO9 2AX,"6,202.00",Yes
"Housing, Communities & Local Government",MHCLG,14/01/2021,Current (non AEF) Grants to Local Authorities,Local Government Strategy and Analysis,HAVANT BC,,,,211047543,3700084873,,Grant payable by the Exchequer,PO9 2AX,"9,304.00",Yes
"Housing, Communities & Local Government",MHCLG,14/01/2021,Current (non AEF) Grants to Local Authorities,Local Government Strategy and Analysis,HAVERING LB,,,,211209770,3700083520,,Grant payable by the Exchequer,RM1 3BB,"2,140,807.00",Yes
"Housing, Communities & Local Government",MHCLG,14/01/2021,Current (non AEF) Grants to Local Authorities,Local Government Strategy and Analysis,HAVERING LB,,,,211209770,3700083669,,Grant payable by the Exchequer,RM1 3BB,"1,581,704.00",Yes
"Housing, Communities & Local Government",MHCLG,14/01/2021,Current (non AEF) Grants to Local Authorities,Local Government Strategy and Analysis,HAVERING LB,,,,211209770,3700084235,,Grant payable by the Exchequer,RM1 3BB,"22,426.00",Yes
"Housing, Communities & Local Government",MHCLG,14/01/2021,Current (non AEF) Grants to Local Authorities,Local Government Strategy and Analysis,HAVERING LB,,,,211209770,3700084580,,Grant payable by the Exchequer,RM1 3BB,"30,353.00",Yes
"Housing, Communities & Local Government",MHCLG,14/01/2021,Current (non AEF) Grants to Local Authorities,Local Government Strategy and Analysis,HEREFORDSHIRE DISTRICT COUNCIL,,,,211510826,3700083627,,Grant payable by the Exchequer,HR1 1SH,"3,878.00",Yes
"Housing, Communities & Local Government",MHCLG,14/01/2021,Current (non AEF) Grants to Local Authorities,Local Government Strategy and Analysis,HEREFORDSHIRE DISTRICT COUNCIL,,,,211510826,3700083817,,Grant payable by the Exchequer,HR1 1SH,"2,585.00",Yes
"Housing, Communities & Local Government",MHCLG,14/01/2021,Current (non AEF) Grants to Local Authorities,Local Government Strategy and Analysis,HEREFORDSHIRE DISTRICT COUNCIL,,,,211510826,3700084836,,Grant payable by the Exchequer,HR1 1SH,"1,083,691.00",Yes
"Housing, Communities & Local Government",MHCLG,14/01/2021,Current (non AEF) Grants to Local Authorities,Local Government Strategy and Analysis,HEREFORDSHIRE DISTRICT COUNCIL,,,,211510826,3700084837,,Grant payable by the Exchequer,HR1 1SH,"1,614,265.00",Yes
"Housing, Communities & Local Government",MHCLG,14/01/2021,Current (non AEF) Grants to Local Authorities,Local Government Strategy and Analysis,HERTSMERE BC,,,,237549253,3700083453,,Grant payable by the Exchequer,WD6 1WA,"1,243,566.00",Yes
"Housing, Communities & Local Government",MHCLG,14/01/2021,Current (non AEF) Grants to Local Authorities,Local Government Strategy and Analysis,HERTSMERE BC,,,,237549253,3700083651,,Grant payable by the Exchequer,WD6 1WA,"13,035.00",Yes
"Housing, Communities & Local Government",MHCLG,14/01/2021,Current (non AEF) Grants to Local Authorities,Local Government Strategy and Analysis,HERTSMERE BC,,,,237549253,3700084738,,Grant payable by the Exchequer,WD6 1WA,"19,553.00",Yes
"Housing, Communities & Local Government",MHCLG,14/01/2021,Current (non AEF) Grants to Local Authorities,Local Government Strategy and Analysis,HERTSMERE BC,,,,237549253,3700084813,,Grant payable by the Exchequer,WD6 1WA,"829,010.00",Yes
"Housing, Communities & Local Government",MHCLG,14/01/2021,Current (non AEF) Grants to Local Authorities,Local Government Strategy and Analysis,HIGH PEAK BC,,,,239967771,3700083535,,Grant payable by the Exchequer,SK17 6EL,"489,005.00",Yes
"Housing, Communities & Local Government",MHCLG,14/01/2021,Current (non AEF) Grants to Local Authorities,Local Government Strategy and Analysis,HIGH PEAK BC,,,,239967771,3700083616,,Grant payable by the Exchequer,SK17 6EL,"325,990.00",Yes
"Housing, Communities & Local Government",MHCLG,14/01/2021,Current (non AEF) Grants to Local Authorities,Local Government Strategy and Analysis,HIGH PEAK BC,,,,239967771,3700084029,,Grant payable by the Exchequer,SK17 6EL,"4,478.00",Yes
"Housing, Communities & Local Government",MHCLG,14/01/2021,Current (non AEF) Grants to Local Authorities,Local Government Strategy and Analysis,HIGH PEAK BC,,,,239967771,3700084613,,Grant payable by the Exchequer,SK17 6EL,"2,986.00",Yes
"Housing, Communities & Local Government",MHCLG,14/01/2021,Current (non AEF) Grants to Local Authorities,Local Government Strategy and Analysis,HILLINGDON LB,,,,211198585,3700084007,,Grant payable by the Exchequer,UB8 1UW,"35,458.00",Yes
"Housing, Communities & Local Government",MHCLG,14/01/2021,Current (non AEF) Grants to Local Authorities,Local Government Strategy and Analysis,HILLINGDON LB,,,,211198585,3700084169,,Grant payable by the Exchequer,UB8 1UW,"2,493,222.00",Yes
"Housing, Communities & Local Government",MHCLG,14/01/2021,Current (non AEF) Grants to Local Authorities,Local Government Strategy and Analysis,HILLINGDON LB,,,,211198585,3700084182,,Grant payable by the Exchequer,UB8 1UW,"3,374,529.00",Yes
"Housing, Communities & Local Government",MHCLG,14/01/2021,Current (non AEF) Grants to Local Authorities,Local Government Strategy and Analysis,HILLINGDON LB,,,,211198585,3700084417,,Grant payable by the Exchequer,UB8 1UW,"26,197.00",Yes
"Housing, Communities & Local Government",MHCLG,14/01/2021,Current (non AEF) Grants to Local Authorities,Local Government Strategy and Analysis,HINCKLEY & BOSWORTH BC,,,,211176144,3700083313,,Grant payable by the Exchequer,LE10 1BZ,"2,829.00",Yes
"Housing, Communities & Local Government",MHCLG,14/01/2021,Current (non AEF) Grants to Local Authorities,Local Government Strategy and Analysis,HINCKLEY & BOSWORTH BC,,,,211176144,3700084022,,Grant payable by the Exchequer,LE10 1BZ,"4,243.00",Yes
"Housing, Communities & Local Government",MHCLG,14/01/2021,Current (non AEF) Grants to Local Authorities,Local Government Strategy and Analysis,HINCKLEY & BOSWORTH BC,,,,211176144,3700084137,,Grant payable by the Exchequer,LE10 1BZ,"460,480.00",Yes
"Housing, Communities & Local Government",MHCLG,14/01/2021,Current (non AEF) Grants to Local Authorities,Local Government Strategy and Analysis,HINCKLEY & BOSWORTH BC,,,,211176144,3700084895,,Grant payable by the Exchequer,LE10 1BZ,"306,974.00",Yes
